Workbook

Sheet License

Sheet (1)Tbl. of Cnts.

Sheet (2)Dev.-Inv. & Lender Input
A2: Developer/Investor and Lender Input Sheet
B3: Developer/Investor Assumptions | F3: 0
B4: 1 | C4: Target Profit Mark-up on Cost | D4: 0.15
B5: 2 | C5: Target Spread Between Market Rent Constant and Cost Rent Constant | D5: 0.015
B6: Construction Loan Assumptions
B7: 3 | C7: Maximum Loan to Value Ratio | D7: 0.6
B8: 4 | C8: Minimum Service Debt Coverage Ratio | D8: 1
B9: 5 | C9: Minimum Equity Requirement (% of Total Project Cost) | D9: 0.2
B10: 6 | C10: Interest Rate | D10: 0.055
B11: 7 | C11: Amortization Period | D11: 500
B12: 8 | C12: Payments Per Year | D12: 12
B13: 9 | C13: Loan Costs (% of Loan Amount or $ Amount) | D13: 1
B14: 10 | C14: Construction Loan Amount Used (LTV = 1, DSCR = 2, and Minimum Equity Requirement =3) | D14: 3
B15: Permanent Loan Assumptions
B16: 11 | C16: Maximum Loan to Value Ratio | D16: 0.65
B17: 12 | C17: Minimum Debt Service Coverage Ratio | D17: 1.2
B18: 13 | C18: Interest Rate | D18: 0.05
B19: 14 | C19: Amortization Period | D19: 30
B20: 15 | C20: Payments Per Year | D20: 12
B21: 16 | C21: Loan Costs (% of Loan Amount or $ Amount) | D21: 0.01
B22: 17 | C22: Permanent Loan Amount Used (LTV = 1, and DSCR = 2) | D22: 1
B23: Project Assumptions
B24: 18 | C24: Market Capitalization Rate (Used by Lender for LTV and by Buyer if Bought upon Completion of Construction) | D24: 0.065
B25: 19 | C25: Market Cost of Sale (If sold upon Completion of Construction) | D25: 0.02
B26: 20 | C26: Disposition Capitalization Rate used for Cash Flow Forecast | D26: 0.06
B27: 21 | C27: Disposition Cost of Sale used for Cash Flow Forecast | D27: 0.02

Sheet (3)Development Budget Input
A2: Development Budget Input Sheet
B3: Project Land and Building
B4: 1 | C4: Category "A" Space Square Feet (GLA) | D4: 500000
B5: 2 | C5: Category "B" Space Square Feet (GLA) | D5: 0
B6: 3 | C6: Category "C" Space Square Feet (GLA) | D6: 0
B7: 4 | C7: Land Size (Acres or Total Square Feet) | D7: =1000000/43560 -> 22.95684114
B8: Land Cost
B9: 5 | C9: Land Purchase Price (Per SF or Total Cost) | D9: 2.8
B10: 6 | C10: Closing Costs (% of Cost or $ Amount) | D10: 1
B11: Architectural/Engineering/Entitlements
B12: 7 | C12: Architectural (Includes Reimbursables & Printing Costs) | D12: =0.4*D4 -> 200000
B13: 8 | C13: Civil Engineering (Includes Site Planning) | D13: =0.22*D4 -> 110000
B14: 9 | C14: Surveys | D14: 20000
B15: 10 | C15: Environmental Site Assessment (ESA) | D15: 3200
B16: 11 | C16: Geotechnical | D16: 14000
B17: 12 | C17: Inspecting Architect/Engineer | D17: 5000
B18: 13 | C18: Landscape Architect | D18: 14000
B19: 14 | C19: Traffic Study | D19: 0
B20: 15 | C20: Transportation Impact Fees | D20: 150000
B21: 16 | C21: Water Connection Fees | D21: 0
B22: 17 | C22: Sewer Capacity Fees | D22: 0
B23: 18 | C23: Permit Fees (Including building permit) | D23: 75000
B24: 19 | C24: Zoning Compliance(Includes legal fees) | D24: 7500
B25: 20 | C25: Misc. Planning/Design | D25: 60000
B26: Construction Costs
B27: 21 | C27: Category "A" Space (Per Square Foot) | D27: 29.5
B28: 22 | C28: Category "B" Space (Per Square Foot) | D28: 0
B29: 23 | C29: Category "C" Space (Per Square Foot) | D29: 0
B30: 24 | C30: Tenant Improvements (Per Square Foot) | D30: 4
B31: 25 | C31: Site Work (Includes Earthwork, Lighting, Site Demo, & Other) | D31: 200000
B32: 26 | C32: Demolition | D32: 0
B33: 27 | C33: Asbestos Abatement | D33: 0
B34: 28 | C34: Landscaping/Irrigation | D34: 15000
B35: 29 | C35: Signs | D35: 5000
B36: 30 | C36: Construction Materials Testing | D36: 241000
B37: 31 | C37: Utility Fees | D37: 150000
B38: 32 | C38: Builder's Risk | D38: 40000
B39: 33 | C39: Performance Bond & Payment Bond | D39: 260000
B40: Financing/Carry
B41: 34 | C41: Construction Facility Fee (% of Total Project Cost or $ Amount) | D41: 0
B42: 35 | C42: Construction Loan Costs (% of Loan Amount or $ Amount) | D42: 0
B43: 36 | C43: First Construction Draw Average Outstanding Balance Over Construction Period (%) | D43: 1
B44: 37 | C44: Remainder of Construction Loan Average Outstanding Balance Over Construction Period (%) | D44: 0.5
B45: 38 | C45: Construction Period (Months) | D45: 12
B46: 39 | C46: Legal Fees (Includes lease negotiation) | D46: 15000
B47: 40 | C47: Construction Period Taxes & Insurance | D47: 30000
B48: 41 | C48: Leasing Commissions (Category "A" Space) (Per Square Foot or $ Amount) | D48: 3
B49: 42 | C49: Leasing Commissions (Category "B" Space) (Per Square Foot or $ Amount) | D49: 0
B50: 43 | C50: Leasing Commissions (Category "C" Space) (Per Square Foot or $ Amount) | D50: 0
B51: 44 | C51: Title Policy | D51: 10000
B52: 45 | C52: Appraisal | D52: 10000
B53: Other Soft Costs and Miscellaneous
B54: 46 | C54: Contingency | D54: 375000
B55: 47 | C55: Developer Overhead Fee | D55: 450000

Sheet (4)Income & Expense Input
A2: Income and Expense Input Sheet
B3: End of Year | D3: 1 | E3: 2 | F3: 3 | G3: 4 | H3: 5 | I3: 6 | J3: 7 | K3: 8 | L3: 9 | M3: 10 | N3: 11
B4: Income, Vacancies, and Escalations
B5: 1 | C5: Category "A" Space (SF) | D5: ='(3)Development Budget Input'!D4 -> 500000
B6: 2 | C6: Category "A" Space (Rent PSF & Annual Escalation) | D6: 6.62 | E6: 0.025 | F6: =E6 -> 0.025 | G6: =F6 -> 0.025 | H6: 0.025 | I6: 0.025 | J6: 0.025 | K6: 0.025 | L6: 0.025 | M6: 0.025 | N6: 0.025
B7: 3 | C7: Category "A" Space Vacancy Rate | D7: 0.085 | E7: =D7 -> 0.085 | F7: =E7 -> 0.085 | G7: 0.085 | H7: 0.085 | I7: 0.085 | J7: 0.085 | K7: 0.085 | L7: 0.085 | M7: 0.085 | N7: 0.085
B8: 4 | C8: Category "B" Space (SF) | D8: ='(3)Development Budget Input'!D5 -> 0
B9: 5 | C9: Category "B" Space (Rent PSF & Annual Escalation) | F9: =E9 -> 0 | G9: =F9 -> 0 | H9: 0 | I9: 0 | J9: 0 | K9: 0 | L9: 0 | M9: 0 | N9: 0
B10: 6 | C10: Category "B" Space Vacancy Rate | E10: =D10 -> 0 | F10: =E10 -> 0 | G10: 0 | H10: 0 | I10: 0 | J10: 0 | K10: 0 | L10: 0 | M10: 0 | N10: 0
B11: 7 | C11: Category "C" Space (SF) | D11: ='(3)Development Budget Input'!D6 -> 0
B12: 8 | C12: Category "C" Space (Rent PSF & Annual Escalation) | F12: =E12 -> 0 | G12: =F12 -> 0 | H12: 0 | I12: 0 | J12: 0 | K12: 0 | L12: 0 | M12: 0 | N12: 0
B13: 9 | C13: Category "C" Space Vacancy Rate | E13: =D13 -> 0 | F13: =E13 -> 0 | G13: 0 | H13: 0 | I13: 0 | J13: 0 | K13: 0 | L13: 0 | M13: 0 | N13: 0
B14: Total Operating Expenses
B15: 10 | C15: Real Estate Taxes (Per Square Foot) | F15: =E15 -> 0 | G15: =F15 -> 0 | H15: 0 | I15: 0 | J15: 0 | K15: 0 | L15: 0 | M15: 0 | N15: 0
B16: 11 | C16: Insurance (Per Square Foot) | F16: 0 | G16: =F16 -> 0 | H16: 0 | I16: 0 | J16: 0 | K16: 0 | L16: 0 | M16: 0 | N16: 0
B17: 12 | C17: Building Maintenance (Per Square Foot) | F17: 0 | G17: =F17 -> 0 | H17: 0 | I17: 0 | J17: 0 | K17: 0 | L17: 0 | M17: 0 | N17: 0
B18: 13 | C18: Common Area Utilities (Per Square Foot) | F18: 0 | G18: =F18 -> 0 | H18: 0 | I18: 0 | J18: 0 | K18: 0 | L18: 0 | M18: 0 | N18: 0
B19: 14 | C19: Common Area Maintenance (Per Square Foot) | F19: 0 | G19: =F19 -> 0 | H19: 0 | I19: 0 | J19: 0 | K19: 0 | L19: 0 | M19: 0 | N19: 0
B20: 15 | C20: Reserve for Replacements (Per Square Foot) | F20: 0 | G20: 0 | H20: 0 | I20: 0 | J20: 0 | K20: 0 | L20: 0 | M20: 0 | N20: 0
B21: 16 | C21: Property Management( % of Collected Income) | E21: =D21 -> 0 | F21: =E21 -> 0 | G21: 0 | H21: 0 | I21: 0 | J21: 0 | K21: 0 | L21: 0 | M21: 0 | N21: 0
B22: Operating Expense Pass-thrus
B23: Category "A" Space
B24: 17 | C24: Real Estate Taxes (Per Square Foot) | F24: =E24 -> 0 | G24: =F24 -> 0 | H24: 0 | I24: 0 | J24: 0 | K24: 0 | L24: 0 | M24: 0 | N24: 0
B25: 18 | C25: Insurance (Per Square Foot) | F25: 0 | G25: =F25 -> 0 | H25: 0 | I25: 0 | J25: 0 | K25: 0 | L25: 0 | M25: 0 | N25: 0
B26: 19 | C26: Building Maintenance (Per Square Foot) | F26: 0 | G26: =F26 -> 0 | H26: 0 | I26: 0 | J26: 0 | K26: 0 | L26: 0 | M26: 0 | N26: 0
B27: 20 | C27: Common Area Utilities (Per Square Foot) | F27: 0 | G27: =F27 -> 0 | H27: 0 | I27: 0 | J27: 0 | K27: 0 | L27: 0 | M27: 0 | N27: 0
B28: 21 | C28: Common Area Maintenance (Per Square Foot) | F28: 0 | G28: 0 | H28: 0 | I28: 0 | J28: 0 | K28: 0 | L28: 0 | M28: 0 | N28: 0
B29: 22 | C29: Reserve for Replacements (Per Square Foot) | F29: 0 | G29: 0 | H29: 0 | I29: 0 | J29: 0 | K29: 0 | L29: 0 | M29: 0 | N29: 0
B30: 23 | C30: Property Management( % of Collected Income) | E30: =D30 -> 0 | F30: =E30 -> 0 | G30: 0 | H30: 0 | I30: 0 | J30: 0 | K30: 0 | L30: 0 | M30: 0 | N30: 0
B31: Category "B" Space
B32: 24 | C32: Real Estate Taxes (Per Square Foot) | F32: =E32 -> 0 | G32: =F32 -> 0 | H32: 0 | I32: 0 | J32: 0 | K32: 0 | L32: 0 | M32: 0 | N32: 0
B33: 25 | C33: Insurance (Per Square Foot) | F33: 0 | G33: 0 | H33: 0 | I33: 0 | J33: 0 | K33: 0 | L33: 0 | M33: 0 | N33: 0
B34: 26 | C34: Building Maintenance (Per Square Foot) | F34: 0 | G34: 0 | H34: 0 | I34: 0 | J34: 0 | K34: 0 | L34: 0 | M34: 0 | N34: 0
B35: 27 | C35: Common Area Utilities (Per Square Foot) | F35: 0 | G35: 0 | H35: 0 | I35: 0 | J35: 0 | K35: 0 | L35: 0 | M35: 0 | N35: 0
B36: 28 | C36: Common Area Maintenance (Per Square Foot) | F36: 0 | G36: 0 | H36: 0 | I36: 0 | J36: 0 | K36: 0 | L36: 0 | M36: 0 | N36: 0
B37: 29 | C37: Reserve for Replacements (Per Square Foot) | F37: 0 | G37: 0 | H37: 0 | I37: 0 | J37: 0 | K37: 0 | L37: 0 | M37: 0 | N37: 0
B38: 30 | C38: Property Management( % of Collected Income) | E38: =D38 -> 0 | F38: =E38 -> 0 | G38: 0 | H38: 0 | I38: 0 | J38: 0 | K38: 0 | L38: 0 | M38: 0 | N38: 0
B39: Category "C" Space
B40: 31 | C40: Real Estate Taxes (Per Square Foot) | F40: =E40 -> 0 | G40: =F40 -> 0 | H40: 0 | I40: 0 | J40: 0 | K40: 0 | L40: 0 | M40: 0 | N40: 0
B41: 32 | C41: Insurance (Per Square Foot) | F41: 0 | G41: 0 | H41: 0 | I41: 0 | J41: 0 | K41: 0 | L41: 0 | M41: 0 | N41: 0
B42: 33 | C42: Building Maintenance (Per Square Foot) | F42: 0 | G42: 0 | H42: 0 | I42: 0 | J42: 0 | K42: 0 | L42: 0 | M42: 0 | N42: 0
B43: 34 | C43: Common Area Utilities (Per Square Foot) | F43: 0 | G43: 0 | H43: 0 | I43: 0 | J43: 0 | K43: 0 | L43: 0 | M43: 0 | N43: 0
B44: 35 | C44: Common Area Maintenance (Per Square Foot) | F44: 0 | G44: 0 | H44: 0 | I44: 0 | J44: 0 | K44: 0 | L44: 0 | M44: 0 | N44: 0
B45: 36 | C45: Reserve for Replacements (Per Square Foot) | F45: 0 | G45: 0 | H45: 0 | I45: 0 | J45: 0 | K45: 0 | L45: 0 | M45: 0 | N45: 0
B46: 37 | C46: Property Management( % of Collected Income) | E46: =D46 -> 0 | F46: =E46 -> 0 | G46: 0 | H46: 0 | I46: 0 | J46: 0 | K46: 0 | L46: 0 | M46: 0 | N46: 0

Sheet (5)Project Summary
A2: Project Summary
B3: Developer/Investor Assumptions
B4: 1 | C4: Target Profit Mark-up on Cost | D4: ='(2)Dev.-Inv. & Lender Input'!D4 -> 0.15
B5: 2 | C5: Target Spread Between Market Capitalization Rate and Cost Capitalization Rate | D5: ='(2)Dev.-Inv. & Lender Input'!D5 -> 0.015
B6: Project Size
B7: 3 | C7: Category "A" Space (Square Feet) | D7: ='(3)Development Budget Input'!D4 -> 500000
B8: 4 | C8: Category "B" Space (Square Feet) | D8: ='(3)Development Budget Input'!D5 -> 0
B9: 5 | C9: Category "C" Space (Square Feet) | D9: ='(3)Development Budget Input'!D6 -> 0
B10: 6 | C10: Total Building Space (Square Feet) | D10: =D7+D8+D9 -> 500000
B11: 7 | C11: Total Land Size (Square Feet) | D11: =' (6)Development Budget'!H8 -> 1000000
B12: Project Cost
B13: 8 | C13: Land Cost | D13: =' (6)Development Budget'!G13 -> 2828000
B14: 9 | C14: Architectural/Engineering/Entitlements | D14: =' (6)Development Budget'!G29 -> 658700
B15: 10 | C15: Construction Costs | D15: =' (6)Development Budget'!G44 -> 17661000
B16: 11 | C16: Financing/Carry | D16: =' (6)Development Budget'!G56 -> 2292950
B17: 12 | C17: Other Soft Costs and Miscellaneous | D17: =' (6)Development Budget'!G60 -> 825000
B18: 13 | C18: Total Project Cost | D18: =SUM(D13:D17) -> 24265650
B19: 14 | C19: Indicated Value (Rounded to Nearest $1,000) | D19: =IF('(2)Dev.-Inv. & Lender Input'!D24=0,0,ROUND('(9)Annual Cash Flow Projection'!D48/'(2)Dev.-Inv. & Lender Input'!D24,-3)) -> 46595000
B20: Financing
B21: Construction Loan
B22: 15 | C22: Loan Amount Using Loan to Value | D22: ='(2)Dev.-Inv. & Lender Input'!D7*'(5)Project Summary'!D19 -> 27957000
B23: 16 | C23: Loan Amount Using Debt Service Coverage Ratio | D23: =IF('(2)Dev.-Inv. & Lender Input'!D12=0,0,-(PV('(2)Dev.-Inv. & Lender Input'!D10/'(2)Dev.-Inv. & Lender Input'!D12,'(2)Dev.-Inv. & Lender Input'!D11*'(2)Dev.-Inv. & Lender Input'!D12,'(9)Annual Cash Flow Projection'!D48/'(2)Dev.-Inv. & Lender Input'!D8/'(2)Dev.-Inv. & Lender Input'!D12,0,0))) -> 55066363.64
B24: 17 | C24: Loan Amount using Minimum Equity Requirement | D24: =' (6)Development Budget'!G61*(1-'(2)Dev.-Inv. & Lender Input'!D9) -> 19412520
B25: 18 | C25: Construction Loan Amount Used for Analysis (Rounded Down to Nearest $1,000) | D25: =ROUNDDOWN(IF('(2)Dev.-Inv. & Lender Input'!D14=1,'(5)Project Summary'!D22,IF('(2)Dev.-Inv. & Lender Input'!D14=2,'(5)Project Summary'!D23,'(5)Project Summary'!D24)),-3) -> 19412000
B26: 19 | C26: Construction Loan Costs | D26: =IF('(2)Dev.-Inv. & Lender Input'!D13<10,'(2)Dev.-Inv. & Lender Input'!D13*'(5)Project Summary'!D25/100,'(2)Dev.-Inv. & Lender Input'!D13) -> 194120
B27: 20 | C27: Construction Loan Annual Mortgage Constant | D27: =IF('(2)Dev.-Inv. & Lender Input'!D12=0,0,(PMT('(2)Dev.-Inv. & Lender Input'!D10/'(2)Dev.-Inv. & Lender Input'!D12,'(2)Dev.-Inv. & Lender Input'!D11*'(2)Dev.-Inv. & Lender Input'!D12,-1,0,0))*'(2)Dev.-Inv. & Lender Input'!D12) -> 0.055
B28: Permanent Loan
B29: 21 | C29: Loan Amount Using Loan to Value | D29: ='(2)Dev.-Inv. & Lender Input'!D16*'(5)Project Summary'!D19 -> 30286750
B30: 22 | C30: Loan Amount Using Debt Service Coverage Ratio | D30: =IF('(2)Dev.-Inv. & Lender Input'!D20=0,0,-(PV('(2)Dev.-Inv. & Lender Input'!D18/'(2)Dev.-Inv. & Lender Input'!D20,'(2)Dev.-Inv. & Lender Input'!D19*'(2)Dev.-Inv. & Lender Input'!D20,'(9)Annual Cash Flow Projection'!D48/'(2)Dev.-Inv. & Lender Input'!D17/'(2)Dev.-Inv. & Lender Input'!D20,0,0))) -> 39179293.02
B31: 23 | C31: Permanent Loan Amount Used for Cash Flow Projection (Rounded Down to Nearest $1,000) | D31: =ROUNDDOWN(IF('(2)Dev.-Inv. & Lender Input'!D22=1,'(5)Project Summary'!D29,'(5)Project Summary'!D30),-3) -> 30286000
B32: 24 | C32: Permanent Loan Costs | D32: =IF('(2)Dev.-Inv. & Lender Input'!D21<10,'(2)Dev.-Inv. & Lender Input'!D21*'(5)Project Summary'!D31,'(2)Dev.-Inv. & Lender Input'!D21) -> 302860
B33: 25 | C33: Permanent Loan Annual Mortgage Constant | D33: =IF('(2)Dev.-Inv. & Lender Input'!D20=0,0,(PMT('(2)Dev.-Inv. & Lender Input'!D18/'(2)Dev.-Inv. & Lender Input'!D20,'(2)Dev.-Inv. & Lender Input'!D19*'(2)Dev.-Inv. & Lender Input'!D20,-1,0,0))*'(2)Dev.-Inv. & Lender Input'!D20) -> 0.06441859476

Sheet (6)Development Budget
A2: Total Project Budget
C3: Project Land and Building
B4: 1 | C4: Category "A" Space Square Feet | H4: ='(3)Development Budget Input'!D4 -> 500000
B5: 2 | C5: Category "B" Space Square Feet | H5: ='(3)Development Budget Input'!D5 -> 0
B6: 3 | C6: Category "C" Space Square Feet | H6: ='(3)Development Budget Input'!D6 -> 0
B7: 4 | C7: Total Building Square Feet | H7: =SUM(H4:H6) -> 500000
B8: 5 | C8: Land Size Square Feet | F8: ='(3)Development Budget Input'!D7 -> 22.95684114 | G8: Acres or SF | H8: =IF(F8>100,F8,43560*F8) -> 1000000
B9: Total Component Cost and Component Cost PSF (GLA)
C10: Land Costs | G10: $ | H10: $/sf
B11: 6 | C11: Land Purchase Price (Per Square Foot or Total $ Amount). | D11: ='(3)Development Budget Input'!D9 -> 2.8 | E11: Per SF or Total $ Amount | G11: =IF(D11<100,H8*D11,D11) -> 2800000 | H11: =IF($H$7=0,0,G11/$H$7) -> 5.6
B12: 7 | C12: Closing Costs | G12: =IF('(3)Development Budget Input'!D10<20,'(3)Development Budget Input'!D10*' (6)Development Budget'!G11/100,'(3)Development Budget Input'!D10) -> 28000 | H12: =IF($H$7=0,0,G12/$H$7) -> 0.056
B13: 8 | C13: Subtotal Land Cost | G13: =SUM(G11:G12) -> 2828000 | H13: =SUM(H11:H12) -> 5.656
C14: Architectural/Engineering/Entitlements
B15: 9 | C15: Architectural (Includes Reimbursables & Printing Costs) | G15: ='(3)Development Budget Input'!D12 -> 200000 | H15: =IF($H$7=0,0,G15/$H$7) -> 0.4
B16: 10 | C16: Civil Engineering (Includes Site Planning) | G16: ='(3)Development Budget Input'!D13 -> 110000 | H16: =IF($H$7=0,0,G16/$H$7) -> 0.22
B17: 11 | C17: Surveys | G17: ='(3)Development Budget Input'!D14 -> 20000 | H17: 0.04
B18: 12 | C18: Environmental Site Assessment (ESA) | G18: ='(3)Development Budget Input'!D15 -> 3200 | H18: 0.0064
B19: 13 | C19: Geotechnical | G19: ='(3)Development Budget Input'!D16 -> 14000 | H19: 0.028
B20: 14 | C20: Inspecting Architect/Engineer | G20: ='(3)Development Budget Input'!D17 -> 5000 | H20: 0.01
B21: 15 | C21: Landscape Architect | G21: ='(3)Development Budget Input'!D18 -> 14000 | H21: 0.028
B22: 16 | C22: Traffic Study | G22: ='(3)Development Budget Input'!D19 -> 0 | H22: 0
B23: 17 | C23: Transportation Impact Fees | G23: ='(3)Development Budget Input'!D20 -> 150000 | H23: 0.3
B24: 18 | C24: Water Connection Fees | G24: ='(3)Development Budget Input'!D21 -> 0 | H24: 0
B25: 19 | C25: Sewer Capacity Fees | G25: ='(3)Development Budget Input'!D22 -> 0 | H25: 0
B26: 20 | C26: Permit Fees (Including building permit) | G26: ='(3)Development Budget Input'!D23 -> 75000 | H26: 0.15
B27: 21 | C27: Zoning Compliance(Includes legal fees) | G27: ='(3)Development Budget Input'!D24 -> 7500 | H27: 0.015
B28: 22 | C28: Misc. Planning/Design | G28: ='(3)Development Budget Input'!D25 -> 60000 | H28: 0.12
B29: 23 | C29: Subtotal Architectural/Engineering/Entitlements | G29: =SUM(G15:G28) -> 658700 | H29: =SUM(H15:H28) -> 1.3174
C30: Construction Costs
B31: 24 | C31: Category "A" Space | E31: ='(3)Development Budget Input'!D27 -> 29.5 | F31: /SF | G31: =E31*H4 -> 14750000 | H31: =IF($H$7=0,0,G31/$H$7) -> 29.5
B32: 25 | C32: Category "B" Space | E32: ='(3)Development Budget Input'!D28 -> 0 | F32: /SF | G32: =E32*H5 -> 0 | H32: =IF($H$7=0,0,G32/$H$7) -> 0
B33: 26 | C33: Category "C" Space | E33: ='(3)Development Budget Input'!D29 -> 0 | F33: /SF | G33: =E33*H6 -> 0 | H33: 0
B34: 27 | C34: Tenant Improvements | E34: ='(3)Development Budget Input'!D30 -> 4 | F34: /SF | G34: =E34*H7 -> 2000000 | H34: 4
B35: 28 | C35: Site Work (Includes Earthwork, Lighting, Site Demo, and Other) | G35: ='(3)Development Budget Input'!D31 -> 200000 | H35: 0.4
B36: 29 | C36: Demolition (Building only) | G36: ='(3)Development Budget Input'!D32 -> 0 | H36: 0
B37: 30 | C37: Asbestos Abatement | G37: ='(3)Development Budget Input'!D33 -> 0 | H37: 0
B38: 31 | C38: Landscaping/Irrigation | G38: ='(3)Development Budget Input'!D34 -> 15000 | H38: 0.03
B39: 32 | C39: Signs | G39: ='(3)Development Budget Input'!D35 -> 5000 | H39: 0.01
B40: 33 | C40: Construction Materials Testing | G40: ='(3)Development Budget Input'!D36 -> 241000 | H40: 0.482
B41: 34 | C41: Utility Fees | G41: ='(3)Development Budget Input'!D37 -> 150000 | H41: 0.3
B42: 35 | C42: Builder's Risk | G42: ='(3)Development Budget Input'!D38 -> 40000 | H42: 0.08
B43: 36 | C43: Performance Bond & Payment Bond | G43: ='(3)Development Budget Input'!D39 -> 260000 | H43: 0.52
B44: 37 | C44: Subtotal Construction Costs | G44: =SUM(G31:G43) -> 17661000 | H44: =SUM(H31:H43) -> 35.322
C45: Financing/Carry
B46: 38 | C46: Construction Facility Fee | G46: =IF('(3)Development Budget Input'!D41<10,'(3)Development Budget Input'!D41*' (6)Development Budget'!G61/100,'(3)Development Budget Input'!D41) -> 0 | H46: =IF($H$7=0,0,G46/$H$7) -> 0
B47: 39 | C47: Construction Loan Costs | G47: ='(5)Project Summary'!D26 -> 194120 | H47: =IF($H$7=0,0,G47/$H$7) -> 0.38824
B48: 40 | C48: Construction Period Interest | G48: =F69 -> 533830 | H48: =IF($H$7=0,0,G48/$H$7) -> 1.06766
B49: 41 | C49: Legal Fees (Includes lease negotiation) | G49: ='(3)Development Budget Input'!D46 -> 15000 | H49: 0.03
B50: 42 | C50: Construction Period Taxes & Insurance | G50: ='(3)Development Budget Input'!D47 -> 30000 | H50: 0.06
B51: 43 | C51: Leasing Commissions Per Square Foot (Category "A" Space) | E51: =IF('(3)Development Budget Input'!D48<10,'(3)Development Budget Input'!D48,0) -> 3 | F51: /SF | G51: =IF('(3)Development Budget Input'!D48>10,'(3)Development Budget Input'!D48,'(3)Development Budget Input'!D48*' (6)Development Budget'!H4) -> 1500000 | H51: 3
B52: 44 | C52: Leasing Commissions Per Square Foot (Category "B" Space) | E52: =IF('(3)Development Budget Input'!D49<10,'(3)Development Budget Input'!D49,0) -> 0 | F52: /SF | G52: =IF('(3)Development Budget Input'!D49>10,'(3)Development Budget Input'!D49,'(3)Development Budget Input'!D49*' (6)Development Budget'!H5) -> 0 | H52: 0
B53: 45 | C53: Leasing Commissions Per Square Foot (Category "C" Space) | E53: =IF('(3)Development Budget Input'!D50<10,'(3)Development Budget Input'!D50,0) -> 0 | F53: /SF | G53: =IF('(3)Development Budget Input'!D50>10,'(3)Development Budget Input'!D50,'(3)Development Budget Input'!D50*' (6)Development Budget'!H6) -> 0 | H53: 0
B54: 46 | C54: Title Policy | G54: ='(3)Development Budget Input'!D51 -> 10000 | H54: 0.02
B55: 47 | C55: Appraisal | G55: ='(3)Development Budget Input'!D52 -> 10000 | H55: 0.02
B56: 48 | C56: Subtotal Financing/Carry | G56: =SUM(G46:G55) -> 2292950 | H56: =SUM(H46:H55) -> 4.5859
C57: Other Soft Costs & Miscellaneous
B58: 49 | C58: Contingency | G58: ='(3)Development Budget Input'!D54 -> 375000 | H58: =IF($H$7=0,0,G58/$H$7) -> 0.75
B59: 50 | C59: Developer Overhead Fee | G59: ='(3)Development Budget Input'!D55 -> 450000 | H59: =IF($H$7=0,0,G59/$H$7) -> 0.9
B60: 51 | C60: Subtotal Other Soft Costs & Miscellaneous | G60: =SUM(G58:G59) -> 825000 | H60: =SUM(H58:H59) -> 1.65
B61: 52 | C61: TOTAL PROJECT COSTS: | G61: =G13+G29+G44+G56+G60 -> 24265650 | H61: =H60+H56+H44+H29+H13 -> 48.5313
B62: 53 | C62: LESS: CONSTRUCTION LOAN | G62: ='(5)Project Summary'!D25 -> 19412000 | H62: =IF($H$7=0,0,G62/$H$7) -> 38.824
B63: 54 | C63: EQUITY REQUIRED | G63: =G61-G62 -> 4853650 | H63: =IF($H$7=0,0,G63/$H$7) -> 9.7073
C64: Interest Calculations
E65: Average Balance | F65: Interest
B66: 55 | C66: Equity Required | D66: =G63 -> 4853650
B67: 56 | C67: Construction Loan Draw Applied to Land Costs and A/E/E | D67: =IF(((G13+G29)-D66)<0,0,((G13+G29)-D66)) -> 0 | E67: ='(3)Development Budget Input'!D43 -> 1 | F67: =D67*E67*D69/12*D70 -> 0
B68: 57 | C68: Balance of Construction Loan | D68: =G62-D67 -> 19412000 | E68: ='(3)Development Budget Input'!D44 -> 0.5 | F68: =D68*E68*D69/12*D70 -> 533830
B69: 58 | C69: Construction Loan Interest Rate | D69: ='(2)Dev.-Inv. & Lender Input'!D10 -> 0.055 | F69: =F67+F68 -> 533830
B70: 59 | C70: Construction Period (Months) | D70: ='(3)Development Budget Input'!D45 -> 12

Sheet (7)Cost Mark-up Feasibility
A2: Cost Mark-up Feasibility
B3: "Front Door Approach" | G3: "Back Door Approach"
B4: 1 | D4: Total Project Cost | E4: =H86 -> 0 | G4: 1 | I4: Potential Rental Income | J4: =L80 -> 0
B5: 2 | C5: x | D5: Target Mark-up | E5: =H87 -> 0 | G5: 2 | H5: - | I5: Vacancy and Credit Losses | J5: =L81 -> 0
B6: 3 | C6: = | D6: Required Profit | E6: =H88 -> 0 | G6: 3 | H6: = | I6: Effective Rental Income | J6: 0
B7: 4 | C7: + | D7: Total Project Cost | E7: =H86 -> 0 | G7: 4 | H7: + | I7: Collected Pass-thrus | J7: 0
B8: 5 | C8: = | D8: Required Net Value | E8: =H90 -> 0 | G8: 5 | H8: = | I8: Gross Operating Income | J8: 0
B9: 6 | C9: + | D9: Cost of Sale | E9: 0 | G9: 6 | H9: - | I9: Operating Expenses | J9: 0
B10: 7 | C10: = | D10: Required Total Value | E10: 0 | G10: 7 | H10: = | I10: Net Operating Income | J10: 0
B11: 8 | C11: x | D11: Market Capitalization Rate | E11: 0 | G11: 8 | H11: ÷ | I11: Market Capitalization Rate | J11: 0
B12: 9 | C12: = | D12: Required NOI | E12: 0 | G12: 9 | H12: = | I12: Total Value | J12: 0
B13: 10 | C13: + | D13: Operating Expenses | E13: 0 | G13: 10 | H13: - | I13: Cost of Sale | J13: 0
B14: 11 | C14: = | D14: Gross Operating Income | E14: 0 | G14: 11 | H14: = | I14: Net Value | J14: 0
B15: 12 | C15: - | D15: Collected Pass-Thrus | E15: 0 | G15: 12 | H15: - | I15: Profit | J15: 0
B16: 13 | C16: = | D16: Effective Rental Income | E16: 0 | G16: 13 | H16: = | I16: Justified Total Cost | J16: 0
B17: 14 | C17: + | D17: Vacancy and Credit Losses | E17: 0 | G17: 14 | H17: - | I17: All Costs Except Land | J17: 0
B18: 15 | C18: = | D18: Potential Rental Income | E18: 0 | G18: 15 | H18: = | I18: Justified Land Cost (Including Acquisition Costs) | J18: =$L$94 -> 0
B19: Minimum Rents Per Square Foot Needed to Achieve Target | G19: Justified Land Cost Breakdown
B20: 16 | C20: Weighted Average Rent Per Square Foot | E20: =H101 -> 0 | G20: 16 | H20: Per Acre (Including Acquisition Costs) | J20: =$L$95 -> 0
B21: 17 | C21: Category "A" Space Rent Per Square Foot | E21: =H102 -> 0 | G21: 17 | H21: Per Square Foot (Including Acquisition Costs) | J21: =$L$96 -> 0
B22: 18 | C22: Category "B" Space Rent Per Square Foot | E22: =H103 -> 0 | G22: 18 | H22: Total Cost (Including Acquisition Costs) | J22: =$L$94 -> 0
B23: 19 | C23: Category "C" Space Rent Per Square Foot | E23: =H104 -> 0
C80: =IF(('(4)Income & Expense Input'!D5+'(4)Income & Expense Input'!D8+'(4)Income & Expense Input'!D11)=0,0,(('(4)Income & Expense Input'!D5*'(4)Income & Expense Input'!D6)+('(4)Income & Expense Input'!D8*'(4)Income & Expense Input'!D9)+('(4)Income & Expense Input'!D11*'(4)Income & Expense Input'!D12))/('(4)Income & Expense Input'!D5+'(4)Income & Expense Input'!D8+'(4)Income & Expense Input'!D11)) -> 6.62 | J80: ='(9)Annual Cash Flow Projection'!D8 -> 3310000 | L80: 0
C81: =IF('(9)Annual Cash Flow Projection'!D8=0,0,('(9)Annual Cash Flow Projection'!D8-'(9)Annual Cash Flow Projection'!D12)/'(9)Annual Cash Flow Projection'!D8) -> 0.085 | E81: =IF(C86=0,0,(C86-C94)/C86) -> 0.3888779376 | J81: =SUM('(9)Annual Cash Flow Projection'!D9:D11) -> 281350 | L81: 0
C82: =IF(('(4)Income & Expense Input'!D5+'(4)Income & Expense Input'!D8+'(4)Income & Expense Input'!D11)=0,0,(('(4)Income & Expense Input'!D5*'(4)Income & Expense Input'!D7+'(4)Income & Expense Input'!D8*'(4)Income & Expense Input'!D10+'(4)Income & Expense Input'!D11*'(4)Income & Expense Input'!D13))/('(4)Income & Expense Input'!D5+'(4)Income & Expense Input'!D8+'(4)Income & Expense Input'!D11)) -> 0.085 | J82: =J80-J81 -> 3028650 | L82: 0
B83: =C121 -> 500000 | C83: ='(4)Income & Expense Input'!D6 -> 6.62 | D83: =B83*C83 -> 3310000 | J83: =SUM('(9)Annual Cash Flow Projection'!D16:D22)+SUM('(9)Annual Cash Flow Projection'!D24:D30)+SUM('(9)Annual Cash Flow Projection'!D32:D38) -> 0 | L83: 0
B84: =C122 -> 0 | C84: ='(4)Income & Expense Input'!D9 -> 0 | D84: =B84*C84 -> 0 | J84: =J82+J83 -> 3028650 | L84: 0
B85: =C123 -> 0 | C85: ='(4)Income & Expense Input'!D12 -> 0 | D85: =B85*C85 -> 0 | J85: =SUM('(9)Annual Cash Flow Projection'!D41:D47) -> 0 | L85: 0
C86: =IF(C124=0,0,D86/C124) -> 6.62 | D86: =D83+D84+D85 -> 3310000 | F86: =' (6)Development Budget'!G61 -> 24265650 | H86: 0 | J86: =J84-J85 -> 3028650 | L86: 0
F87: ='(2)Dev.-Inv. & Lender Input'!D4 -> 0.15 | H87: 0 | J87: ='(2)Dev.-Inv. & Lender Input'!D24 -> 0.065 | L87: 0
B88: =C121 -> 500000 | C88: =C83*(1-E81) -> 4.045628053 | D88: =B88*C88 -> 2022814.026 | F88: =F86*F87 -> 3639847.5 | H88: 0 | J88: =IF(J87=0,0,J86/J87) -> 46594615.38 | L88: 0
B89: =C122 -> 0 | C89: =C84*(1-E81) -> 0 | D89: =B89*C89 -> 0 | F89: =F86 -> 24265650 | H89: 0 | J89: =J88*'(2)Dev.-Inv. & Lender Input'!D25 -> 931892.3077 | L89: 0
B90: =C123 -> 0 | C90: =C85*(1-E81) -> 0 | D90: =B90*C90 -> 0 | F90: =F88+F89 -> 27905497.5 | H90: 0 | J90: =J88-J89 -> 45662723.08 | L90: 0
B91: =B88+B89+B90 -> 500000 | C91: =D91/B91 -> 4.045628053 | D91: =D88+D89+D90 -> 2022814.026 | F91: =F90/(1-'(2)Dev.-Inv. & Lender Input'!D25)-F90 -> 569499.949 | H91: 0 | J91: =-(J90/(1+'(2)Dev.-Inv. & Lender Input'!D4)-'(7)Cost Mark-up Feasibility '!J90) -> 5956007.358 | L91: 0
F92: =F90+F91 -> 28474997.45 | H92: 0 | J92: =J90-J91 -> 39706715.72 | L92: 0
F93: ='(2)Dev.-Inv. & Lender Input'!D24 -> 0.065 | H93: 0 | J93: =' (6)Development Budget'!G61-' (6)Development Budget'!G13 -> 21437650 | L93: 0
C94: 4.045628053 | F94: =F92*F93 -> 1850874.834 | H94: 0 | J94: =J92-J93 -> 18269065.72 | L94: 0
C95: =B91*C94 -> 2022814.026 | E95: =C102 -> 0 | F95: =C103 -> 0 | G95: =F95+F96 -> 0 | H95: 0 | J95: =IF('(3)Development Budget Input'!D7=0,0,IF('(3)Development Budget Input'!D7<100,'(7)Cost Mark-up Feasibility '!J94/'(3)Development Budget Input'!D7,'(7)Cost Mark-up Feasibility '!J94/('(3)Development Budget Input'!D7/43560))) -> 795800.5027 | L95: 0
C96: =C95*C81 -> 171939.1922 | E96: =C101 -> 0 | F96: =E95+E96 -> 0 | H96: 0 | J96: =J95/43560 -> 18.26906572 | L96: 0
C97: =C95-C96 -> 1850874.834 | F97: =F94+F95+F96 -> 1850874.834 | H97: 0 | J97: =' (6)Development Budget'!G61 -> 24265650 | L97: 0
C98: =('(4)Income & Expense Input'!D5*(1-'(4)Income & Expense Input'!D7))*SUM('(4)Income & Expense Input'!D24:D29)+('(4)Income & Expense Input'!D8*(1-'(4)Income & Expense Input'!D10))*SUM('(4)Income & Expense Input'!D32:D37)+('(4)Income & Expense Input'!D11*(1-'(4)Income & Expense Input'!D13))*SUM('(4)Income & Expense Input'!D40:D45) -> 0 | F98: =C99 -> 0 | H98: 0 | J98: =J92-J97 -> 15441065.72 | L98: 0
C99: =D119 -> 0 | F99: =C98 -> 0 | G99: =F98+F99 -> 0 | H99: 0
C100: =C97+C98+C99 -> 1850874.834 | F100: =F97-F98-F99 -> 1850874.834 | H100: 0
C101: =('(4)Income & Expense Input'!D5+'(4)Income & Expense Input'!D8+'(4)Income & Expense Input'!D11)*SUM('(4)Income & Expense Input'!D15:D19) -> 0 | F101: =(F100/(1-C81))-F100 -> 171939.1922 | H101: 0
C102: =('(4)Income & Expense Input'!D5+'(4)Income & Expense Input'!D8+'(4)Income & Expense Input'!D11)*'(4)Income & Expense Input'!D20 -> 0 | F102: =F100+F101 -> 2022814.026 | H102: 0
C103: =C100*'(4)Income & Expense Input'!D21 -> 0 | F103: =IF(C124=0,0,F102/C124) -> 4.045628053 | H103: 0
C104: =C100-C101-C102-C103 -> 1850874.834 | F104: =C83*(1-E81) -> 4.045628053 | H104: 0
F105: =C84*(1-E81) -> 0
C106: =('(4)Income & Expense Input'!D5*(1-'(4)Income & Expense Input'!D7))*SUM('(4)Income & Expense Input'!D24:D29) -> 0 | F106: =C85*(1-E81) -> 0
C107: =('(4)Income & Expense Input'!D8*(1-'(4)Income & Expense Input'!D10))*SUM('(4)Income & Expense Input'!D32:D37) -> 0
C108: =('(4)Income & Expense Input'!D11*(1-'(4)Income & Expense Input'!D13))*SUM('(4)Income & Expense Input'!D40:D45) -> 0
C109: =C106+C107+C108 -> 0
C111: =C121*C88 -> 2022814.026 | D111: =C111*(1-'(4)Income & Expense Input'!D7) -> 1850874.834
C112: =C122*C89 -> 0 | D112: =C112*(1-'(4)Income & Expense Input'!D10) -> 0
C113: =C123*C90 -> 0 | D113: =C113*(1-'(4)Income & Expense Input'!D13) -> 0
C114: =C111+C112+C113 -> 2022814.026 | D114: =D111+D112+D113 -> 1850874.834
D116: =((C106+D111)/(1-'(4)Income & Expense Input'!D30))-(C106+D111) -> 0
D117: =((C107+D112)/(1-'(4)Income & Expense Input'!D38))-(C107+D112) -> 0
D118: =((C108+D113)/(1-'(4)Income & Expense Input'!D46))-(C108+D113) -> 0
D119: =D116+D117+D118 -> 0
C121: ='(4)Income & Expense Input'!D5 -> 500000
C122: ='(4)Income & Expense Input'!D8 -> 0
C123: ='(4)Income & Expense Input'!D11 -> 0
C124: =C121+C122+C123 -> 500000

Sheet (8)Rent Constant Feasibility
A2: Rent Constant Feasibility
B3: "Front Door Approach" | G3: "Back Door Approach"
B4: 1 | D4: Market Rent Constant | E4: =H89 -> 0 | G4: 1 | I4: Potential Rental Income | J4: =L80 -> 0
B5: 2 | C5: + | D5: Cost of Sale Adjustment | E5: =H90 -> 0 | G5: 2 | H5: - | I5: Vacancy and Credit Losses | J5: =L81 -> 0
B6: 3 | C6: + | D6: Rent Constant Spread | E6: 0 | G6: 3 | H6: = | I6: Effective Rental Income | J6: 0
B7: 4 | C7: = | D7: Cost Rent Constant | E7: 0 | G7: 4 | H7: + | I7: Collected Pass-thrus | J7: 0
B8: 5 | C8: x | D8: Total Project Cost | E8: 0 | G8: 5 | H8: = | I8: Gross Operating Income | J8: 0
B9: 6 | C9: = | D9: Required NOI | E9: 0 | G9: 6 | H9: - | I9: Operating Expenses | J9: 0
B10: 7 | C10: + | D10: Operating Expenses | E10: 0 | G10: 7 | H10: = | I10: Net Operating Income | J10: 0
B11: 8 | C11: = | D11: Gross Operating Income | E11: 0 | G11: 8 | H11: ÷ | I11: Cost Rent Constant | J11: 0
B12: 9 | C12: - | D12: Collected Pass-Thrus | E12: 0 | G12: 9 | H12: = | I12: Justified Total Cost | J12: 0
B13: 10 | C13: = | D13: Effective Rental Income | E13: 0 | G13: 10 | H13: - | I13: All Costs Except Land | J13: 0
B14: 11 | C14: + | D14: Vacancy and Credit Losses | E14: 0 | G14: 11 | H14: = | I14: Justified Land Cost (including Acquisition Costs) | J14: =$L$90 -> 0
B15: 12 | C15: = | D15: Potential Rental Income | E15: 0
B16: Minimum Rents Per Square Foot Needed to Achieve Target | G16: Justified Land Cost Breakdown
B17: 13 | C17: Weighted Average Rent Per Square Foot | E17: =H101 -> 0 | G17: 12 | H17: Per Acre (Including Acquisition Costs) | J17: =$L$91 -> 0
B18: 14 | C18: Category "A" Space Rent Per Square Foot | E18: =H102 -> 0 | G18: 13 | H18: Per Square Foot (Including Acquisition Costs) | J18: =$L$92 -> 0
B19: 15 | C19: Category "B" Space Rent Per Square Foot | E19: =H103 -> 0 | G19: 14 | H19: Total Cost (Including Acquisition Costs) | J19: =$L$90 -> 0
B20: 16 | C20: Category "C" Space Rent Per Square Foot | E20: =H104 -> 0
C80: =IF(('(4)Income & Expense Input'!D5+'(4)Income & Expense Input'!D8+'(4)Income & Expense Input'!D11)=0,0,(('(4)Income & Expense Input'!D5*'(4)Income & Expense Input'!D6)+('(4)Income & Expense Input'!D8*'(4)Income & Expense Input'!D9)+('(4)Income & Expense Input'!D11*'(4)Income & Expense Input'!D12))/('(4)Income & Expense Input'!D5+'(4)Income & Expense Input'!D8+'(4)Income & Expense Input'!D11)) -> 6.62 | J80: ='(9)Annual Cash Flow Projection'!D8 -> 3310000 | L80: 0
C81: =IF('(9)Annual Cash Flow Projection'!D8=0,0,('(9)Annual Cash Flow Projection'!D8-'(9)Annual Cash Flow Projection'!D12)/'(9)Annual Cash Flow Projection'!D8) -> 0.085 | E81: =IF(C86=0,0,(C86-C94)/C86) -> 0.348408985 | J81: =SUM('(9)Annual Cash Flow Projection'!D9:D11) -> 281350 | L81: 0
C82: =IF(('(4)Income & Expense Input'!D5+'(4)Income & Expense Input'!D8+'(4)Income & Expense Input'!D11)=0,0,(('(4)Income & Expense Input'!D5*'(4)Income & Expense Input'!D7+'(4)Income & Expense Input'!D8*'(4)Income & Expense Input'!D10+'(4)Income & Expense Input'!D11*'(4)Income & Expense Input'!D13))/('(4)Income & Expense Input'!D5+'(4)Income & Expense Input'!D8+'(4)Income & Expense Input'!D11)) -> 0.085 | J82: =J80-J81 -> 3028650 | L82: 0
B83: =C121 -> 500000 | C83: ='(4)Income & Expense Input'!D6 -> 6.62 | D83: =B83*C83 -> 3310000 | J83: =SUM('(9)Annual Cash Flow Projection'!D16:D22)+SUM('(9)Annual Cash Flow Projection'!D24:D30)+SUM('(9)Annual Cash Flow Projection'!D32:D38) -> 0 | L83: 0
B84: =C122 -> 0 | C84: ='(4)Income & Expense Input'!D9 -> 0 | D84: =B84*C84 -> 0 | J84: =J82+J83 -> 3028650 | L84: 0
B85: =C123 -> 0 | C85: ='(4)Income & Expense Input'!D12 -> 0 | D85: =B85*C85 -> 0 | J85: =SUM('(9)Annual Cash Flow Projection'!D41:D47) -> 0 | L85: 0
C86: =IF(C124=0,0,D86/C124) -> 6.62 | D86: =D83+D84+D85 -> 3310000 | J86: =J84-J85 -> 3028650 | L86: 0
J87: ='(2)Dev.-Inv. & Lender Input'!D5+'(2)Dev.-Inv. & Lender Input'!D24/(1-'(2)Dev.-Inv. & Lender Input'!D25)-'(2)Dev.-Inv. & Lender Input'!D24+'(2)Dev.-Inv. & Lender Input'!D24 -> 0.08132653061 | L87: 0
B88: =C121 -> 500000 | C88: =C83*(1-E81) -> 4.313532519 | D88: =B88*C88 -> 2156766.26 | J88: =IF(J87=0,0,J86/J87) -> 37240614.81 | L88: 0
B89: =C122 -> 0 | C89: =C84*(1-E81) -> 0 | D89: =B89*C89 -> 0 | F89: ='(2)Dev.-Inv. & Lender Input'!D24 -> 0.065 | H89: 0 | J89: =' (6)Development Budget'!G61-' (6)Development Budget'!G13 -> 21437650 | L89: 0
B90: =C123 -> 0 | C90: =C85*(1-E81) -> 0 | D90: =B90*C90 -> 0 | F90: =F89/(1-'(2)Dev.-Inv. & Lender Input'!D25)-'(8)Rent Constant Feasibility'!F89 -> 0.001326530612 | H90: 0 | J90: =J88-J89 -> 15802964.81 | L90: 0
B91: =B88+B89+B90 -> 500000 | C91: =IF(B91=0,0,D91/B91) -> 4.313532519 | D91: =D88+D89+D90 -> 2156766.26 | F91: ='(2)Dev.-Inv. & Lender Input'!D5 -> 0.015 | H91: 0 | J91: =IF(J90=0,0,IF('(3)Development Budget Input'!D7<100,J90/'(3)Development Budget Input'!D7,J90/('(3)Development Budget Input'!D7/43560))) -> 688377.1469 | L91: 0
F92: =F89+F90+F91 -> 0.08132653061 | H92: 0 | J92: =J91/43560 -> 15.80296481 | L92: 0
F93: =' (6)Development Budget'!G61 -> 24265650 | H93: 0 | J93: =' (6)Development Budget'!G61 -> 24265650 | L93: 0
C94: 4.313532519 | F94: =F92*F93 -> 1973441.128 | H94: 0 | J94: =J88-J93 -> 12974964.81 | L94: 0
C95: =B91*C94 -> 2156766.26 | E95: =C102 -> 0 | F95: =C103 -> 0 | G95: =F95+F96 -> 0 | H95: 0
C96: =C95*C81 -> 183325.1321 | E96: =C101 -> 0 | F96: =E95+E96 -> 0 | H96: 0
C97: =C95-C96 -> 1973441.128 | F97: =F94+F95+F96 -> 1973441.128 | H97: 0
C98: =('(4)Income & Expense Input'!D5*(1-'(4)Income & Expense Input'!D7))*SUM('(4)Income & Expense Input'!D24:D29)+('(4)Income & Expense Input'!D8*(1-'(4)Income & Expense Input'!D10))*SUM('(4)Income & Expense Input'!D32:D37)+('(4)Income & Expense Input'!D11*(1-'(4)Income & Expense Input'!D13))*SUM('(4)Income & Expense Input'!D40:D45) -> 0 | F98: =C99 -> 0 | H98: 0
C99: =D119 -> 0 | F99: =C98 -> 0 | G99: =F98+F99 -> 0 | H99: 0
C100: =C97+C98+C99 -> 1973441.128 | F100: =F97-F98-F99 -> 1973441.128 | H100: 0
C101: =('(4)Income & Expense Input'!D5+'(4)Income & Expense Input'!D8+'(4)Income & Expense Input'!D11)*SUM('(4)Income & Expense Input'!D15:D19) -> 0 | F101: =(F100/(1-C81))-F100 -> 183325.1321 | H101: 0
C102: =('(4)Income & Expense Input'!D5+'(4)Income & Expense Input'!D8+'(4)Income & Expense Input'!D11)*'(4)Income & Expense Input'!D20 -> 0 | F102: =F100+F101 -> 2156766.26 | H102: 0
C103: =C100*'(4)Income & Expense Input'!D21 -> 0 | F103: =IF(C124=0,0,F102/C124) -> 4.313532519 | H103: 0
C104: =C100-C101-C102-C103 -> 1973441.128 | F104: =C83*(1-E81) -> 4.313532519 | H104: 0
F105: =C84*(1-E81) -> 0
C106: =('(4)Income & Expense Input'!D5*(1-'(4)Income & Expense Input'!D7))*SUM('(4)Income & Expense Input'!D24:D29) -> 0 | F106: =C85*(1-E81) -> 0
C107: =('(4)Income & Expense Input'!D8*(1-'(4)Income & Expense Input'!D10))*SUM('(4)Income & Expense Input'!D32:D37) -> 0
C108: =('(4)Income & Expense Input'!D11*(1-'(4)Income & Expense Input'!D13))*SUM('(4)Income & Expense Input'!D40:D45) -> 0
C109: =C106+C107+C108 -> 0
C111: =C121*C88 -> 2156766.26 | D111: =C111*(1-'(4)Income & Expense Input'!D7) -> 1973441.128
C112: =C122*C89 -> 0 | D112: =C112*(1-'(4)Income & Expense Input'!D10) -> 0
C113: =C123*C90 -> 0 | D113: =C113*(1-'(4)Income & Expense Input'!D13) -> 0
C114: =C111+C112+C113 -> 2156766.26 | D114: =D111+D112+D113 -> 1973441.128
D116: =((C106+D111)/(1-'(4)Income & Expense Input'!D30))-(C106+D111) -> 0
D117: =((C107+D112)/(1-'(4)Income & Expense Input'!D38))-(C107+D112) -> 0
D118: =((C108+D113)/(1-'(4)Income & Expense Input'!D46))-(C108+D113) -> 0
D119: =D116+D117+D118 -> 0
C121: ='(4)Income & Expense Input'!D5 -> 500000
C122: ='(4)Income & Expense Input'!D8 -> 0
C123: ='(4)Income & Expense Input'!D11 -> 0
C124: =C121+C122+C123 -> 500000

Sheet (9)Annual Cash Flow Projection
B2: Annual Cash Flow Projection
B3: End of Year | D3: 1 | E3: 2 | F3: 3 | G3: 4 | H3: 5 | I3: 6 | J3: 7 | K3: 8 | L3: 9 | M3: 10 | N3: 11
B4: Potential Rental Income
B5: 1 | C5: Category "A" Space | D5: ='(4)Income & Expense Input'!D5*'(4)Income & Expense Input'!D6 -> 3310000 | E5: =D5*(1+'(4)Income & Expense Input'!E6) -> 3392750 | F5: =E5*(1+'(4)Income & Expense Input'!F6) -> 3477568.75 | G5: =F5*(1+'(4)Income & Expense Input'!G6) -> 3564507.969 | H5: =G5*(1+'(4)Income & Expense Input'!H6) -> 3653620.668 | I5: =H5*(1+'(4)Income & Expense Input'!I6) -> 3744961.185 | J5: =I5*(1+'(4)Income & Expense Input'!J6) -> 3838585.214 | K5: =J5*(1+'(4)Income & Expense Input'!K6) -> 3934549.845 | L5: =K5*(1+'(4)Income & Expense Input'!L6) -> 4032913.591 | M5: =L5*(1+'(4)Income & Expense Input'!M6) -> 4133736.431 | N5: =M5*(1+'(4)Income & Expense Input'!N6) -> 4237079.841
B6: 2 | C6: Category "B" Space | D6: ='(4)Income & Expense Input'!D8*'(4)Income & Expense Input'!D9 -> 0 | E6: =D6*(1+'(4)Income & Expense Input'!E9) -> 0 | F6: =E6*(1+'(4)Income & Expense Input'!F9) -> 0 | G6: =F6*(1+'(4)Income & Expense Input'!G9) -> 0 | H6: =G6*(1+'(4)Income & Expense Input'!H9) -> 0 | I6: =H6*(1+'(4)Income & Expense Input'!I9) -> 0 | J6: =I6*(1+'(4)Income & Expense Input'!J9) -> 0 | K6: =J6*(1+'(4)Income & Expense Input'!K9) -> 0 | L6: =K6*(1+'(4)Income & Expense Input'!L9) -> 0 | M6: =L6*(1+'(4)Income & Expense Input'!M9) -> 0 | N6: =M6*(1+'(4)Income & Expense Input'!N9) -> 0
B7: 3 | C7: Category "C" Space | D7: ='(4)Income & Expense Input'!D11*'(4)Income & Expense Input'!D12 -> 0 | E7: =D7*(1+'(4)Income & Expense Input'!E12) -> 0 | F7: =E7*(1+'(4)Income & Expense Input'!F12) -> 0 | G7: =F7*(1+'(4)Income & Expense Input'!G12) -> 0 | H7: =G7*(1+'(4)Income & Expense Input'!H12) -> 0 | I7: =H7*(1+'(4)Income & Expense Input'!I12) -> 0 | J7: =I7*(1+'(4)Income & Expense Input'!J12) -> 0 | K7: =J7*(1+'(4)Income & Expense Input'!K12) -> 0 | L7: =K7*(1+'(4)Income & Expense Input'!L12) -> 0 | M7: =L7*(1+'(4)Income & Expense Input'!M12) -> 0 | N7: =M7*(1+'(4)Income & Expense Input'!N12) -> 0
B8: 4 | C8: Total Potential Rental Income | D8: =SUM(D5:D7) -> 3310000 | E8: =SUM(E5:E7) -> 3392750 | F8: 3477568.75 | G8: 3564507.969 | H8: 3653620.668 | I8: 3744961.185 | J8: 3838585.214 | K8: 3934549.845 | L8: 4032913.591 | M8: 4133736.431 | N8: 4237079.841
B9: 5 | C9: Category "A" Space Vacancy | D9: =D5*'(4)Income & Expense Input'!D7 -> 281350 | E9: =E5*'(4)Income & Expense Input'!E7 -> 288383.75 | F9: =F5*'(4)Income & Expense Input'!F7 -> 295593.3437 | G9: =G5*'(4)Income & Expense Input'!G7 -> 302983.1773 | H9: =H5*'(4)Income & Expense Input'!H7 -> 310557.7568 | I9: =I5*'(4)Income & Expense Input'!I7 -> 318321.7007 | J9: =J5*'(4)Income & Expense Input'!J7 -> 326279.7432 | K9: =K5*'(4)Income & Expense Input'!K7 -> 334436.7368 | L9: =L5*'(4)Income & Expense Input'!L7 -> 342797.6552 | M9: =M5*'(4)Income & Expense Input'!M7 -> 351367.5966 | N9: =N5*'(4)Income & Expense Input'!N7 -> 360151.7865
B10: 6 | C10: Category "B" Space Vacancy | D10: =D6*'(4)Income & Expense Input'!D10 -> 0 | E10: =E6*'(4)Income & Expense Input'!E10 -> 0 | F10: =F6*'(4)Income & Expense Input'!F10 -> 0 | G10: =G6*'(4)Income & Expense Input'!G10 -> 0 | H10: =H6*'(4)Income & Expense Input'!H10 -> 0 | I10: =I6*'(4)Income & Expense Input'!I10 -> 0 | J10: =J6*'(4)Income & Expense Input'!J10 -> 0 | K10: =K6*'(4)Income & Expense Input'!K10 -> 0 | L10: =L6*'(4)Income & Expense Input'!L10 -> 0 | M10: =M6*'(4)Income & Expense Input'!M10 -> 0 | N10: =N6*'(4)Income & Expense Input'!N10 -> 0
B11: 7 | C11: Category "C" Space Vacancy | D11: =D7*'(4)Income & Expense Input'!D13 -> 0 | E11: =E7*'(4)Income & Expense Input'!E13 -> 0 | F11: =F7*'(4)Income & Expense Input'!F13 -> 0 | G11: =G7*'(4)Income & Expense Input'!G13 -> 0 | H11: =H7*'(4)Income & Expense Input'!H13 -> 0 | I11: =I7*'(4)Income & Expense Input'!I13 -> 0 | J11: =J7*'(4)Income & Expense Input'!J13 -> 0 | K11: =K7*'(4)Income & Expense Input'!K13 -> 0 | L11: =L7*'(4)Income & Expense Input'!L13 -> 0 | M11: =M7*'(4)Income & Expense Input'!M13 -> 0 | N11: =N7*'(4)Income & Expense Input'!N13 -> 0
B12: 8 | C12: Effective Rental Income | D12: =D8-SUM(D9:D11) -> 3028650 | E12: =E8-SUM(E9:E11) -> 3104366.25 | F12: 3181975.406 | G12: 3261524.791 | H12: 3343062.911 | I12: 3426639.484 | J12: 3512305.471 | K12: 3600113.108 | L12: 3690115.936 | M12: 3782368.834 | N12: 3876928.055
B13: 9 | C13: Weighted Average RSF | D13: =IF(('(4)Income & Expense Input'!$D$5+'(4)Income & Expense Input'!$D$8+'(4)Income & Expense Input'!$D$11)=0,0,D8/('(4)Income & Expense Input'!$D$5+'(4)Income & Expense Input'!$D$8+'(4)Income & Expense Input'!$D$11)) -> 6.62 | E13: =IF(('(4)Income & Expense Input'!$D$5+'(4)Income & Expense Input'!$D$8+'(4)Income & Expense Input'!$D$11)=0,0,E8/('(4)Income & Expense Input'!$D$5+'(4)Income & Expense Input'!$D$8+'(4)Income & Expense Input'!$D$11)) -> 6.7855 | F13: =IF(('(4)Income & Expense Input'!$D$5+'(4)Income & Expense Input'!$D$8+'(4)Income & Expense Input'!$D$11)=0,0,F8/('(4)Income & Expense Input'!$D$5+'(4)Income & Expense Input'!$D$8+'(4)Income & Expense Input'!$D$11)) -> 6.9551375 | G13: =IF(('(4)Income & Expense Input'!$D$5+'(4)Income & Expense Input'!$D$8+'(4)Income & Expense Input'!$D$11)=0,0,G8/('(4)Income & Expense Input'!$D$5+'(4)Income & Expense Input'!$D$8+'(4)Income & Expense Input'!$D$11)) -> 7.129015937 | H13: =IF(('(4)Income & Expense Input'!$D$5+'(4)Income & Expense Input'!$D$8+'(4)Income & Expense Input'!$D$11)=0,0,H8/('(4)Income & Expense Input'!$D$5+'(4)Income & Expense Input'!$D$8+'(4)Income & Expense Input'!$D$11)) -> 7.307241336 | I13: =IF(('(4)Income & Expense Input'!$D$5+'(4)Income & Expense Input'!$D$8+'(4)Income & Expense Input'!$D$11)=0,0,I8/('(4)Income & Expense Input'!$D$5+'(4)Income & Expense Input'!$D$8+'(4)Income & Expense Input'!$D$11)) -> 7.489922369 | J13: =IF(('(4)Income & Expense Input'!$D$5+'(4)Income & Expense Input'!$D$8+'(4)Income & Expense Input'!$D$11)=0,0,J8/('(4)Income & Expense Input'!$D$5+'(4)Income & Expense Input'!$D$8+'(4)Income & Expense Input'!$D$11)) -> 7.677170429 | K13: =IF(('(4)Income & Expense Input'!$D$5+'(4)Income & Expense Input'!$D$8+'(4)Income & Expense Input'!$D$11)=0,0,K8/('(4)Income & Expense Input'!$D$5+'(4)Income & Expense Input'!$D$8+'(4)Income & Expense Input'!$D$11)) -> 7.869099689 | L13: =IF(('(4)Income & Expense Input'!$D$5+'(4)Income & Expense Input'!$D$8+'(4)Income & Expense Input'!$D$11)=0,0,L8/('(4)Income & Expense Input'!$D$5+'(4)Income & Expense Input'!$D$8+'(4)Income & Expense Input'!$D$11)) -> 8.065827182 | M13: =IF(('(4)Income & Expense Input'!$D$5+'(4)Income & Expense Input'!$D$8+'(4)Income & Expense Input'!$D$11)=0,0,M8/('(4)Income & Expense Input'!$D$5+'(4)Income & Expense Input'!$D$8+'(4)Income & Expense Input'!$D$11)) -> 8.267472861 | N13: =IF(('(4)Income & Expense Input'!$D$5+'(4)Income & Expense Input'!$D$8+'(4)Income & Expense Input'!$D$11)=0,0,N8/('(4)Income & Expense Input'!$D$5+'(4)Income & Expense Input'!$D$8+'(4)Income & Expense Input'!$D$11)) -> 8.474159683
B14: 10 | C14: Weighted Average Vacancy Rate | D14: =IF(D8=0,0,SUM(D9:D11)/D8) -> 0.085 | E14: =IF(E8=0,0,SUM(E9:E11)/E8) -> 0.085 | F14: =IF(F8=0,0,SUM(F9:F11)/F8) -> 0.085 | G14: 0.085 | H14: 0.085 | I14: 0.085 | J14: 0.085 | K14: 0.085 | L14: 0.085 | M14: 0.085 | N14: 0.085
B15: Category "A" Space Pass-thrus
B16: 11 | C16: Real Estate Taxes | D16: =('(4)Income & Expense Input'!$D$5*'(4)Income & Expense Input'!D24)*(1-'(4)Income & Expense Input'!$D$7) -> 0 | E16: =(('(4)Income & Expense Input'!$D$5*'(4)Income & Expense Input'!D24)*(1+'(4)Income & Expense Input'!E24))*(1-'(4)Income & Expense Input'!$D$7) -> 0 | F16: =(('(4)Income & Expense Input'!$D$5*'(4)Income & Expense Input'!D24)*(1+'(4)Income & Expense Input'!E24)*(1+'(4)Income & Expense Input'!F24))*(1-'(4)Income & Expense Input'!$D$7) -> 0 | G16: =(('(4)Income & Expense Input'!$D$5*'(4)Income & Expense Input'!D24)*(1+'(4)Income & Expense Input'!E24)*(1+'(4)Income & Expense Input'!F24)*(1+'(4)Income & Expense Input'!G24))*(1-'(4)Income & Expense Input'!$D$7) -> 0 | H16: =(('(4)Income & Expense Input'!$D$5*'(4)Income & Expense Input'!D24)*(1+'(4)Income & Expense Input'!E24)*(1+'(4)Income & Expense Input'!F24)*(1+'(4)Income & Expense Input'!G24)*(1+'(4)Income & Expense Input'!H24))*(1-'(4)Income & Expense Input'!$D$7) -> 0 | I16: =(('(4)Income & Expense Input'!$D$5*'(4)Income & Expense Input'!D24)*(1+'(4)Income & Expense Input'!E24)*(1+'(4)Income & Expense Input'!F24)*(1+'(4)Income & Expense Input'!G24)*(1+'(4)Income & Expense Input'!H24)*(1+'(4)Income & Expense Input'!I24))*(1-'(4)Income & Expense Input'!$D$7) -> 0 | J16: =(('(4)Income & Expense Input'!$D$5*'(4)Income & Expense Input'!D24)*(1+'(4)Income & Expense Input'!E24)*(1+'(4)Income & Expense Input'!F24)*(1+'(4)Income & Expense Input'!G24)*(1+'(4)Income & Expense Input'!H24)*(1+'(4)Income & Expense Input'!I24)*(1+'(4)Income & Expense Input'!J24))*(1-'(4)Income & Expense Input'!$D$7) -> 0 | K16: =(('(4)Income & Expense Input'!$D$5*'(4)Income & Expense Input'!D24)*(1+'(4)Income & Expense Input'!E24)*(1+'(4)Income & Expense Input'!F24)*(1+'(4)Income & Expense Input'!G24)*(1+'(4)Income & Expense Input'!H24)*(1+'(4)Income & Expense Input'!I24)*(1+'(4)Income & Expense Input'!J24)*(1+'(4)Income & Expense Input'!K24))*(1-'(4)Income & Expense Input'!$D$7) -> 0 | L16: =(('(4)Income & Expense Input'!$D$5*'(4)Income & Expense Input'!D24)*(1+'(4)Income & Expense Input'!E24)*(1+'(4)Income & Expense Input'!F24)*(1+'(4)Income & Expense Input'!G24)*(1+'(4)Income & Expense Input'!H24)*(1+'(4)Income & Expense Input'!I24)*(1+'(4)Income & Expense Input'!J24)*(1+'(4)Income & Expense Input'!K24)*(1+'(4)Income & Expense Input'!L24))*(1-'(4)Income & Expense Input'!$D$7) -> 0 | M16: =(('(4)Income & Expense Input'!$D$5*'(4)Income & Expense Input'!D24)*(1+'(4)Income & Expense Input'!E24)*(1+'(4)Income & Expense Input'!F24)*(1+'(4)Income & Expense Input'!G24)*(1+'(4)Income & Expense Input'!H24)*(1+'(4)Income & Expense Input'!I24)*(1+'(4)Income & Expense Input'!J24)*(1+'(4)Income & Expense Input'!K24)*(1+'(4)Income & Expense Input'!L24)*(1+'(4)Income & Expense Input'!M24))*(1-'(4)Income & Expense Input'!$D$7) -> 0 | N16: =(('(4)Income & Expense Input'!$D$5*'(4)Income & Expense Input'!D24)*(1+'(4)Income & Expense Input'!E24)*(1+'(4)Income & Expense Input'!F24)*(1+'(4)Income & Expense Input'!G24)*(1+'(4)Income & Expense Input'!H24)*(1+'(4)Income & Expense Input'!I24)*(1+'(4)Income & Expense Input'!J24)*(1+'(4)Income & Expense Input'!K24)*(1+'(4)Income & Expense Input'!L24)*(1+'(4)Income & Expense Input'!M24)*(1+'(4)Income & Expense Input'!N24))*(1-'(4)Income & Expense Input'!$D$7) -> 0
B17: 12 | C17: Insurance | D17: =('(4)Income & Expense Input'!$D$5*'(4)Income & Expense Input'!D25)*(1-'(4)Income & Expense Input'!$D$7) -> 0 | E17: =(('(4)Income & Expense Input'!$D$5*'(4)Income & Expense Input'!D25)*(1+'(4)Income & Expense Input'!E25))*(1-'(4)Income & Expense Input'!$D$7) -> 0 | F17: =(('(4)Income & Expense Input'!$D$5*'(4)Income & Expense Input'!D25)*(1+'(4)Income & Expense Input'!E25)*(1+'(4)Income & Expense Input'!F25))*(1-'(4)Income & Expense Input'!$D$7) -> 0 | G17: =(('(4)Income & Expense Input'!$D$5*'(4)Income & Expense Input'!D25)*(1+'(4)Income & Expense Input'!E25)*(1+'(4)Income & Expense Input'!F25)*(1+'(4)Income & Expense Input'!G25))*(1-'(4)Income & Expense Input'!$D$7) -> 0 | H17: =(('(4)Income & Expense Input'!$D$5*'(4)Income & Expense Input'!D25)*(1+'(4)Income & Expense Input'!E25)*(1+'(4)Income & Expense Input'!F25)*(1+'(4)Income & Expense Input'!G25)*(1+'(4)Income & Expense Input'!H25))*(1-'(4)Income & Expense Input'!$D$7) -> 0 | I17: =(('(4)Income & Expense Input'!$D$5*'(4)Income & Expense Input'!D25)*(1+'(4)Income & Expense Input'!E25)*(1+'(4)Income & Expense Input'!F25)*(1+'(4)Income & Expense Input'!G25)*(1+'(4)Income & Expense Input'!H25)*(1+'(4)Income & Expense Input'!I25))*(1-'(4)Income & Expense Input'!$D$7) -> 0 | J17: =(('(4)Income & Expense Input'!$D$5*'(4)Income & Expense Input'!D25)*(1+'(4)Income & Expense Input'!E25)*(1+'(4)Income & Expense Input'!F25)*(1+'(4)Income & Expense Input'!G25)*(1+'(4)Income & Expense Input'!H25)*(1+'(4)Income & Expense Input'!I25)*(1+'(4)Income & Expense Input'!J25))*(1-'(4)Income & Expense Input'!$D$7) -> 0 | K17: =(('(4)Income & Expense Input'!$D$5*'(4)Income & Expense Input'!D25)*(1+'(4)Income & Expense Input'!E25)*(1+'(4)Income & Expense Input'!F25)*(1+'(4)Income & Expense Input'!G25)*(1+'(4)Income & Expense Input'!H25)*(1+'(4)Income & Expense Input'!I25)*(1+'(4)Income & Expense Input'!J25)*(1+'(4)Income & Expense Input'!K25))*(1-'(4)Income & Expense Input'!$D$7) -> 0 | L17: =(('(4)Income & Expense Input'!$D$5*'(4)Income & Expense Input'!D25)*(1+'(4)Income & Expense Input'!E25)*(1+'(4)Income & Expense Input'!F25)*(1+'(4)Income & Expense Input'!G25)*(1+'(4)Income & Expense Input'!H25)*(1+'(4)Income & Expense Input'!I25)*(1+'(4)Income & Expense Input'!J25)*(1+'(4)Income & Expense Input'!K25)*(1+'(4)Income & Expense Input'!L25))*(1-'(4)Income & Expense Input'!$D$7) -> 0 | M17: =(('(4)Income & Expense Input'!$D$5*'(4)Income & Expense Input'!D25)*(1+'(4)Income & Expense Input'!E25)*(1+'(4)Income & Expense Input'!F25)*(1+'(4)Income & Expense Input'!G25)*(1+'(4)Income & Expense Input'!H25)*(1+'(4)Income & Expense Input'!I25)*(1+'(4)Income & Expense Input'!J25)*(1+'(4)Income & Expense Input'!K25)*(1+'(4)Income & Expense Input'!L25)*(1+'(4)Income & Expense Input'!M25))*(1-'(4)Income & Expense Input'!$D$7) -> 0 | N17: =(('(4)Income & Expense Input'!$D$5*'(4)Income & Expense Input'!D25)*(1+'(4)Income & Expense Input'!E25)*(1+'(4)Income & Expense Input'!F25)*(1+'(4)Income & Expense Input'!G25)*(1+'(4)Income & Expense Input'!H25)*(1+'(4)Income & Expense Input'!I25)*(1+'(4)Income & Expense Input'!J25)*(1+'(4)Income & Expense Input'!K25)*(1+'(4)Income & Expense Input'!L25)*(1+'(4)Income & Expense Input'!M25)*(1+'(4)Income & Expense Input'!N25))*(1-'(4)Income & Expense Input'!$D$7) -> 0
B18: 13 | C18: Building Maintenance | D18: =('(4)Income & Expense Input'!$D$5*'(4)Income & Expense Input'!D26)*(1-'(4)Income & Expense Input'!$D$7) -> 0 | E18: =(('(4)Income & Expense Input'!$D$5*'(4)Income & Expense Input'!D26)*(1+'(4)Income & Expense Input'!E26))*(1-'(4)Income & Expense Input'!$D$7) -> 0 | F18: =(('(4)Income & Expense Input'!$D$5*'(4)Income & Expense Input'!D26)*(1+'(4)Income & Expense Input'!E26)*(1+'(4)Income & Expense Input'!F26))*(1-'(4)Income & Expense Input'!$D$7) -> 0 | G18: =(('(4)Income & Expense Input'!$D$5*'(4)Income & Expense Input'!D26)*(1+'(4)Income & Expense Input'!E26)*(1+'(4)Income & Expense Input'!F26)*(1+'(4)Income & Expense Input'!G26))*(1-'(4)Income & Expense Input'!$D$7) -> 0 | H18: =(('(4)Income & Expense Input'!$D$5*'(4)Income & Expense Input'!D26)*(1+'(4)Income & Expense Input'!E26)*(1+'(4)Income & Expense Input'!F26)*(1+'(4)Income & Expense Input'!G26)*(1+'(4)Income & Expense Input'!H26))*(1-'(4)Income & Expense Input'!$D$7) -> 0 | I18: =(('(4)Income & Expense Input'!$D$5*'(4)Income & Expense Input'!D26)*(1+'(4)Income & Expense Input'!E26)*(1+'(4)Income & Expense Input'!F26)*(1+'(4)Income & Expense Input'!G26)*(1+'(4)Income & Expense Input'!H26)*(1+'(4)Income & Expense Input'!I26))*(1-'(4)Income & Expense Input'!$D$7) -> 0 | J18: =(('(4)Income & Expense Input'!$D$5*'(4)Income & Expense Input'!D26)*(1+'(4)Income & Expense Input'!E26)*(1+'(4)Income & Expense Input'!F26)*(1+'(4)Income & Expense Input'!G26)*(1+'(4)Income & Expense Input'!H26)*(1+'(4)Income & Expense Input'!I26)*(1+'(4)Income & Expense Input'!J26))*(1-'(4)Income & Expense Input'!$D$7) -> 0 | K18: =(('(4)Income & Expense Input'!$D$5*'(4)Income & Expense Input'!D26)*(1+'(4)Income & Expense Input'!E26)*(1+'(4)Income & Expense Input'!F26)*(1+'(4)Income & Expense Input'!G26)*(1+'(4)Income & Expense Input'!H26)*(1+'(4)Income & Expense Input'!I26)*(1+'(4)Income & Expense Input'!J26)*(1+'(4)Income & Expense Input'!K26))*(1-'(4)Income & Expense Input'!$D$7) -> 0 | L18: =(('(4)Income & Expense Input'!$D$5*'(4)Income & Expense Input'!D26)*(1+'(4)Income & Expense Input'!E26)*(1+'(4)Income & Expense Input'!F26)*(1+'(4)Income & Expense Input'!G26)*(1+'(4)Income & Expense Input'!H26)*(1+'(4)Income & Expense Input'!I26)*(1+'(4)Income & Expense Input'!J26)*(1+'(4)Income & Expense Input'!K26)*(1+'(4)Income & Expense Input'!L26))*(1-'(4)Income & Expense Input'!$D$7) -> 0 | M18: =(('(4)Income & Expense Input'!$D$5*'(4)Income & Expense Input'!D26)*(1+'(4)Income & Expense Input'!E26)*(1+'(4)Income & Expense Input'!F26)*(1+'(4)Income & Expense Input'!G26)*(1+'(4)Income & Expense Input'!H26)*(1+'(4)Income & Expense Input'!I26)*(1+'(4)Income & Expense Input'!J26)*(1+'(4)Income & Expense Input'!K26)*(1+'(4)Income & Expense Input'!L26)*(1+'(4)Income & Expense Input'!M26))*(1-'(4)Income & Expense Input'!$D$7) -> 0 | N18: =(('(4)Income & Expense Input'!$D$5*'(4)Income & Expense Input'!D26)*(1+'(4)Income & Expense Input'!E26)*(1+'(4)Income & Expense Input'!F26)*(1+'(4)Income & Expense Input'!G26)*(1+'(4)Income & Expense Input'!H26)*(1+'(4)Income & Expense Input'!I26)*(1+'(4)Income & Expense Input'!J26)*(1+'(4)Income & Expense Input'!K26)*(1+'(4)Income & Expense Input'!L26)*(1+'(4)Income & Expense Input'!M26)*(1+'(4)Income & Expense Input'!N26))*(1-'(4)Income & Expense Input'!$D$7) -> 0
B19: 14 | C19: Common Area Utilities | D19: =('(4)Income & Expense Input'!$D$5*'(4)Income & Expense Input'!D27)*(1-'(4)Income & Expense Input'!$D$7) -> 0 | E19: =(('(4)Income & Expense Input'!$D$5*'(4)Income & Expense Input'!D27)*(1+'(4)Income & Expense Input'!E27))*(1-'(4)Income & Expense Input'!$D$7) -> 0 | F19: =(('(4)Income & Expense Input'!$D$5*'(4)Income & Expense Input'!D27)*(1+'(4)Income & Expense Input'!E27)*(1+'(4)Income & Expense Input'!F27))*(1-'(4)Income & Expense Input'!$D$7) -> 0 | G19: =(('(4)Income & Expense Input'!$D$5*'(4)Income & Expense Input'!D27)*(1+'(4)Income & Expense Input'!E27)*(1+'(4)Income & Expense Input'!F27)*(1+'(4)Income & Expense Input'!G27))*(1-'(4)Income & Expense Input'!$D$7) -> 0 | H19: =(('(4)Income & Expense Input'!$D$5*'(4)Income & Expense Input'!D27)*(1+'(4)Income & Expense Input'!E27)*(1+'(4)Income & Expense Input'!F27)*(1+'(4)Income & Expense Input'!G27)*(1+'(4)Income & Expense Input'!H27))*(1-'(4)Income & Expense Input'!$D$7) -> 0 | I19: =(('(4)Income & Expense Input'!$D$5*'(4)Income & Expense Input'!D27)*(1+'(4)Income & Expense Input'!E27)*(1+'(4)Income & Expense Input'!F27)*(1+'(4)Income & Expense Input'!G27)*(1+'(4)Income & Expense Input'!H27)*(1+'(4)Income & Expense Input'!I27))*(1-'(4)Income & Expense Input'!$D$7) -> 0 | J19: =(('(4)Income & Expense Input'!$D$5*'(4)Income & Expense Input'!D27)*(1+'(4)Income & Expense Input'!E27)*(1+'(4)Income & Expense Input'!F27)*(1+'(4)Income & Expense Input'!G27)*(1+'(4)Income & Expense Input'!H27)*(1+'(4)Income & Expense Input'!I27)*(1+'(4)Income & Expense Input'!J27))*(1-'(4)Income & Expense Input'!$D$7) -> 0 | K19: =(('(4)Income & Expense Input'!$D$5*'(4)Income & Expense Input'!D27)*(1+'(4)Income & Expense Input'!E27)*(1+'(4)Income & Expense Input'!F27)*(1+'(4)Income & Expense Input'!G27)*(1+'(4)Income & Expense Input'!H27)*(1+'(4)Income & Expense Input'!I27)*(1+'(4)Income & Expense Input'!J27)*(1+'(4)Income & Expense Input'!K27))*(1-'(4)Income & Expense Input'!$D$7) -> 0 | L19: =(('(4)Income & Expense Input'!$D$5*'(4)Income & Expense Input'!D27)*(1+'(4)Income & Expense Input'!E27)*(1+'(4)Income & Expense Input'!F27)*(1+'(4)Income & Expense Input'!G27)*(1+'(4)Income & Expense Input'!H27)*(1+'(4)Income & Expense Input'!I27)*(1+'(4)Income & Expense Input'!J27)*(1+'(4)Income & Expense Input'!K27)*(1+'(4)Income & Expense Input'!L27))*(1-'(4)Income & Expense Input'!$D$7) -> 0 | M19: =(('(4)Income & Expense Input'!$D$5*'(4)Income & Expense Input'!D27)*(1+'(4)Income & Expense Input'!E27)*(1+'(4)Income & Expense Input'!F27)*(1+'(4)Income & Expense Input'!G27)*(1+'(4)Income & Expense Input'!H27)*(1+'(4)Income & Expense Input'!I27)*(1+'(4)Income & Expense Input'!J27)*(1+'(4)Income & Expense Input'!K27)*(1+'(4)Income & Expense Input'!L27)*(1+'(4)Income & Expense Input'!M27))*(1-'(4)Income & Expense Input'!$D$7) -> 0 | N19: =(('(4)Income & Expense Input'!$D$5*'(4)Income & Expense Input'!D27)*(1+'(4)Income & Expense Input'!E27)*(1+'(4)Income & Expense Input'!F27)*(1+'(4)Income & Expense Input'!G27)*(1+'(4)Income & Expense Input'!H27)*(1+'(4)Income & Expense Input'!I27)*(1+'(4)Income & Expense Input'!J27)*(1+'(4)Income & Expense Input'!K27)*(1+'(4)Income & Expense Input'!L27)*(1+'(4)Income & Expense Input'!M27)*(1+'(4)Income & Expense Input'!N27))*(1-'(4)Income & Expense Input'!$D$7) -> 0
B20: 15 | C20: Common Area Maintenance | D20: =('(4)Income & Expense Input'!$D$5*'(4)Income & Expense Input'!D28)*(1-'(4)Income & Expense Input'!$D$7) -> 0 | E20: =(('(4)Income & Expense Input'!$D$5*'(4)Income & Expense Input'!D28)*(1+'(4)Income & Expense Input'!E28))*(1-'(4)Income & Expense Input'!$D$7) -> 0 | F20: =(('(4)Income & Expense Input'!$D$5*'(4)Income & Expense Input'!D28)*(1+'(4)Income & Expense Input'!E28)*(1+'(4)Income & Expense Input'!F28))*(1-'(4)Income & Expense Input'!$D$7) -> 0 | G20: =(('(4)Income & Expense Input'!$D$5*'(4)Income & Expense Input'!D28)*(1+'(4)Income & Expense Input'!E28)*(1+'(4)Income & Expense Input'!F28)*(1+'(4)Income & Expense Input'!G28))*(1-'(4)Income & Expense Input'!$D$7) -> 0 | H20: =(('(4)Income & Expense Input'!$D$5*'(4)Income & Expense Input'!D28)*(1+'(4)Income & Expense Input'!E28)*(1+'(4)Income & Expense Input'!F28)*(1+'(4)Income & Expense Input'!G28)*(1+'(4)Income & Expense Input'!H28))*(1-'(4)Income & Expense Input'!$D$7) -> 0 | I20: =(('(4)Income & Expense Input'!$D$5*'(4)Income & Expense Input'!D28)*(1+'(4)Income & Expense Input'!E28)*(1+'(4)Income & Expense Input'!F28)*(1+'(4)Income & Expense Input'!G28)*(1+'(4)Income & Expense Input'!H28)*(1+'(4)Income & Expense Input'!I28))*(1-'(4)Income & Expense Input'!$D$7) -> 0 | J20: =(('(4)Income & Expense Input'!$D$5*'(4)Income & Expense Input'!D28)*(1+'(4)Income & Expense Input'!E28)*(1+'(4)Income & Expense Input'!F28)*(1+'(4)Income & Expense Input'!G28)*(1+'(4)Income & Expense Input'!H28)*(1+'(4)Income & Expense Input'!I28)*(1+'(4)Income & Expense Input'!J28))*(1-'(4)Income & Expense Input'!$D$7) -> 0 | K20: =(('(4)Income & Expense Input'!$D$5*'(4)Income & Expense Input'!D28)*(1+'(4)Income & Expense Input'!E28)*(1+'(4)Income & Expense Input'!F28)*(1+'(4)Income & Expense Input'!G28)*(1+'(4)Income & Expense Input'!H28)*(1+'(4)Income & Expense Input'!I28)*(1+'(4)Income & Expense Input'!J28)*(1+'(4)Income & Expense Input'!K28))*(1-'(4)Income & Expense Input'!$D$7) -> 0 | L20: =(('(4)Income & Expense Input'!$D$5*'(4)Income & Expense Input'!D28)*(1+'(4)Income & Expense Input'!E28)*(1+'(4)Income & Expense Input'!F28)*(1+'(4)Income & Expense Input'!G28)*(1+'(4)Income & Expense Input'!H28)*(1+'(4)Income & Expense Input'!I28)*(1+'(4)Income & Expense Input'!J28)*(1+'(4)Income & Expense Input'!K28)*(1+'(4)Income & Expense Input'!L28))*(1-'(4)Income & Expense Input'!$D$7) -> 0 | M20: =(('(4)Income & Expense Input'!$D$5*'(4)Income & Expense Input'!D28)*(1+'(4)Income & Expense Input'!E28)*(1+'(4)Income & Expense Input'!F28)*(1+'(4)Income & Expense Input'!G28)*(1+'(4)Income & Expense Input'!H28)*(1+'(4)Income & Expense Input'!I28)*(1+'(4)Income & Expense Input'!J28)*(1+'(4)Income & Expense Input'!K28)*(1+'(4)Income & Expense Input'!L28)*(1+'(4)Income & Expense Input'!M28))*(1-'(4)Income & Expense Input'!$D$7) -> 0 | N20: =(('(4)Income & Expense Input'!$D$5*'(4)Income & Expense Input'!D28)*(1+'(4)Income & Expense Input'!E28)*(1+'(4)Income & Expense Input'!F28)*(1+'(4)Income & Expense Input'!G28)*(1+'(4)Income & Expense Input'!H28)*(1+'(4)Income & Expense Input'!I28)*(1+'(4)Income & Expense Input'!J28)*(1+'(4)Income & Expense Input'!K28)*(1+'(4)Income & Expense Input'!L28)*(1+'(4)Income & Expense Input'!M28)*(1+'(4)Income & Expense Input'!N28))*(1-'(4)Income & Expense Input'!$D$7) -> 0
B21: 16 | C21: Reserve for Replacements | D21: =('(4)Income & Expense Input'!$D$5*'(4)Income & Expense Input'!D29)*(1-'(4)Income & Expense Input'!$D$7) -> 0 | E21: =(('(4)Income & Expense Input'!$D$5*'(4)Income & Expense Input'!D29)*(1+'(4)Income & Expense Input'!E29))*(1-'(4)Income & Expense Input'!$D$7) -> 0 | F21: =(('(4)Income & Expense Input'!$D$5*'(4)Income & Expense Input'!D29)*(1+'(4)Income & Expense Input'!E29)*(1+'(4)Income & Expense Input'!F29))*(1-'(4)Income & Expense Input'!$D$7) -> 0 | G21: =(('(4)Income & Expense Input'!$D$5*'(4)Income & Expense Input'!D29)*(1+'(4)Income & Expense Input'!E29)*(1+'(4)Income & Expense Input'!F29)*(1+'(4)Income & Expense Input'!G29))*(1-'(4)Income & Expense Input'!$D$7) -> 0 | H21: =(('(4)Income & Expense Input'!$D$5*'(4)Income & Expense Input'!D29)*(1+'(4)Income & Expense Input'!E29)*(1+'(4)Income & Expense Input'!F29)*(1+'(4)Income & Expense Input'!G29)*(1+'(4)Income & Expense Input'!H29))*(1-'(4)Income & Expense Input'!$D$7) -> 0 | I21: =(('(4)Income & Expense Input'!$D$5*'(4)Income & Expense Input'!D29)*(1+'(4)Income & Expense Input'!E29)*(1+'(4)Income & Expense Input'!F29)*(1+'(4)Income & Expense Input'!G29)*(1+'(4)Income & Expense Input'!H29)*(1+'(4)Income & Expense Input'!I29))*(1-'(4)Income & Expense Input'!$D$7) -> 0 | J21: =(('(4)Income & Expense Input'!$D$5*'(4)Income & Expense Input'!D29)*(1+'(4)Income & Expense Input'!E29)*(1+'(4)Income & Expense Input'!F29)*(1+'(4)Income & Expense Input'!G29)*(1+'(4)Income & Expense Input'!H29)*(1+'(4)Income & Expense Input'!I29)*(1+'(4)Income & Expense Input'!J29))*(1-'(4)Income & Expense Input'!$D$7) -> 0 | K21: =(('(4)Income & Expense Input'!$D$5*'(4)Income & Expense Input'!D29)*(1+'(4)Income & Expense Input'!E29)*(1+'(4)Income & Expense Input'!F29)*(1+'(4)Income & Expense Input'!G29)*(1+'(4)Income & Expense Input'!H29)*(1+'(4)Income & Expense Input'!I29)*(1+'(4)Income & Expense Input'!J29)*(1+'(4)Income & Expense Input'!K29))*(1-'(4)Income & Expense Input'!$D$7) -> 0 | L21: =(('(4)Income & Expense Input'!$D$5*'(4)Income & Expense Input'!D29)*(1+'(4)Income & Expense Input'!E29)*(1+'(4)Income & Expense Input'!F29)*(1+'(4)Income & Expense Input'!G29)*(1+'(4)Income & Expense Input'!H29)*(1+'(4)Income & Expense Input'!I29)*(1+'(4)Income & Expense Input'!J29)*(1+'(4)Income & Expense Input'!K29)*(1+'(4)Income & Expense Input'!L29))*(1-'(4)Income & Expense Input'!$D$7) -> 0 | M21: =(('(4)Income & Expense Input'!$D$5*'(4)Income & Expense Input'!D29)*(1+'(4)Income & Expense Input'!E29)*(1+'(4)Income & Expense Input'!F29)*(1+'(4)Income & Expense Input'!G29)*(1+'(4)Income & Expense Input'!H29)*(1+'(4)Income & Expense Input'!I29)*(1+'(4)Income & Expense Input'!J29)*(1+'(4)Income & Expense Input'!K29)*(1+'(4)Income & Expense Input'!L29)*(1+'(4)Income & Expense Input'!M29))*(1-'(4)Income & Expense Input'!$D$7) -> 0 | N21: =(('(4)Income & Expense Input'!$D$5*'(4)Income & Expense Input'!D29)*(1+'(4)Income & Expense Input'!E29)*(1+'(4)Income & Expense Input'!F29)*(1+'(4)Income & Expense Input'!G29)*(1+'(4)Income & Expense Input'!H29)*(1+'(4)Income & Expense Input'!I29)*(1+'(4)Income & Expense Input'!J29)*(1+'(4)Income & Expense Input'!K29)*(1+'(4)Income & Expense Input'!L29)*(1+'(4)Income & Expense Input'!M29)*(1+'(4)Income & Expense Input'!N29))*(1-'(4)Income & Expense Input'!$D$7) -> 0
B22: 17 | C22: Property Management | D22: =((D5-D9+SUM(D16:D21))/(1-'(4)Income & Expense Input'!D30))-(D5-D9+SUM(D16:D21)) -> 0 | E22: =((E5-E9+SUM(E16:E21))/(1-'(4)Income & Expense Input'!E30))-(E5-E9+SUM(E16:E21)) -> 0 | F22: =((F5-F9+SUM(F16:F21))/(1-'(4)Income & Expense Input'!F30))-(F5-F9+SUM(F16:F21)) -> 0 | G22: =((G5-G9+SUM(G16:G21))/(1-'(4)Income & Expense Input'!G30))-(G5-G9+SUM(G16:G21)) -> 0 | H22: =((H5-H9+SUM(H16:H21))/(1-'(4)Income & Expense Input'!H30))-(H5-H9+SUM(H16:H21)) -> 0 | I22: =((I5-I9+SUM(I16:I21))/(1-'(4)Income & Expense Input'!I30))-(I5-I9+SUM(I16:I21)) -> 0 | J22: =((J5-J9+SUM(J16:J21))/(1-'(4)Income & Expense Input'!J30))-(J5-J9+SUM(J16:J21)) -> 0 | K22: =((K5-K9+SUM(K16:K21))/(1-'(4)Income & Expense Input'!K30))-(K5-K9+SUM(K16:K21)) -> 0 | L22: =((L5-L9+SUM(L16:L21))/(1-'(4)Income & Expense Input'!L30))-(L5-L9+SUM(L16:L21)) -> 0 | M22: =((M5-M9+SUM(M16:M21))/(1-'(4)Income & Expense Input'!M30))-(M5-M9+SUM(M16:M21)) -> 0 | N22: =((N5-N9+SUM(N16:N21))/(1-'(4)Income & Expense Input'!N30))-(N5-N9+SUM(N16:N21)) -> 0
B23: Category "B" Space Pass-thrus
B24: 18 | C24: Real Estate Taxes | D24: =('(4)Income & Expense Input'!$D$8*'(4)Income & Expense Input'!D32)*(1-'(4)Income & Expense Input'!$D$10) -> 0 | E24: =(('(4)Income & Expense Input'!$D$8*'(4)Income & Expense Input'!D32)*(1+'(4)Income & Expense Input'!E32))*(1-'(4)Income & Expense Input'!$D$10) -> 0 | F24: =(('(4)Income & Expense Input'!$D$8*'(4)Income & Expense Input'!D32)*(1+'(4)Income & Expense Input'!E32)*(1+'(4)Income & Expense Input'!F32))*(1-'(4)Income & Expense Input'!$D$10) -> 0 | G24: =(('(4)Income & Expense Input'!$D$8*'(4)Income & Expense Input'!D32)*(1+'(4)Income & Expense Input'!E32)*(1+'(4)Income & Expense Input'!F32)*(1+'(4)Income & Expense Input'!G32))*(1-'(4)Income & Expense Input'!$D$10) -> 0 | H24: =(('(4)Income & Expense Input'!$D$8*'(4)Income & Expense Input'!D32)*(1+'(4)Income & Expense Input'!E32)*(1+'(4)Income & Expense Input'!F32)*(1+'(4)Income & Expense Input'!G32)*(1+'(4)Income & Expense Input'!H32))*(1-'(4)Income & Expense Input'!$D$10) -> 0 | I24: =(('(4)Income & Expense Input'!$D$8*'(4)Income & Expense Input'!D32)*(1+'(4)Income & Expense Input'!E32)*(1+'(4)Income & Expense Input'!F32)*(1+'(4)Income & Expense Input'!G32)*(1+'(4)Income & Expense Input'!H32)*(1+'(4)Income & Expense Input'!I32))*(1-'(4)Income & Expense Input'!$D$10) -> 0 | J24: =(('(4)Income & Expense Input'!$D$8*'(4)Income & Expense Input'!D32)*(1+'(4)Income & Expense Input'!E32)*(1+'(4)Income & Expense Input'!F32)*(1+'(4)Income & Expense Input'!G32)*(1+'(4)Income & Expense Input'!H32)*(1+'(4)Income & Expense Input'!I32)*(1+'(4)Income & Expense Input'!J32))*(1-'(4)Income & Expense Input'!$D$10) -> 0 | K24: =(('(4)Income & Expense Input'!$D$8*'(4)Income & Expense Input'!D32)*(1+'(4)Income & Expense Input'!E32)*(1+'(4)Income & Expense Input'!F32)*(1+'(4)Income & Expense Input'!G32)*(1+'(4)Income & Expense Input'!H32)*(1+'(4)Income & Expense Input'!I32)*(1+'(4)Income & Expense Input'!J32)*(1+'(4)Income & Expense Input'!K32))*(1-'(4)Income & Expense Input'!$D$10) -> 0 | L24: =(('(4)Income & Expense Input'!$D$8*'(4)Income & Expense Input'!D32)*(1+'(4)Income & Expense Input'!E32)*(1+'(4)Income & Expense Input'!F32)*(1+'(4)Income & Expense Input'!G32)*(1+'(4)Income & Expense Input'!H32)*(1+'(4)Income & Expense Input'!I32)*(1+'(4)Income & Expense Input'!J32)*(1+'(4)Income & Expense Input'!K32)*(1+'(4)Income & Expense Input'!L32))*(1-'(4)Income & Expense Input'!$D$10) -> 0 | M24: =(('(4)Income & Expense Input'!$D$8*'(4)Income & Expense Input'!D32)*(1+'(4)Income & Expense Input'!E32)*(1+'(4)Income & Expense Input'!F32)*(1+'(4)Income & Expense Input'!G32)*(1+'(4)Income & Expense Input'!H32)*(1+'(4)Income & Expense Input'!I32)*(1+'(4)Income & Expense Input'!J32)*(1+'(4)Income & Expense Input'!K32)*(1+'(4)Income & Expense Input'!L32)*(1+'(4)Income & Expense Input'!M32))*(1-'(4)Income & Expense Input'!$D$10) -> 0 | N24: =(('(4)Income & Expense Input'!$D$8*'(4)Income & Expense Input'!D32)*(1+'(4)Income & Expense Input'!E32)*(1+'(4)Income & Expense Input'!F32)*(1+'(4)Income & Expense Input'!G32)*(1+'(4)Income & Expense Input'!H32)*(1+'(4)Income & Expense Input'!I32)*(1+'(4)Income & Expense Input'!J32)*(1+'(4)Income & Expense Input'!K32)*(1+'(4)Income & Expense Input'!L32)*(1+'(4)Income & Expense Input'!M32)*(1+'(4)Income & Expense Input'!N32))*(1-'(4)Income & Expense Input'!$D$10) -> 0
B25: 19 | C25: Insurance | D25: =('(4)Income & Expense Input'!$D$8*'(4)Income & Expense Input'!D33)*(1-'(4)Income & Expense Input'!$D$10) -> 0 | E25: =(('(4)Income & Expense Input'!$D$8*'(4)Income & Expense Input'!D33)*(1+'(4)Income & Expense Input'!E33))*(1-'(4)Income & Expense Input'!$D$10) -> 0 | F25: =(('(4)Income & Expense Input'!$D$8*'(4)Income & Expense Input'!D33)*(1+'(4)Income & Expense Input'!E33)*(1+'(4)Income & Expense Input'!F33))*(1-'(4)Income & Expense Input'!$D$10) -> 0 | G25: =(('(4)Income & Expense Input'!$D$8*'(4)Income & Expense Input'!D33)*(1+'(4)Income & Expense Input'!E33)*(1+'(4)Income & Expense Input'!F33)*(1+'(4)Income & Expense Input'!G33))*(1-'(4)Income & Expense Input'!$D$10) -> 0 | H25: =(('(4)Income & Expense Input'!$D$8*'(4)Income & Expense Input'!D33)*(1+'(4)Income & Expense Input'!E33)*(1+'(4)Income & Expense Input'!F33)*(1+'(4)Income & Expense Input'!G33)*(1+'(4)Income & Expense Input'!H33))*(1-'(4)Income & Expense Input'!$D$10) -> 0 | I25: =(('(4)Income & Expense Input'!$D$8*'(4)Income & Expense Input'!D33)*(1+'(4)Income & Expense Input'!E33)*(1+'(4)Income & Expense Input'!F33)*(1+'(4)Income & Expense Input'!G33)*(1+'(4)Income & Expense Input'!H33)*(1+'(4)Income & Expense Input'!I33))*(1-'(4)Income & Expense Input'!$D$10) -> 0 | J25: =(('(4)Income & Expense Input'!$D$8*'(4)Income & Expense Input'!D33)*(1+'(4)Income & Expense Input'!E33)*(1+'(4)Income & Expense Input'!F33)*(1+'(4)Income & Expense Input'!G33)*(1+'(4)Income & Expense Input'!H33)*(1+'(4)Income & Expense Input'!I33)*(1+'(4)Income & Expense Input'!J33))*(1-'(4)Income & Expense Input'!$D$10) -> 0 | K25: =(('(4)Income & Expense Input'!$D$8*'(4)Income & Expense Input'!D33)*(1+'(4)Income & Expense Input'!E33)*(1+'(4)Income & Expense Input'!F33)*(1+'(4)Income & Expense Input'!G33)*(1+'(4)Income & Expense Input'!H33)*(1+'(4)Income & Expense Input'!I33)*(1+'(4)Income & Expense Input'!J33)*(1+'(4)Income & Expense Input'!K33))*(1-'(4)Income & Expense Input'!$D$10) -> 0 | L25: =(('(4)Income & Expense Input'!$D$8*'(4)Income & Expense Input'!D33)*(1+'(4)Income & Expense Input'!E33)*(1+'(4)Income & Expense Input'!F33)*(1+'(4)Income & Expense Input'!G33)*(1+'(4)Income & Expense Input'!H33)*(1+'(4)Income & Expense Input'!I33)*(1+'(4)Income & Expense Input'!J33)*(1+'(4)Income & Expense Input'!K33)*(1+'(4)Income & Expense Input'!L33))*(1-'(4)Income & Expense Input'!$D$10) -> 0 | M25: =(('(4)Income & Expense Input'!$D$8*'(4)Income & Expense Input'!D33)*(1+'(4)Income & Expense Input'!E33)*(1+'(4)Income & Expense Input'!F33)*(1+'(4)Income & Expense Input'!G33)*(1+'(4)Income & Expense Input'!H33)*(1+'(4)Income & Expense Input'!I33)*(1+'(4)Income & Expense Input'!J33)*(1+'(4)Income & Expense Input'!K33)*(1+'(4)Income & Expense Input'!L33)*(1+'(4)Income & Expense Input'!M33))*(1-'(4)Income & Expense Input'!$D$10) -> 0 | N25: =(('(4)Income & Expense Input'!$D$8*'(4)Income & Expense Input'!D33)*(1+'(4)Income & Expense Input'!E33)*(1+'(4)Income & Expense Input'!F33)*(1+'(4)Income & Expense Input'!G33)*(1+'(4)Income & Expense Input'!H33)*(1+'(4)Income & Expense Input'!I33)*(1+'(4)Income & Expense Input'!J33)*(1+'(4)Income & Expense Input'!K33)*(1+'(4)Income & Expense Input'!L33)*(1+'(4)Income & Expense Input'!M33)*(1+'(4)Income & Expense Input'!N33))*(1-'(4)Income & Expense Input'!$D$10) -> 0
B26: 20 | C26: Building Maintenance | D26: =('(4)Income & Expense Input'!$D$8*'(4)Income & Expense Input'!D34)*(1-'(4)Income & Expense Input'!$D$10) -> 0 | E26: =(('(4)Income & Expense Input'!$D$8*'(4)Income & Expense Input'!D34)*(1+'(4)Income & Expense Input'!E34))*(1-'(4)Income & Expense Input'!$D$10) -> 0 | F26: =(('(4)Income & Expense Input'!$D$8*'(4)Income & Expense Input'!D34)*(1+'(4)Income & Expense Input'!E34)*(1+'(4)Income & Expense Input'!F34))*(1-'(4)Income & Expense Input'!$D$10) -> 0 | G26: =(('(4)Income & Expense Input'!$D$8*'(4)Income & Expense Input'!D34)*(1+'(4)Income & Expense Input'!E34)*(1+'(4)Income & Expense Input'!F34)*(1+'(4)Income & Expense Input'!G34))*(1-'(4)Income & Expense Input'!$D$10) -> 0 | H26: =(('(4)Income & Expense Input'!$D$8*'(4)Income & Expense Input'!D34)*(1+'(4)Income & Expense Input'!E34)*(1+'(4)Income & Expense Input'!F34)*(1+'(4)Income & Expense Input'!G34)*(1+'(4)Income & Expense Input'!H34))*(1-'(4)Income & Expense Input'!$D$10) -> 0 | I26: =(('(4)Income & Expense Input'!$D$8*'(4)Income & Expense Input'!D34)*(1+'(4)Income & Expense Input'!E34)*(1+'(4)Income & Expense Input'!F34)*(1+'(4)Income & Expense Input'!G34)*(1+'(4)Income & Expense Input'!H34)*(1+'(4)Income & Expense Input'!I34))*(1-'(4)Income & Expense Input'!$D$10) -> 0 | J26: =(('(4)Income & Expense Input'!$D$8*'(4)Income & Expense Input'!D34)*(1+'(4)Income & Expense Input'!E34)*(1+'(4)Income & Expense Input'!F34)*(1+'(4)Income & Expense Input'!G34)*(1+'(4)Income & Expense Input'!H34)*(1+'(4)Income & Expense Input'!I34)*(1+'(4)Income & Expense Input'!J34))*(1-'(4)Income & Expense Input'!$D$10) -> 0 | K26: =(('(4)Income & Expense Input'!$D$8*'(4)Income & Expense Input'!D34)*(1+'(4)Income & Expense Input'!E34)*(1+'(4)Income & Expense Input'!F34)*(1+'(4)Income & Expense Input'!G34)*(1+'(4)Income & Expense Input'!H34)*(1+'(4)Income & Expense Input'!I34)*(1+'(4)Income & Expense Input'!J34)*(1+'(4)Income & Expense Input'!K34))*(1-'(4)Income & Expense Input'!$D$10) -> 0 | L26: =(('(4)Income & Expense Input'!$D$8*'(4)Income & Expense Input'!D34)*(1+'(4)Income & Expense Input'!E34)*(1+'(4)Income & Expense Input'!F34)*(1+'(4)Income & Expense Input'!G34)*(1+'(4)Income & Expense Input'!H34)*(1+'(4)Income & Expense Input'!I34)*(1+'(4)Income & Expense Input'!J34)*(1+'(4)Income & Expense Input'!K34)*(1+'(4)Income & Expense Input'!L34))*(1-'(4)Income & Expense Input'!$D$10) -> 0 | M26: =(('(4)Income & Expense Input'!$D$8*'(4)Income & Expense Input'!D34)*(1+'(4)Income & Expense Input'!E34)*(1+'(4)Income & Expense Input'!F34)*(1+'(4)Income & Expense Input'!G34)*(1+'(4)Income & Expense Input'!H34)*(1+'(4)Income & Expense Input'!I34)*(1+'(4)Income & Expense Input'!J34)*(1+'(4)Income & Expense Input'!K34)*(1+'(4)Income & Expense Input'!L34)*(1+'(4)Income & Expense Input'!M34))*(1-'(4)Income & Expense Input'!$D$10) -> 0 | N26: =(('(4)Income & Expense Input'!$D$8*'(4)Income & Expense Input'!D34)*(1+'(4)Income & Expense Input'!E34)*(1+'(4)Income & Expense Input'!F34)*(1+'(4)Income & Expense Input'!G34)*(1+'(4)Income & Expense Input'!H34)*(1+'(4)Income & Expense Input'!I34)*(1+'(4)Income & Expense Input'!J34)*(1+'(4)Income & Expense Input'!K34)*(1+'(4)Income & Expense Input'!L34)*(1+'(4)Income & Expense Input'!M34)*(1+'(4)Income & Expense Input'!N34))*(1-'(4)Income & Expense Input'!$D$10) -> 0
B27: 21 | C27: Common Area Utilities | D27: =('(4)Income & Expense Input'!$D$8*'(4)Income & Expense Input'!D35)*(1-'(4)Income & Expense Input'!$D$10) -> 0 | E27: =(('(4)Income & Expense Input'!$D$8*'(4)Income & Expense Input'!D35)*(1+'(4)Income & Expense Input'!E35))*(1-'(4)Income & Expense Input'!$D$10) -> 0 | F27: =(('(4)Income & Expense Input'!$D$8*'(4)Income & Expense Input'!D35)*(1+'(4)Income & Expense Input'!E35)*(1+'(4)Income & Expense Input'!F35))*(1-'(4)Income & Expense Input'!$D$10) -> 0 | G27: =(('(4)Income & Expense Input'!$D$8*'(4)Income & Expense Input'!D35)*(1+'(4)Income & Expense Input'!E35)*(1+'(4)Income & Expense Input'!F35)*(1+'(4)Income & Expense Input'!G35))*(1-'(4)Income & Expense Input'!$D$10) -> 0 | H27: =(('(4)Income & Expense Input'!$D$8*'(4)Income & Expense Input'!D35)*(1+'(4)Income & Expense Input'!E35)*(1+'(4)Income & Expense Input'!F35)*(1+'(4)Income & Expense Input'!G35)*(1+'(4)Income & Expense Input'!H35))*(1-'(4)Income & Expense Input'!$D$10) -> 0 | I27: =(('(4)Income & Expense Input'!$D$8*'(4)Income & Expense Input'!D35)*(1+'(4)Income & Expense Input'!E35)*(1+'(4)Income & Expense Input'!F35)*(1+'(4)Income & Expense Input'!G35)*(1+'(4)Income & Expense Input'!H35)*(1+'(4)Income & Expense Input'!I35))*(1-'(4)Income & Expense Input'!$D$10) -> 0 | J27: =(('(4)Income & Expense Input'!$D$8*'(4)Income & Expense Input'!D35)*(1+'(4)Income & Expense Input'!E35)*(1+'(4)Income & Expense Input'!F35)*(1+'(4)Income & Expense Input'!G35)*(1+'(4)Income & Expense Input'!H35)*(1+'(4)Income & Expense Input'!I35)*(1+'(4)Income & Expense Input'!J35))*(1-'(4)Income & Expense Input'!$D$10) -> 0 | K27: =(('(4)Income & Expense Input'!$D$8*'(4)Income & Expense Input'!D35)*(1+'(4)Income & Expense Input'!E35)*(1+'(4)Income & Expense Input'!F35)*(1+'(4)Income & Expense Input'!G35)*(1+'(4)Income & Expense Input'!H35)*(1+'(4)Income & Expense Input'!I35)*(1+'(4)Income & Expense Input'!J35)*(1+'(4)Income & Expense Input'!K35))*(1-'(4)Income & Expense Input'!$D$10) -> 0 | L27: =(('(4)Income & Expense Input'!$D$8*'(4)Income & Expense Input'!D35)*(1+'(4)Income & Expense Input'!E35)*(1+'(4)Income & Expense Input'!F35)*(1+'(4)Income & Expense Input'!G35)*(1+'(4)Income & Expense Input'!H35)*(1+'(4)Income & Expense Input'!I35)*(1+'(4)Income & Expense Input'!J35)*(1+'(4)Income & Expense Input'!K35)*(1+'(4)Income & Expense Input'!L35))*(1-'(4)Income & Expense Input'!$D$10) -> 0 | M27: =(('(4)Income & Expense Input'!$D$8*'(4)Income & Expense Input'!D35)*(1+'(4)Income & Expense Input'!E35)*(1+'(4)Income & Expense Input'!F35)*(1+'(4)Income & Expense Input'!G35)*(1+'(4)Income & Expense Input'!H35)*(1+'(4)Income & Expense Input'!I35)*(1+'(4)Income & Expense Input'!J35)*(1+'(4)Income & Expense Input'!K35)*(1+'(4)Income & Expense Input'!L35)*(1+'(4)Income & Expense Input'!M35))*(1-'(4)Income & Expense Input'!$D$10) -> 0 | N27: =(('(4)Income & Expense Input'!$D$8*'(4)Income & Expense Input'!D35)*(1+'(4)Income & Expense Input'!E35)*(1+'(4)Income & Expense Input'!F35)*(1+'(4)Income & Expense Input'!G35)*(1+'(4)Income & Expense Input'!H35)*(1+'(4)Income & Expense Input'!I35)*(1+'(4)Income & Expense Input'!J35)*(1+'(4)Income & Expense Input'!K35)*(1+'(4)Income & Expense Input'!L35)*(1+'(4)Income & Expense Input'!M35)*(1+'(4)Income & Expense Input'!N35))*(1-'(4)Income & Expense Input'!$D$10) -> 0
B28: 22 | C28: Common Area Maintenance | D28: =('(4)Income & Expense Input'!$D$8*'(4)Income & Expense Input'!D36)*(1-'(4)Income & Expense Input'!$D$10) -> 0 | E28: =(('(4)Income & Expense Input'!$D$8*'(4)Income & Expense Input'!D36)*(1+'(4)Income & Expense Input'!E36))*(1-'(4)Income & Expense Input'!$D$10) -> 0 | F28: =(('(4)Income & Expense Input'!$D$8*'(4)Income & Expense Input'!D36)*(1+'(4)Income & Expense Input'!E36)*(1+'(4)Income & Expense Input'!F36))*(1-'(4)Income & Expense Input'!$D$10) -> 0 | G28: =(('(4)Income & Expense Input'!$D$8*'(4)Income & Expense Input'!D36)*(1+'(4)Income & Expense Input'!E36)*(1+'(4)Income & Expense Input'!F36)*(1+'(4)Income & Expense Input'!G36))*(1-'(4)Income & Expense Input'!$D$10) -> 0 | H28: =(('(4)Income & Expense Input'!$D$8*'(4)Income & Expense Input'!D36)*(1+'(4)Income & Expense Input'!E36)*(1+'(4)Income & Expense Input'!F36)*(1+'(4)Income & Expense Input'!G36)*(1+'(4)Income & Expense Input'!H36))*(1-'(4)Income & Expense Input'!$D$10) -> 0 | I28: =(('(4)Income & Expense Input'!$D$8*'(4)Income & Expense Input'!D36)*(1+'(4)Income & Expense Input'!E36)*(1+'(4)Income & Expense Input'!F36)*(1+'(4)Income & Expense Input'!G36)*(1+'(4)Income & Expense Input'!H36)*(1+'(4)Income & Expense Input'!I36))*(1-'(4)Income & Expense Input'!$D$10) -> 0 | J28: =(('(4)Income & Expense Input'!$D$8*'(4)Income & Expense Input'!D36)*(1+'(4)Income & Expense Input'!E36)*(1+'(4)Income & Expense Input'!F36)*(1+'(4)Income & Expense Input'!G36)*(1+'(4)Income & Expense Input'!H36)*(1+'(4)Income & Expense Input'!I36)*(1+'(4)Income & Expense Input'!J36))*(1-'(4)Income & Expense Input'!$D$10) -> 0 | K28: =(('(4)Income & Expense Input'!$D$8*'(4)Income & Expense Input'!D36)*(1+'(4)Income & Expense Input'!E36)*(1+'(4)Income & Expense Input'!F36)*(1+'(4)Income & Expense Input'!G36)*(1+'(4)Income & Expense Input'!H36)*(1+'(4)Income & Expense Input'!I36)*(1+'(4)Income & Expense Input'!J36)*(1+'(4)Income & Expense Input'!K36))*(1-'(4)Income & Expense Input'!$D$10) -> 0 | L28: =(('(4)Income & Expense Input'!$D$8*'(4)Income & Expense Input'!D36)*(1+'(4)Income & Expense Input'!E36)*(1+'(4)Income & Expense Input'!F36)*(1+'(4)Income & Expense Input'!G36)*(1+'(4)Income & Expense Input'!H36)*(1+'(4)Income & Expense Input'!I36)*(1+'(4)Income & Expense Input'!J36)*(1+'(4)Income & Expense Input'!K36)*(1+'(4)Income & Expense Input'!L36))*(1-'(4)Income & Expense Input'!$D$10) -> 0 | M28: =(('(4)Income & Expense Input'!$D$8*'(4)Income & Expense Input'!D36)*(1+'(4)Income & Expense Input'!E36)*(1+'(4)Income & Expense Input'!F36)*(1+'(4)Income & Expense Input'!G36)*(1+'(4)Income & Expense Input'!H36)*(1+'(4)Income & Expense Input'!I36)*(1+'(4)Income & Expense Input'!J36)*(1+'(4)Income & Expense Input'!K36)*(1+'(4)Income & Expense Input'!L36)*(1+'(4)Income & Expense Input'!M36))*(1-'(4)Income & Expense Input'!$D$10) -> 0 | N28: =(('(4)Income & Expense Input'!$D$8*'(4)Income & Expense Input'!D36)*(1+'(4)Income & Expense Input'!E36)*(1+'(4)Income & Expense Input'!F36)*(1+'(4)Income & Expense Input'!G36)*(1+'(4)Income & Expense Input'!H36)*(1+'(4)Income & Expense Input'!I36)*(1+'(4)Income & Expense Input'!J36)*(1+'(4)Income & Expense Input'!K36)*(1+'(4)Income & Expense Input'!L36)*(1+'(4)Income & Expense Input'!M36)*(1+'(4)Income & Expense Input'!N36))*(1-'(4)Income & Expense Input'!$D$10) -> 0
B29: 23 | C29: Reserve for Replacements | D29: =('(4)Income & Expense Input'!$D$8*'(4)Income & Expense Input'!D37)*(1-'(4)Income & Expense Input'!$D$10) -> 0 | E29: =(('(4)Income & Expense Input'!$D$8*'(4)Income & Expense Input'!D37)*(1+'(4)Income & Expense Input'!E37))*(1-'(4)Income & Expense Input'!$D$10) -> 0 | F29: =(('(4)Income & Expense Input'!$D$8*'(4)Income & Expense Input'!D37)*(1+'(4)Income & Expense Input'!E37)*(1+'(4)Income & Expense Input'!F37))*(1-'(4)Income & Expense Input'!$D$10) -> 0 | G29: =(('(4)Income & Expense Input'!$D$8*'(4)Income & Expense Input'!D37)*(1+'(4)Income & Expense Input'!E37)*(1+'(4)Income & Expense Input'!F37)*(1+'(4)Income & Expense Input'!G37))*(1-'(4)Income & Expense Input'!$D$10) -> 0 | H29: =(('(4)Income & Expense Input'!$D$8*'(4)Income & Expense Input'!D37)*(1+'(4)Income & Expense Input'!E37)*(1+'(4)Income & Expense Input'!F37)*(1+'(4)Income & Expense Input'!G37)*(1+'(4)Income & Expense Input'!H37))*(1-'(4)Income & Expense Input'!$D$10) -> 0 | I29: =(('(4)Income & Expense Input'!$D$8*'(4)Income & Expense Input'!D37)*(1+'(4)Income & Expense Input'!E37)*(1+'(4)Income & Expense Input'!F37)*(1+'(4)Income & Expense Input'!G37)*(1+'(4)Income & Expense Input'!H37)*(1+'(4)Income & Expense Input'!I37))*(1-'(4)Income & Expense Input'!$D$10) -> 0 | J29: =(('(4)Income & Expense Input'!$D$8*'(4)Income & Expense Input'!D37)*(1+'(4)Income & Expense Input'!E37)*(1+'(4)Income & Expense Input'!F37)*(1+'(4)Income & Expense Input'!G37)*(1+'(4)Income & Expense Input'!H37)*(1+'(4)Income & Expense Input'!I37)*(1+'(4)Income & Expense Input'!J37))*(1-'(4)Income & Expense Input'!$D$10) -> 0 | K29: =(('(4)Income & Expense Input'!$D$8*'(4)Income & Expense Input'!D37)*(1+'(4)Income & Expense Input'!E37)*(1+'(4)Income & Expense Input'!F37)*(1+'(4)Income & Expense Input'!G37)*(1+'(4)Income & Expense Input'!H37)*(1+'(4)Income & Expense Input'!I37)*(1+'(4)Income & Expense Input'!J37)*(1+'(4)Income & Expense Input'!K37))*(1-'(4)Income & Expense Input'!$D$10) -> 0 | L29: =(('(4)Income & Expense Input'!$D$8*'(4)Income & Expense Input'!D37)*(1+'(4)Income & Expense Input'!E37)*(1+'(4)Income & Expense Input'!F37)*(1+'(4)Income & Expense Input'!G37)*(1+'(4)Income & Expense Input'!H37)*(1+'(4)Income & Expense Input'!I37)*(1+'(4)Income & Expense Input'!J37)*(1+'(4)Income & Expense Input'!K37)*(1+'(4)Income & Expense Input'!L37))*(1-'(4)Income & Expense Input'!$D$10) -> 0 | M29: =(('(4)Income & Expense Input'!$D$8*'(4)Income & Expense Input'!D37)*(1+'(4)Income & Expense Input'!E37)*(1+'(4)Income & Expense Input'!F37)*(1+'(4)Income & Expense Input'!G37)*(1+'(4)Income & Expense Input'!H37)*(1+'(4)Income & Expense Input'!I37)*(1+'(4)Income & Expense Input'!J37)*(1+'(4)Income & Expense Input'!K37)*(1+'(4)Income & Expense Input'!L37)*(1+'(4)Income & Expense Input'!M37))*(1-'(4)Income & Expense Input'!$D$10) -> 0 | N29: =(('(4)Income & Expense Input'!$D$8*'(4)Income & Expense Input'!D37)*(1+'(4)Income & Expense Input'!E37)*(1+'(4)Income & Expense Input'!F37)*(1+'(4)Income & Expense Input'!G37)*(1+'(4)Income & Expense Input'!H37)*(1+'(4)Income & Expense Input'!I37)*(1+'(4)Income & Expense Input'!J37)*(1+'(4)Income & Expense Input'!K37)*(1+'(4)Income & Expense Input'!L37)*(1+'(4)Income & Expense Input'!M37)*(1+'(4)Income & Expense Input'!N37))*(1-'(4)Income & Expense Input'!$D$10) -> 0
B30: 24 | C30: Property Management | D30: =((D6-D10+SUM(D24:D29))/(1-'(4)Income & Expense Input'!D38))-(D6-D10+SUM(D24:D29)) -> 0 | E30: =((E6-E10+SUM(E24:E29))/(1-'(4)Income & Expense Input'!E38))-(E6-E10+SUM(E24:E29)) -> 0 | F30: =((F6-F10+SUM(F24:F29))/(1-'(4)Income & Expense Input'!F38))-(F6-F10+SUM(F24:F29)) -> 0 | G30: =((G6-G10+SUM(G24:G29))/(1-'(4)Income & Expense Input'!G38))-(G6-G10+SUM(G24:G29)) -> 0 | H30: =((H6-H10+SUM(H24:H29))/(1-'(4)Income & Expense Input'!H38))-(H6-H10+SUM(H24:H29)) -> 0 | I30: =((I6-I10+SUM(I24:I29))/(1-'(4)Income & Expense Input'!I38))-(I6-I10+SUM(I24:I29)) -> 0 | J30: =((J6-J10+SUM(J24:J29))/(1-'(4)Income & Expense Input'!J38))-(J6-J10+SUM(J24:J29)) -> 0 | K30: =((K6-K10+SUM(K24:K29))/(1-'(4)Income & Expense Input'!K38))-(K6-K10+SUM(K24:K29)) -> 0 | L30: =((L6-L10+SUM(L24:L29))/(1-'(4)Income & Expense Input'!L38))-(L6-L10+SUM(L24:L29)) -> 0 | M30: =((M6-M10+SUM(M24:M29))/(1-'(4)Income & Expense Input'!M38))-(M6-M10+SUM(M24:M29)) -> 0 | N30: =((N6-N10+SUM(N24:N29))/(1-'(4)Income & Expense Input'!N38))-(N6-N10+SUM(N24:N29)) -> 0
B31: Category "C" Space Pass-thrus
B32: 25 | C32: Real Estate Taxes | D32: =('(4)Income & Expense Input'!$D$11*'(4)Income & Expense Input'!D40)*(1-'(4)Income & Expense Input'!$D$13) -> 0 | E32: =(('(4)Income & Expense Input'!$D$11*'(4)Income & Expense Input'!D40)*(1+'(4)Income & Expense Input'!E40))*(1-'(4)Income & Expense Input'!$D$13) -> 0 | F32: =(('(4)Income & Expense Input'!$D$11*'(4)Income & Expense Input'!D40)*(1+'(4)Income & Expense Input'!E40)*(1+'(4)Income & Expense Input'!F40))*(1-'(4)Income & Expense Input'!$D$13) -> 0 | G32: =(('(4)Income & Expense Input'!$D$11*'(4)Income & Expense Input'!D40)*(1+'(4)Income & Expense Input'!E40)*(1+'(4)Income & Expense Input'!F40)*(1+'(4)Income & Expense Input'!G40))*(1-'(4)Income & Expense Input'!$D$13) -> 0 | H32: =(('(4)Income & Expense Input'!$D$11*'(4)Income & Expense Input'!D40)*(1+'(4)Income & Expense Input'!E40)*(1+'(4)Income & Expense Input'!F40)*(1+'(4)Income & Expense Input'!G40)*(1+'(4)Income & Expense Input'!H40))*(1-'(4)Income & Expense Input'!$D$13) -> 0 | I32: =(('(4)Income & Expense Input'!$D$11*'(4)Income & Expense Input'!D40)*(1+'(4)Income & Expense Input'!E40)*(1+'(4)Income & Expense Input'!F40)*(1+'(4)Income & Expense Input'!G40)*(1+'(4)Income & Expense Input'!H40)*(1+'(4)Income & Expense Input'!I40))*(1-'(4)Income & Expense Input'!$D$13) -> 0 | J32: =(('(4)Income & Expense Input'!$D$11*'(4)Income & Expense Input'!D40)*(1+'(4)Income & Expense Input'!E40)*(1+'(4)Income & Expense Input'!F40)*(1+'(4)Income & Expense Input'!G40)*(1+'(4)Income & Expense Input'!H40)*(1+'(4)Income & Expense Input'!I40)*(1+'(4)Income & Expense Input'!J40))*(1-'(4)Income & Expense Input'!$D$13) -> 0 | K32: =(('(4)Income & Expense Input'!$D$11*'(4)Income & Expense Input'!D40)*(1+'(4)Income & Expense Input'!E40)*(1+'(4)Income & Expense Input'!F40)*(1+'(4)Income & Expense Input'!G40)*(1+'(4)Income & Expense Input'!H40)*(1+'(4)Income & Expense Input'!I40)*(1+'(4)Income & Expense Input'!J40)*(1+'(4)Income & Expense Input'!K40))*(1-'(4)Income & Expense Input'!$D$13) -> 0 | L32: =(('(4)Income & Expense Input'!$D$11*'(4)Income & Expense Input'!D40)*(1+'(4)Income & Expense Input'!E40)*(1+'(4)Income & Expense Input'!F40)*(1+'(4)Income & Expense Input'!G40)*(1+'(4)Income & Expense Input'!H40)*(1+'(4)Income & Expense Input'!I40)*(1+'(4)Income & Expense Input'!J40)*(1+'(4)Income & Expense Input'!K40)*(1+'(4)Income & Expense Input'!L40))*(1-'(4)Income & Expense Input'!$D$13) -> 0 | M32: =(('(4)Income & Expense Input'!$D$11*'(4)Income & Expense Input'!D40)*(1+'(4)Income & Expense Input'!E40)*(1+'(4)Income & Expense Input'!F40)*(1+'(4)Income & Expense Input'!G40)*(1+'(4)Income & Expense Input'!H40)*(1+'(4)Income & Expense Input'!I40)*(1+'(4)Income & Expense Input'!J40)*(1+'(4)Income & Expense Input'!K40)*(1+'(4)Income & Expense Input'!L40)*(1+'(4)Income & Expense Input'!M40))*(1-'(4)Income & Expense Input'!$D$13) -> 0 | N32: =(('(4)Income & Expense Input'!$D$11*'(4)Income & Expense Input'!D40)*(1+'(4)Income & Expense Input'!E40)*(1+'(4)Income & Expense Input'!F40)*(1+'(4)Income & Expense Input'!G40)*(1+'(4)Income & Expense Input'!H40)*(1+'(4)Income & Expense Input'!I40)*(1+'(4)Income & Expense Input'!J40)*(1+'(4)Income & Expense Input'!K40)*(1+'(4)Income & Expense Input'!L40)*(1+'(4)Income & Expense Input'!M40)*(1+'(4)Income & Expense Input'!N40))*(1-'(4)Income & Expense Input'!$D$13) -> 0
B33: 26 | C33: Insurance | D33: =('(4)Income & Expense Input'!$D$11*'(4)Income & Expense Input'!D41)*(1-'(4)Income & Expense Input'!$D$13) -> 0 | E33: =(('(4)Income & Expense Input'!$D$11*'(4)Income & Expense Input'!D41)*(1+'(4)Income & Expense Input'!E41))*(1-'(4)Income & Expense Input'!$D$13) -> 0 | F33: =(('(4)Income & Expense Input'!$D$11*'(4)Income & Expense Input'!D41)*(1+'(4)Income & Expense Input'!E41)*(1+'(4)Income & Expense Input'!F41))*(1-'(4)Income & Expense Input'!$D$13) -> 0 | G33: =(('(4)Income & Expense Input'!$D$11*'(4)Income & Expense Input'!D41)*(1+'(4)Income & Expense Input'!E41)*(1+'(4)Income & Expense Input'!F41)*(1+'(4)Income & Expense Input'!G41))*(1-'(4)Income & Expense Input'!$D$13) -> 0 | H33: =(('(4)Income & Expense Input'!$D$11*'(4)Income & Expense Input'!D41)*(1+'(4)Income & Expense Input'!E41)*(1+'(4)Income & Expense Input'!F41)*(1+'(4)Income & Expense Input'!G41)*(1+'(4)Income & Expense Input'!H41))*(1-'(4)Income & Expense Input'!$D$13) -> 0 | I33: =(('(4)Income & Expense Input'!$D$11*'(4)Income & Expense Input'!D41)*(1+'(4)Income & Expense Input'!E41)*(1+'(4)Income & Expense Input'!F41)*(1+'(4)Income & Expense Input'!G41)*(1+'(4)Income & Expense Input'!H41)*(1+'(4)Income & Expense Input'!I41))*(1-'(4)Income & Expense Input'!$D$13) -> 0 | J33: =(('(4)Income & Expense Input'!$D$11*'(4)Income & Expense Input'!D41)*(1+'(4)Income & Expense Input'!E41)*(1+'(4)Income & Expense Input'!F41)*(1+'(4)Income & Expense Input'!G41)*(1+'(4)Income & Expense Input'!H41)*(1+'(4)Income & Expense Input'!I41)*(1+'(4)Income & Expense Input'!J41))*(1-'(4)Income & Expense Input'!$D$13) -> 0 | K33: =(('(4)Income & Expense Input'!$D$11*'(4)Income & Expense Input'!D41)*(1+'(4)Income & Expense Input'!E41)*(1+'(4)Income & Expense Input'!F41)*(1+'(4)Income & Expense Input'!G41)*(1+'(4)Income & Expense Input'!H41)*(1+'(4)Income & Expense Input'!I41)*(1+'(4)Income & Expense Input'!J41)*(1+'(4)Income & Expense Input'!K41))*(1-'(4)Income & Expense Input'!$D$13) -> 0 | L33: =(('(4)Income & Expense Input'!$D$11*'(4)Income & Expense Input'!D41)*(1+'(4)Income & Expense Input'!E41)*(1+'(4)Income & Expense Input'!F41)*(1+'(4)Income & Expense Input'!G41)*(1+'(4)Income & Expense Input'!H41)*(1+'(4)Income & Expense Input'!I41)*(1+'(4)Income & Expense Input'!J41)*(1+'(4)Income & Expense Input'!K41)*(1+'(4)Income & Expense Input'!L41))*(1-'(4)Income & Expense Input'!$D$13) -> 0 | M33: =(('(4)Income & Expense Input'!$D$11*'(4)Income & Expense Input'!D41)*(1+'(4)Income & Expense Input'!E41)*(1+'(4)Income & Expense Input'!F41)*(1+'(4)Income & Expense Input'!G41)*(1+'(4)Income & Expense Input'!H41)*(1+'(4)Income & Expense Input'!I41)*(1+'(4)Income & Expense Input'!J41)*(1+'(4)Income & Expense Input'!K41)*(1+'(4)Income & Expense Input'!L41)*(1+'(4)Income & Expense Input'!M41))*(1-'(4)Income & Expense Input'!$D$13) -> 0 | N33: =(('(4)Income & Expense Input'!$D$11*'(4)Income & Expense Input'!D41)*(1+'(4)Income & Expense Input'!E41)*(1+'(4)Income & Expense Input'!F41)*(1+'(4)Income & Expense Input'!G41)*(1+'(4)Income & Expense Input'!H41)*(1+'(4)Income & Expense Input'!I41)*(1+'(4)Income & Expense Input'!J41)*(1+'(4)Income & Expense Input'!K41)*(1+'(4)Income & Expense Input'!L41)*(1+'(4)Income & Expense Input'!M41)*(1+'(4)Income & Expense Input'!N41))*(1-'(4)Income & Expense Input'!$D$13) -> 0
B34: 27 | C34: Building Maintenance | D34: =('(4)Income & Expense Input'!$D$11*'(4)Income & Expense Input'!D42)*(1-'(4)Income & Expense Input'!$D$13) -> 0 | E34: =(('(4)Income & Expense Input'!$D$11*'(4)Income & Expense Input'!D42)*(1+'(4)Income & Expense Input'!E42))*(1-'(4)Income & Expense Input'!$D$13) -> 0 | F34: =(('(4)Income & Expense Input'!$D$11*'(4)Income & Expense Input'!D42)*(1+'(4)Income & Expense Input'!E42)*(1+'(4)Income & Expense Input'!F42))*(1-'(4)Income & Expense Input'!$D$13) -> 0 | G34: =(('(4)Income & Expense Input'!$D$11*'(4)Income & Expense Input'!D42)*(1+'(4)Income & Expense Input'!E42)*(1+'(4)Income & Expense Input'!F42)*(1+'(4)Income & Expense Input'!G42))*(1-'(4)Income & Expense Input'!$D$13) -> 0 | H34: =(('(4)Income & Expense Input'!$D$11*'(4)Income & Expense Input'!D42)*(1+'(4)Income & Expense Input'!E42)*(1+'(4)Income & Expense Input'!F42)*(1+'(4)Income & Expense Input'!G42)*(1+'(4)Income & Expense Input'!H42))*(1-'(4)Income & Expense Input'!$D$13) -> 0 | I34: =(('(4)Income & Expense Input'!$D$11*'(4)Income & Expense Input'!D42)*(1+'(4)Income & Expense Input'!E42)*(1+'(4)Income & Expense Input'!F42)*(1+'(4)Income & Expense Input'!G42)*(1+'(4)Income & Expense Input'!H42)*(1+'(4)Income & Expense Input'!I42))*(1-'(4)Income & Expense Input'!$D$13) -> 0 | J34: =(('(4)Income & Expense Input'!$D$11*'(4)Income & Expense Input'!D42)*(1+'(4)Income & Expense Input'!E42)*(1+'(4)Income & Expense Input'!F42)*(1+'(4)Income & Expense Input'!G42)*(1+'(4)Income & Expense Input'!H42)*(1+'(4)Income & Expense Input'!I42)*(1+'(4)Income & Expense Input'!J42))*(1-'(4)Income & Expense Input'!$D$13) -> 0 | K34: =(('(4)Income & Expense Input'!$D$11*'(4)Income & Expense Input'!D42)*(1+'(4)Income & Expense Input'!E42)*(1+'(4)Income & Expense Input'!F42)*(1+'(4)Income & Expense Input'!G42)*(1+'(4)Income & Expense Input'!H42)*(1+'(4)Income & Expense Input'!I42)*(1+'(4)Income & Expense Input'!J42)*(1+'(4)Income & Expense Input'!K42))*(1-'(4)Income & Expense Input'!$D$13) -> 0 | L34: =(('(4)Income & Expense Input'!$D$11*'(4)Income & Expense Input'!D42)*(1+'(4)Income & Expense Input'!E42)*(1+'(4)Income & Expense Input'!F42)*(1+'(4)Income & Expense Input'!G42)*(1+'(4)Income & Expense Input'!H42)*(1+'(4)Income & Expense Input'!I42)*(1+'(4)Income & Expense Input'!J42)*(1+'(4)Income & Expense Input'!K42)*(1+'(4)Income & Expense Input'!L42))*(1-'(4)Income & Expense Input'!$D$13) -> 0 | M34: =(('(4)Income & Expense Input'!$D$11*'(4)Income & Expense Input'!D42)*(1+'(4)Income & Expense Input'!E42)*(1+'(4)Income & Expense Input'!F42)*(1+'(4)Income & Expense Input'!G42)*(1+'(4)Income & Expense Input'!H42)*(1+'(4)Income & Expense Input'!I42)*(1+'(4)Income & Expense Input'!J42)*(1+'(4)Income & Expense Input'!K42)*(1+'(4)Income & Expense Input'!L42)*(1+'(4)Income & Expense Input'!M42))*(1-'(4)Income & Expense Input'!$D$13) -> 0 | N34: =(('(4)Income & Expense Input'!$D$11*'(4)Income & Expense Input'!D42)*(1+'(4)Income & Expense Input'!E42)*(1+'(4)Income & Expense Input'!F42)*(1+'(4)Income & Expense Input'!G42)*(1+'(4)Income & Expense Input'!H42)*(1+'(4)Income & Expense Input'!I42)*(1+'(4)Income & Expense Input'!J42)*(1+'(4)Income & Expense Input'!K42)*(1+'(4)Income & Expense Input'!L42)*(1+'(4)Income & Expense Input'!M42)*(1+'(4)Income & Expense Input'!N42))*(1-'(4)Income & Expense Input'!$D$13) -> 0
B35: 28 | C35: Common Area Utilities | D35: =('(4)Income & Expense Input'!$D$11*'(4)Income & Expense Input'!D43)*(1-'(4)Income & Expense Input'!$D$13) -> 0 | E35: =(('(4)Income & Expense Input'!$D$11*'(4)Income & Expense Input'!D43)*(1+'(4)Income & Expense Input'!E43))*(1-'(4)Income & Expense Input'!$D$13) -> 0 | F35: =(('(4)Income & Expense Input'!$D$11*'(4)Income & Expense Input'!D43)*(1+'(4)Income & Expense Input'!E43)*(1+'(4)Income & Expense Input'!F43))*(1-'(4)Income & Expense Input'!$D$13) -> 0 | G35: =(('(4)Income & Expense Input'!$D$11*'(4)Income & Expense Input'!D43)*(1+'(4)Income & Expense Input'!E43)*(1+'(4)Income & Expense Input'!F43)*(1+'(4)Income & Expense Input'!G43))*(1-'(4)Income & Expense Input'!$D$13) -> 0 | H35: =(('(4)Income & Expense Input'!$D$11*'(4)Income & Expense Input'!D43)*(1+'(4)Income & Expense Input'!E43)*(1+'(4)Income & Expense Input'!F43)*(1+'(4)Income & Expense Input'!G43)*(1+'(4)Income & Expense Input'!H43))*(1-'(4)Income & Expense Input'!$D$13) -> 0 | I35: =(('(4)Income & Expense Input'!$D$11*'(4)Income & Expense Input'!D43)*(1+'(4)Income & Expense Input'!E43)*(1+'(4)Income & Expense Input'!F43)*(1+'(4)Income & Expense Input'!G43)*(1+'(4)Income & Expense Input'!H43)*(1+'(4)Income & Expense Input'!I43))*(1-'(4)Income & Expense Input'!$D$13) -> 0 | J35: =(('(4)Income & Expense Input'!$D$11*'(4)Income & Expense Input'!D43)*(1+'(4)Income & Expense Input'!E43)*(1+'(4)Income & Expense Input'!F43)*(1+'(4)Income & Expense Input'!G43)*(1+'(4)Income & Expense Input'!H43)*(1+'(4)Income & Expense Input'!I43)*(1+'(4)Income & Expense Input'!J43))*(1-'(4)Income & Expense Input'!$D$13) -> 0 | K35: =(('(4)Income & Expense Input'!$D$11*'(4)Income & Expense Input'!D43)*(1+'(4)Income & Expense Input'!E43)*(1+'(4)Income & Expense Input'!F43)*(1+'(4)Income & Expense Input'!G43)*(1+'(4)Income & Expense Input'!H43)*(1+'(4)Income & Expense Input'!I43)*(1+'(4)Income & Expense Input'!J43)*(1+'(4)Income & Expense Input'!K43))*(1-'(4)Income & Expense Input'!$D$13) -> 0 | L35: =(('(4)Income & Expense Input'!$D$11*'(4)Income & Expense Input'!D43)*(1+'(4)Income & Expense Input'!E43)*(1+'(4)Income & Expense Input'!F43)*(1+'(4)Income & Expense Input'!G43)*(1+'(4)Income & Expense Input'!H43)*(1+'(4)Income & Expense Input'!I43)*(1+'(4)Income & Expense Input'!J43)*(1+'(4)Income & Expense Input'!K43)*(1+'(4)Income & Expense Input'!L43))*(1-'(4)Income & Expense Input'!$D$13) -> 0 | M35: =(('(4)Income & Expense Input'!$D$11*'(4)Income & Expense Input'!D43)*(1+'(4)Income & Expense Input'!E43)*(1+'(4)Income & Expense Input'!F43)*(1+'(4)Income & Expense Input'!G43)*(1+'(4)Income & Expense Input'!H43)*(1+'(4)Income & Expense Input'!I43)*(1+'(4)Income & Expense Input'!J43)*(1+'(4)Income & Expense Input'!K43)*(1+'(4)Income & Expense Input'!L43)*(1+'(4)Income & Expense Input'!M43))*(1-'(4)Income & Expense Input'!$D$13) -> 0 | N35: =(('(4)Income & Expense Input'!$D$11*'(4)Income & Expense Input'!D43)*(1+'(4)Income & Expense Input'!E43)*(1+'(4)Income & Expense Input'!F43)*(1+'(4)Income & Expense Input'!G43)*(1+'(4)Income & Expense Input'!H43)*(1+'(4)Income & Expense Input'!I43)*(1+'(4)Income & Expense Input'!J43)*(1+'(4)Income & Expense Input'!K43)*(1+'(4)Income & Expense Input'!L43)*(1+'(4)Income & Expense Input'!M43)*(1+'(4)Income & Expense Input'!N43))*(1-'(4)Income & Expense Input'!$D$13) -> 0
B36: 29 | C36: Common Area Maintenance | D36: =('(4)Income & Expense Input'!$D$11*'(4)Income & Expense Input'!D44)*(1-'(4)Income & Expense Input'!$D$13) -> 0 | E36: =(('(4)Income & Expense Input'!$D$11*'(4)Income & Expense Input'!D44)*(1+'(4)Income & Expense Input'!E44))*(1-'(4)Income & Expense Input'!$D$13) -> 0 | F36: =(('(4)Income & Expense Input'!$D$11*'(4)Income & Expense Input'!D44)*(1+'(4)Income & Expense Input'!E44)*(1+'(4)Income & Expense Input'!F44))*(1-'(4)Income & Expense Input'!$D$13) -> 0 | G36: =(('(4)Income & Expense Input'!$D$11*'(4)Income & Expense Input'!D44)*(1+'(4)Income & Expense Input'!E44)*(1+'(4)Income & Expense Input'!F44)*(1+'(4)Income & Expense Input'!G44))*(1-'(4)Income & Expense Input'!$D$13) -> 0 | H36: =(('(4)Income & Expense Input'!$D$11*'(4)Income & Expense Input'!D44)*(1+'(4)Income & Expense Input'!E44)*(1+'(4)Income & Expense Input'!F44)*(1+'(4)Income & Expense Input'!G44)*(1+'(4)Income & Expense Input'!H44))*(1-'(4)Income & Expense Input'!$D$13) -> 0 | I36: =(('(4)Income & Expense Input'!$D$11*'(4)Income & Expense Input'!D44)*(1+'(4)Income & Expense Input'!E44)*(1+'(4)Income & Expense Input'!F44)*(1+'(4)Income & Expense Input'!G44)*(1+'(4)Income & Expense Input'!H44)*(1+'(4)Income & Expense Input'!I44))*(1-'(4)Income & Expense Input'!$D$13) -> 0 | J36: =(('(4)Income & Expense Input'!$D$11*'(4)Income & Expense Input'!D44)*(1+'(4)Income & Expense Input'!E44)*(1+'(4)Income & Expense Input'!F44)*(1+'(4)Income & Expense Input'!G44)*(1+'(4)Income & Expense Input'!H44)*(1+'(4)Income & Expense Input'!I44)*(1+'(4)Income & Expense Input'!J44))*(1-'(4)Income & Expense Input'!$D$13) -> 0 | K36: =(('(4)Income & Expense Input'!$D$11*'(4)Income & Expense Input'!D44)*(1+'(4)Income & Expense Input'!E44)*(1+'(4)Income & Expense Input'!F44)*(1+'(4)Income & Expense Input'!G44)*(1+'(4)Income & Expense Input'!H44)*(1+'(4)Income & Expense Input'!I44)*(1+'(4)Income & Expense Input'!J44)*(1+'(4)Income & Expense Input'!K44))*(1-'(4)Income & Expense Input'!$D$13) -> 0 | L36: =(('(4)Income & Expense Input'!$D$11*'(4)Income & Expense Input'!D44)*(1+'(4)Income & Expense Input'!E44)*(1+'(4)Income & Expense Input'!F44)*(1+'(4)Income & Expense Input'!G44)*(1+'(4)Income & Expense Input'!H44)*(1+'(4)Income & Expense Input'!I44)*(1+'(4)Income & Expense Input'!J44)*(1+'(4)Income & Expense Input'!K44)*(1+'(4)Income & Expense Input'!L44))*(1-'(4)Income & Expense Input'!$D$13) -> 0 | M36: =(('(4)Income & Expense Input'!$D$11*'(4)Income & Expense Input'!D44)*(1+'(4)Income & Expense Input'!E44)*(1+'(4)Income & Expense Input'!F44)*(1+'(4)Income & Expense Input'!G44)*(1+'(4)Income & Expense Input'!H44)*(1+'(4)Income & Expense Input'!I44)*(1+'(4)Income & Expense Input'!J44)*(1+'(4)Income & Expense Input'!K44)*(1+'(4)Income & Expense Input'!L44)*(1+'(4)Income & Expense Input'!M44))*(1-'(4)Income & Expense Input'!$D$13) -> 0 | N36: =(('(4)Income & Expense Input'!$D$11*'(4)Income & Expense Input'!D44)*(1+'(4)Income & Expense Input'!E44)*(1+'(4)Income & Expense Input'!F44)*(1+'(4)Income & Expense Input'!G44)*(1+'(4)Income & Expense Input'!H44)*(1+'(4)Income & Expense Input'!I44)*(1+'(4)Income & Expense Input'!J44)*(1+'(4)Income & Expense Input'!K44)*(1+'(4)Income & Expense Input'!L44)*(1+'(4)Income & Expense Input'!M44)*(1+'(4)Income & Expense Input'!N44))*(1-'(4)Income & Expense Input'!$D$13) -> 0
B37: 30 | C37: Reserve for Replacements | D37: =('(4)Income & Expense Input'!$D$11*'(4)Income & Expense Input'!D45)*(1-'(4)Income & Expense Input'!$D$13) -> 0 | E37: =(('(4)Income & Expense Input'!$D$11*'(4)Income & Expense Input'!D45)*(1+'(4)Income & Expense Input'!E45))*(1-'(4)Income & Expense Input'!$D$13) -> 0 | F37: =(('(4)Income & Expense Input'!$D$11*'(4)Income & Expense Input'!D45)*(1+'(4)Income & Expense Input'!E45)*(1+'(4)Income & Expense Input'!F45))*(1-'(4)Income & Expense Input'!$D$13) -> 0 | G37: =(('(4)Income & Expense Input'!$D$11*'(4)Income & Expense Input'!D45)*(1+'(4)Income & Expense Input'!E45)*(1+'(4)Income & Expense Input'!F45)*(1+'(4)Income & Expense Input'!G45))*(1-'(4)Income & Expense Input'!$D$13) -> 0 | H37: =(('(4)Income & Expense Input'!$D$11*'(4)Income & Expense Input'!D45)*(1+'(4)Income & Expense Input'!E45)*(1+'(4)Income & Expense Input'!F45)*(1+'(4)Income & Expense Input'!G45)*(1+'(4)Income & Expense Input'!H45))*(1-'(4)Income & Expense Input'!$D$13) -> 0 | I37: =(('(4)Income & Expense Input'!$D$11*'(4)Income & Expense Input'!D45)*(1+'(4)Income & Expense Input'!E45)*(1+'(4)Income & Expense Input'!F45)*(1+'(4)Income & Expense Input'!G45)*(1+'(4)Income & Expense Input'!H45)*(1+'(4)Income & Expense Input'!I45))*(1-'(4)Income & Expense Input'!$D$13) -> 0 | J37: =(('(4)Income & Expense Input'!$D$11*'(4)Income & Expense Input'!D45)*(1+'(4)Income & Expense Input'!E45)*(1+'(4)Income & Expense Input'!F45)*(1+'(4)Income & Expense Input'!G45)*(1+'(4)Income & Expense Input'!H45)*(1+'(4)Income & Expense Input'!I45)*(1+'(4)Income & Expense Input'!J45))*(1-'(4)Income & Expense Input'!$D$13) -> 0 | K37: =(('(4)Income & Expense Input'!$D$11*'(4)Income & Expense Input'!D45)*(1+'(4)Income & Expense Input'!E45)*(1+'(4)Income & Expense Input'!F45)*(1+'(4)Income & Expense Input'!G45)*(1+'(4)Income & Expense Input'!H45)*(1+'(4)Income & Expense Input'!I45)*(1+'(4)Income & Expense Input'!J45)*(1+'(4)Income & Expense Input'!K45))*(1-'(4)Income & Expense Input'!$D$13) -> 0 | L37: =(('(4)Income & Expense Input'!$D$11*'(4)Income & Expense Input'!D45)*(1+'(4)Income & Expense Input'!E45)*(1+'(4)Income & Expense Input'!F45)*(1+'(4)Income & Expense Input'!G45)*(1+'(4)Income & Expense Input'!H45)*(1+'(4)Income & Expense Input'!I45)*(1+'(4)Income & Expense Input'!J45)*(1+'(4)Income & Expense Input'!K45)*(1+'(4)Income & Expense Input'!L45))*(1-'(4)Income & Expense Input'!$D$13) -> 0 | M37: =(('(4)Income & Expense Input'!$D$11*'(4)Income & Expense Input'!D45)*(1+'(4)Income & Expense Input'!E45)*(1+'(4)Income & Expense Input'!F45)*(1+'(4)Income & Expense Input'!G45)*(1+'(4)Income & Expense Input'!H45)*(1+'(4)Income & Expense Input'!I45)*(1+'(4)Income & Expense Input'!J45)*(1+'(4)Income & Expense Input'!K45)*(1+'(4)Income & Expense Input'!L45)*(1+'(4)Income & Expense Input'!M45))*(1-'(4)Income & Expense Input'!$D$13) -> 0 | N37: =(('(4)Income & Expense Input'!$D$11*'(4)Income & Expense Input'!D45)*(1+'(4)Income & Expense Input'!E45)*(1+'(4)Income & Expense Input'!F45)*(1+'(4)Income & Expense Input'!G45)*(1+'(4)Income & Expense Input'!H45)*(1+'(4)Income & Expense Input'!I45)*(1+'(4)Income & Expense Input'!J45)*(1+'(4)Income & Expense Input'!K45)*(1+'(4)Income & Expense Input'!L45)*(1+'(4)Income & Expense Input'!M45)*(1+'(4)Income & Expense Input'!N45))*(1-'(4)Income & Expense Input'!$D$13) -> 0
B38: 31 | C38: Property Management | D38: =((D7-D11+SUM(D32:D37))/(1-'(4)Income & Expense Input'!D46))-(D7-D11+SUM(D32:D37)) -> 0 | E38: =((E7-E11+SUM(E32:E37))/(1-'(4)Income & Expense Input'!E46))-(E7-E11+SUM(E32:E37)) -> 0 | F38: =((F7-F11+SUM(F32:F37))/(1-'(4)Income & Expense Input'!F46))-(F7-F11+SUM(F32:F37)) -> 0 | G38: =((G7-G11+SUM(G32:G37))/(1-'(4)Income & Expense Input'!G46))-(G7-G11+SUM(G32:G37)) -> 0 | H38: =((H7-H11+SUM(H32:H37))/(1-'(4)Income & Expense Input'!H46))-(H7-H11+SUM(H32:H37)) -> 0 | I38: =((I7-I11+SUM(I32:I37))/(1-'(4)Income & Expense Input'!I46))-(I7-I11+SUM(I32:I37)) -> 0 | J38: =((J7-J11+SUM(J32:J37))/(1-'(4)Income & Expense Input'!J46))-(J7-J11+SUM(J32:J37)) -> 0 | K38: =((K7-K11+SUM(K32:K37))/(1-'(4)Income & Expense Input'!K46))-(K7-K11+SUM(K32:K37)) -> 0 | L38: =((L7-L11+SUM(L32:L37))/(1-'(4)Income & Expense Input'!L46))-(L7-L11+SUM(L32:L37)) -> 0 | M38: =((M7-M11+SUM(M32:M37))/(1-'(4)Income & Expense Input'!M46))-(M7-M11+SUM(M32:M37)) -> 0 | N38: =((N7-N11+SUM(N32:N37))/(1-'(4)Income & Expense Input'!N46))-(N7-N11+SUM(N32:N37)) -> 0
B39: 32 | C39: Gross Operating Income | D39: =D12+SUM(D16:D22)+SUM(D24:D30)+SUM(D32:D38) -> 3028650 | E39: =E12+SUM(E16:E22)+SUM(E24:E30)+SUM(E32:E38) -> 3104366.25 | F39: 3181975.406 | G39: 3261524.791 | H39: 3343062.911 | I39: 3426639.484 | J39: 3512305.471 | K39: 3600113.108 | L39: 3690115.936 | M39: 3782368.834 | N39: 3876928.055
B40: Operating Expenses
B41: 33 | C41: Real Estate Taxes | D41: =('(4)Income & Expense Input'!$D$5+'(4)Income & Expense Input'!$D$8+'(4)Income & Expense Input'!$D$11)*'(4)Income & Expense Input'!D15 -> 0 | E41: =D41*(1+'(4)Income & Expense Input'!E15) -> 0 | F41: =E41*(1+'(4)Income & Expense Input'!F15) -> 0 | G41: =F41*(1+'(4)Income & Expense Input'!G15) -> 0 | H41: =G41*(1+'(4)Income & Expense Input'!H15) -> 0 | I41: =H41*(1+'(4)Income & Expense Input'!I15) -> 0 | J41: =I41*(1+'(4)Income & Expense Input'!J15) -> 0 | K41: =J41*(1+'(4)Income & Expense Input'!K15) -> 0 | L41: =K41*(1+'(4)Income & Expense Input'!L15) -> 0 | M41: =L41*(1+'(4)Income & Expense Input'!M15) -> 0 | N41: =M41*(1+'(4)Income & Expense Input'!N15) -> 0
B42: 34 | C42: Insurance | D42: =('(4)Income & Expense Input'!$D$5+'(4)Income & Expense Input'!$D$8+'(4)Income & Expense Input'!$D$11)*'(4)Income & Expense Input'!D16 -> 0 | E42: =D42*(1+'(4)Income & Expense Input'!E16) -> 0 | F42: =E42*(1+'(4)Income & Expense Input'!F16) -> 0 | G42: =F42*(1+'(4)Income & Expense Input'!G16) -> 0 | H42: =G42*(1+'(4)Income & Expense Input'!H16) -> 0 | I42: =H42*(1+'(4)Income & Expense Input'!I16) -> 0 | J42: =I42*(1+'(4)Income & Expense Input'!J16) -> 0 | K42: =J42*(1+'(4)Income & Expense Input'!K16) -> 0 | L42: =K42*(1+'(4)Income & Expense Input'!L16) -> 0 | M42: =L42*(1+'(4)Income & Expense Input'!M16) -> 0 | N42: =M42*(1+'(4)Income & Expense Input'!N16) -> 0
B43: 35 | C43: Building Maintenance | D43: =('(4)Income & Expense Input'!$D$5+'(4)Income & Expense Input'!$D$8+'(4)Income & Expense Input'!$D$11)*'(4)Income & Expense Input'!D17 -> 0 | E43: =D43*(1+'(4)Income & Expense Input'!E17) -> 0 | F43: =E43*(1+'(4)Income & Expense Input'!F17) -> 0 | G43: =F43*(1+'(4)Income & Expense Input'!G17) -> 0 | H43: =G43*(1+'(4)Income & Expense Input'!H17) -> 0 | I43: =H43*(1+'(4)Income & Expense Input'!I17) -> 0 | J43: =I43*(1+'(4)Income & Expense Input'!J17) -> 0 | K43: =J43*(1+'(4)Income & Expense Input'!K17) -> 0 | L43: =K43*(1+'(4)Income & Expense Input'!L17) -> 0 | M43: =L43*(1+'(4)Income & Expense Input'!M17) -> 0 | N43: =M43*(1+'(4)Income & Expense Input'!N17) -> 0
B44: 36 | C44: Common Area Utilities | D44: =('(4)Income & Expense Input'!$D$5+'(4)Income & Expense Input'!$D$8+'(4)Income & Expense Input'!$D$11)*'(4)Income & Expense Input'!D18 -> 0 | E44: =D44*(1+'(4)Income & Expense Input'!E18) -> 0 | F44: =E44*(1+'(4)Income & Expense Input'!F18) -> 0 | G44: =F44*(1+'(4)Income & Expense Input'!G18) -> 0 | H44: =G44*(1+'(4)Income & Expense Input'!H18) -> 0 | I44: =H44*(1+'(4)Income & Expense Input'!I18) -> 0 | J44: =I44*(1+'(4)Income & Expense Input'!J18) -> 0 | K44: =J44*(1+'(4)Income & Expense Input'!K18) -> 0 | L44: =K44*(1+'(4)Income & Expense Input'!L18) -> 0 | M44: =L44*(1+'(4)Income & Expense Input'!M18) -> 0 | N44: =M44*(1+'(4)Income & Expense Input'!N18) -> 0
B45: 37 | C45: Common Area Maintenance | D45: =('(4)Income & Expense Input'!$D$5+'(4)Income & Expense Input'!$D$8+'(4)Income & Expense Input'!$D$11)*'(4)Income & Expense Input'!D19 -> 0 | E45: =D45*(1+'(4)Income & Expense Input'!E19) -> 0 | F45: =E45*(1+'(4)Income & Expense Input'!F19) -> 0 | G45: =F45*(1+'(4)Income & Expense Input'!G19) -> 0 | H45: =G45*(1+'(4)Income & Expense Input'!H19) -> 0 | I45: =H45*(1+'(4)Income & Expense Input'!I19) -> 0 | J45: =I45*(1+'(4)Income & Expense Input'!J19) -> 0 | K45: =J45*(1+'(4)Income & Expense Input'!K19) -> 0 | L45: =K45*(1+'(4)Income & Expense Input'!L19) -> 0 | M45: =L45*(1+'(4)Income & Expense Input'!M19) -> 0 | N45: =M45*(1+'(4)Income & Expense Input'!N19) -> 0
B46: 38 | C46: Reserve for Replacements | D46: =('(4)Income & Expense Input'!$D$5+'(4)Income & Expense Input'!$D$8+'(4)Income & Expense Input'!$D$11)*'(4)Income & Expense Input'!D20 -> 0 | E46: =D46*(1+'(4)Income & Expense Input'!E20) -> 0 | F46: =E46*(1+'(4)Income & Expense Input'!F20) -> 0 | G46: =F46*(1+'(4)Income & Expense Input'!G20) -> 0 | H46: =G46*(1+'(4)Income & Expense Input'!H20) -> 0 | I46: =H46*(1+'(4)Income & Expense Input'!I20) -> 0 | J46: =I46*(1+'(4)Income & Expense Input'!J20) -> 0 | K46: =J46*(1+'(4)Income & Expense Input'!K20) -> 0 | L46: =K46*(1+'(4)Income & Expense Input'!L20) -> 0 | M46: =L46*(1+'(4)Income & Expense Input'!M20) -> 0 | N46: =M46*(1+'(4)Income & Expense Input'!N20) -> 0
B47: 39 | C47: Property Management | D47: ='(4)Income & Expense Input'!D21*'(9)Annual Cash Flow Projection'!D39 -> 0 | E47: ='(4)Income & Expense Input'!E21*'(9)Annual Cash Flow Projection'!E39 -> 0 | F47: ='(4)Income & Expense Input'!F21*'(9)Annual Cash Flow Projection'!F39 -> 0 | G47: ='(4)Income & Expense Input'!G21*'(9)Annual Cash Flow Projection'!G39 -> 0 | H47: ='(4)Income & Expense Input'!H21*'(9)Annual Cash Flow Projection'!H39 -> 0 | I47: ='(4)Income & Expense Input'!I21*'(9)Annual Cash Flow Projection'!I39 -> 0 | J47: ='(4)Income & Expense Input'!J21*'(9)Annual Cash Flow Projection'!J39 -> 0 | K47: ='(4)Income & Expense Input'!K21*'(9)Annual Cash Flow Projection'!K39 -> 0 | L47: ='(4)Income & Expense Input'!L21*'(9)Annual Cash Flow Projection'!L39 -> 0 | M47: ='(4)Income & Expense Input'!M21*'(9)Annual Cash Flow Projection'!M39 -> 0 | N47: ='(4)Income & Expense Input'!N21*'(9)Annual Cash Flow Projection'!N39 -> 0
B48: 40 | C48: Net Operating Income | D48: =D39-SUM(D41:D47) -> 3028650 | E48: =E39-SUM(E41:E47) -> 3104366.25 | F48: 3181975.406 | G48: 3261524.791 | H48: 3343062.911 | I48: 3426639.484 | J48: 3512305.471 | K48: 3600113.108 | L48: 3690115.936 | M48: 3782368.834 | N48: 3876928.055
B49: 41 | C49: Less: Annual Debt Service | D49: =IF('(2)Dev.-Inv. & Lender Input'!$D$20=0,0,(PMT('(2)Dev.-Inv. & Lender Input'!$D$18/'(2)Dev.-Inv. & Lender Input'!$D$20,'(2)Dev.-Inv. & Lender Input'!$D$19*'(2)Dev.-Inv. & Lender Input'!$D$20,-'(5)Project Summary'!$D$31,0,0))*'(2)Dev.-Inv. & Lender Input'!$D$20) -> 1950981.561 | E49: =IF('(2)Dev.-Inv. & Lender Input'!$D$20=0,0,(PMT('(2)Dev.-Inv. & Lender Input'!$D$18/'(2)Dev.-Inv. & Lender Input'!$D$20,'(2)Dev.-Inv. & Lender Input'!$D$19*'(2)Dev.-Inv. & Lender Input'!$D$20,-'(5)Project Summary'!$D$31,0,0))*'(2)Dev.-Inv. & Lender Input'!$D$20) -> 1950981.561 | F49: =IF('(2)Dev.-Inv. & Lender Input'!$D$20=0,0,(PMT('(2)Dev.-Inv. & Lender Input'!$D$18/'(2)Dev.-Inv. & Lender Input'!$D$20,'(2)Dev.-Inv. & Lender Input'!$D$19*'(2)Dev.-Inv. & Lender Input'!$D$20,-'(5)Project Summary'!$D$31,0,0))*'(2)Dev.-Inv. & Lender Input'!$D$20) -> 1950981.561 | G49: =IF('(2)Dev.-Inv. & Lender Input'!$D$20=0,0,(PMT('(2)Dev.-Inv. & Lender Input'!$D$18/'(2)Dev.-Inv. & Lender Input'!$D$20,'(2)Dev.-Inv. & Lender Input'!$D$19*'(2)Dev.-Inv. & Lender Input'!$D$20,-'(5)Project Summary'!$D$31,0,0))*'(2)Dev.-Inv. & Lender Input'!$D$20) -> 1950981.561 | H49: =IF('(2)Dev.-Inv. & Lender Input'!$D$20=0,0,(PMT('(2)Dev.-Inv. & Lender Input'!$D$18/'(2)Dev.-Inv. & Lender Input'!$D$20,'(2)Dev.-Inv. & Lender Input'!$D$19*'(2)Dev.-Inv. & Lender Input'!$D$20,-'(5)Project Summary'!$D$31,0,0))*'(2)Dev.-Inv. & Lender Input'!$D$20) -> 1950981.561 | I49: =IF('(2)Dev.-Inv. & Lender Input'!$D$20=0,0,(PMT('(2)Dev.-Inv. & Lender Input'!$D$18/'(2)Dev.-Inv. & Lender Input'!$D$20,'(2)Dev.-Inv. & Lender Input'!$D$19*'(2)Dev.-Inv. & Lender Input'!$D$20,-'(5)Project Summary'!$D$31,0,0))*'(2)Dev.-Inv. & Lender Input'!$D$20) -> 1950981.561 | J49: =IF('(2)Dev.-Inv. & Lender Input'!$D$20=0,0,(PMT('(2)Dev.-Inv. & Lender Input'!$D$18/'(2)Dev.-Inv. & Lender Input'!$D$20,'(2)Dev.-Inv. & Lender Input'!$D$19*'(2)Dev.-Inv. & Lender Input'!$D$20,-'(5)Project Summary'!$D$31,0,0))*'(2)Dev.-Inv. & Lender Input'!$D$20) -> 1950981.561 | K49: =IF('(2)Dev.-Inv. & Lender Input'!$D$20=0,0,(PMT('(2)Dev.-Inv. & Lender Input'!$D$18/'(2)Dev.-Inv. & Lender Input'!$D$20,'(2)Dev.-Inv. & Lender Input'!$D$19*'(2)Dev.-Inv. & Lender Input'!$D$20,-'(5)Project Summary'!$D$31,0,0))*'(2)Dev.-Inv. & Lender Input'!$D$20) -> 1950981.561 | L49: =IF('(2)Dev.-Inv. & Lender Input'!$D$20=0,0,(PMT('(2)Dev.-Inv. & Lender Input'!$D$18/'(2)Dev.-Inv. & Lender Input'!$D$20,'(2)Dev.-Inv. & Lender Input'!$D$19*'(2)Dev.-Inv. & Lender Input'!$D$20,-'(5)Project Summary'!$D$31,0,0))*'(2)Dev.-Inv. & Lender Input'!$D$20) -> 1950981.561 | M49: =IF('(2)Dev.-Inv. & Lender Input'!$D$20=0,0,(PMT('(2)Dev.-Inv. & Lender Input'!$D$18/'(2)Dev.-Inv. & Lender Input'!$D$20,'(2)Dev.-Inv. & Lender Input'!$D$19*'(2)Dev.-Inv. & Lender Input'!$D$20,-'(5)Project Summary'!$D$31,0,0))*'(2)Dev.-Inv. & Lender Input'!$D$20) -> 1950981.561
B50: 42 | C50: Cash Flow Before Taxes | D50: =D48-D49 -> 1077668.439 | E50: =E48-E49 -> 1153384.689 | F50: 1230993.845 | G50: 1310543.23 | H50: 1392081.35 | I50: 1475657.923 | J50: 1561323.91 | K50: 1649131.547 | L50: 1739134.375 | M50: 1831387.273

Sheet (10)Sale Proceeds-Ratios
A2: Sale Proceeds and Measures of Investment Performance
B3: Sale Proceeds
B4: 1 | C4: Sale Price | D4: ='(5)Project Summary'!D19 -> 46595000
B5: 2 | C5: Less: Cost of Sale | D5: =D4*'(2)Dev.-Inv. & Lender Input'!D25 -> 931900
B6: 3 | C6: Less: Construction Loan | D6: ='(5)Project Summary'!D25 -> 19412000
B7: 4 | C7: Sale Proceeds Before Tax | D7: =D4-D5-D6 -> 26251100
B8: Loan Proceeds
B9: 5 | C9: New Loan | D9: ='(5)Project Summary'!D31 -> 30286000
B10: 6 | C10: Less: Old Loan | D10: ='(5)Project Summary'!D25 -> 19412000
B11: 7 | C11: Gross Loan Proceeds | D11: =D9-D10 -> 10874000
B12: 8 | C12: Less: Loan Costs | D12: ='(5)Project Summary'!D32 -> 302860
B13: 9 | C13: Net loan Proceeds | D13: =D11-D12 -> 10571140
B14: Investment Base
B15: 10 | C15: Sale Proceeds Before Tax | D15: =D7 -> 26251100
B16: 11 | C16: Less: Net Loan Proceeds | D16: =D13 -> 10571140
B17: 12 | C17: Investment Base | D17: =D15-D16 -> 15679960
B18: Financial Feasibility Measures
B19: 13 | C19: Pro Forma Profit | D19: =D4-D5-'(5)Project Summary'!D18 -> 21397450
B20: 14 | C20: Net Profit Mark-up on Cost | D20: =IF('(7)Cost Mark-up Feasibility '!J97<=0,0,('(7)Cost Mark-up Feasibility '!J88-'(7)Cost Mark-up Feasibility '!J89-'(7)Cost Mark-up Feasibility '!J97)/'(7)Cost Mark-up Feasibility '!J97) -> 0.8817844598
B21: 15 | C21: Net Rent Constant Spread | D21: =IF('(2)Dev.-Inv. & Lender Input'!D25<=0,0,('(9)Annual Cash Flow Projection'!D48/' (6)Development Budget'!G61)-('(2)Dev.-Inv. & Lender Input'!D24/(1-'(2)Dev.-Inv. & Lender Input'!D25))) -> 0.05848570397
B22: Performance Based on Hold and Refinance
B23: End of Year | D23: 1 | E23: 2 | F23: 3 | G23: 4 | H23: 5 | I23: 6 | J23: 7 | K23: 8 | L23: 9 | M23: 10
B24: 16 | C24: Cash on Cash (Investment Base) | D24: =IF($D$17<=0,0,'(9)Annual Cash Flow Projection'!D50/('(10)Sale Proceeds-Ratios'!$D$17)) -> 0.06872902986 | E24: =IF($D$17<=0,0,'(9)Annual Cash Flow Projection'!E50/('(10)Sale Proceeds-Ratios'!$D$17)) -> 0.07355788465 | F24: =IF($D$17<=0,0,'(9)Annual Cash Flow Projection'!F50/('(10)Sale Proceeds-Ratios'!$D$17)) -> 0.07850746082 | G24: =IF($D$17<=0,0,'(9)Annual Cash Flow Projection'!G50/('(10)Sale Proceeds-Ratios'!$D$17)) -> 0.08358077638 | H24: =IF($D$17<=0,0,'(9)Annual Cash Flow Projection'!H50/('(10)Sale Proceeds-Ratios'!$D$17)) -> 0.08878092484 | I24: =IF($D$17<=0,0,'(9)Annual Cash Flow Projection'!I50/('(10)Sale Proceeds-Ratios'!$D$17)) -> 0.09411107701 | J24: =IF($D$17<=0,0,'(9)Annual Cash Flow Projection'!J50/('(10)Sale Proceeds-Ratios'!$D$17)) -> 0.09957448298 | K24: =IF($D$17<=0,0,'(9)Annual Cash Flow Projection'!K50/('(10)Sale Proceeds-Ratios'!$D$17)) -> 0.1051744741 | L24: =IF($D$17<=0,0,'(9)Annual Cash Flow Projection'!L50/('(10)Sale Proceeds-Ratios'!$D$17)) -> 0.110914465 | M24: =IF($D$17<=0,0,'(9)Annual Cash Flow Projection'!M50/('(10)Sale Proceeds-Ratios'!$D$17)) -> 0.1167979557
B25: 17 | C25: Return on Asset | D25: =IF('(5)Project Summary'!$D$19=0,0,'(9)Annual Cash Flow Projection'!D48/'(5)Project Summary'!$D$19) -> 0.06499946346 | E25: =IF('(5)Project Summary'!$D$19=0,0,'(9)Annual Cash Flow Projection'!E48/'(5)Project Summary'!$D$19) -> 0.06662445005 | F25: =IF('(5)Project Summary'!$D$19=0,0,'(9)Annual Cash Flow Projection'!F48/'(5)Project Summary'!$D$19) -> 0.0682900613 | G25: =IF('(5)Project Summary'!$D$19=0,0,'(9)Annual Cash Flow Projection'!G48/'(5)Project Summary'!$D$19) -> 0.06999731283 | H25: =IF('(5)Project Summary'!$D$19=0,0,'(9)Annual Cash Flow Projection'!H48/'(5)Project Summary'!$D$19) -> 0.07174724565 | I25: =IF('(5)Project Summary'!$D$19=0,0,'(9)Annual Cash Flow Projection'!I48/'(5)Project Summary'!$D$19) -> 0.07354092679 | J25: =IF('(5)Project Summary'!$D$19=0,0,'(9)Annual Cash Flow Projection'!J48/'(5)Project Summary'!$D$19) -> 0.07537944996 | K25: =IF('(5)Project Summary'!$D$19=0,0,'(9)Annual Cash Flow Projection'!K48/'(5)Project Summary'!$D$19) -> 0.07726393621 | L25: =IF('(5)Project Summary'!$D$19=0,0,'(9)Annual Cash Flow Projection'!L48/'(5)Project Summary'!$D$19) -> 0.07919553462 | M25: =IF('(5)Project Summary'!$D$19=0,0,'(9)Annual Cash Flow Projection'!M48/'(5)Project Summary'!$D$19) -> 0.08117542298
B26: 18 | C26: Debt Service Coverage Ratio | D26: =IF('(9)Annual Cash Flow Projection'!D49=0,0,'(9)Annual Cash Flow Projection'!D48/'(9)Annual Cash Flow Projection'!D49) -> 1.552372437 | E26: =IF('(9)Annual Cash Flow Projection'!E49=0,0,'(9)Annual Cash Flow Projection'!E48/'(9)Annual Cash Flow Projection'!E49) -> 1.591181748 | F26: =IF('(9)Annual Cash Flow Projection'!F49=0,0,'(9)Annual Cash Flow Projection'!F48/'(9)Annual Cash Flow Projection'!F49) -> 1.630961291 | G26: =IF('(9)Annual Cash Flow Projection'!G49=0,0,'(9)Annual Cash Flow Projection'!G48/'(9)Annual Cash Flow Projection'!G49) -> 1.671735324 | H26: =IF('(9)Annual Cash Flow Projection'!H49=0,0,'(9)Annual Cash Flow Projection'!H48/'(9)Annual Cash Flow Projection'!H49) -> 1.713528707 | I26: =IF('(9)Annual Cash Flow Projection'!I49=0,0,'(9)Annual Cash Flow Projection'!I48/'(9)Annual Cash Flow Projection'!I49) -> 1.756366925 | J26: =IF('(9)Annual Cash Flow Projection'!J49=0,0,'(9)Annual Cash Flow Projection'!J48/'(9)Annual Cash Flow Projection'!J49) -> 1.800276098 | K26: =IF('(9)Annual Cash Flow Projection'!K49=0,0,'(9)Annual Cash Flow Projection'!K48/'(9)Annual Cash Flow Projection'!K49) -> 1.845283 | L26: =IF('(9)Annual Cash Flow Projection'!L49=0,0,'(9)Annual Cash Flow Projection'!L48/'(9)Annual Cash Flow Projection'!L49) -> 1.891415075 | M26: =IF('(9)Annual Cash Flow Projection'!M49=0,0,'(9)Annual Cash Flow Projection'!M48/'(9)Annual Cash Flow Projection'!M49) -> 1.938700452
B27: 19 | C27: Loan to Value | D27: =IF(D44=0,0,D46/D44) -> 0.5767249242 | E27: 0.5537963358 | F27: 0.5312047882 | G27: 0.5089339429 | H27: 0.4869683563 | I27: 0.465301304 | J27: 0.4439023246 | K27: 0.4227733641 | L27: 0.4018999414 | M27: 0.3812622093
B28: 20 | C28: Internal Rate of Return (Investment Base) | D28: =D63 -> 0.3994115793 | E28: =E63 -> 0.2657260954 | F28: 0.2224974357 | G28: 0.200438097 | H28: 0.1867081878 | I28: 0.1771444949 | J28: 0.1699995784 | K28: 0.1643873626 | L28: 0.1598222943 | M28: 0.1560132117
C44: Sale Price (Rounded) | D44: =IF('(2)Dev.-Inv. & Lender Input'!$D$26=0,0,ROUND('(9)Annual Cash Flow Projection'!E48/'(2)Dev.-Inv. & Lender Input'!$D$26,-3)) -> 51739000 | E44: =IF('(2)Dev.-Inv. & Lender Input'!$D$26=0,0,ROUND('(9)Annual Cash Flow Projection'!F48/'(2)Dev.-Inv. & Lender Input'!$D$26,-3)) -> 53033000 | F44: =IF('(2)Dev.-Inv. & Lender Input'!$D$26=0,0,ROUND('(9)Annual Cash Flow Projection'!G48/'(2)Dev.-Inv. & Lender Input'!$D$26,-3)) -> 54359000 | G44: =IF('(2)Dev.-Inv. & Lender Input'!$D$26=0,0,ROUND('(9)Annual Cash Flow Projection'!H48/'(2)Dev.-Inv. & Lender Input'!$D$26,-3)) -> 55718000 | H44: =IF('(2)Dev.-Inv. & Lender Input'!$D$26=0,0,ROUND('(9)Annual Cash Flow Projection'!I48/'(2)Dev.-Inv. & Lender Input'!$D$26,-3)) -> 57111000 | I44: =IF('(2)Dev.-Inv. & Lender Input'!$D$26=0,0,ROUND('(9)Annual Cash Flow Projection'!J48/'(2)Dev.-Inv. & Lender Input'!$D$26,-3)) -> 58538000 | J44: =IF('(2)Dev.-Inv. & Lender Input'!$D$26=0,0,ROUND('(9)Annual Cash Flow Projection'!K48/'(2)Dev.-Inv. & Lender Input'!$D$26,-3)) -> 60002000 | K44: =IF('(2)Dev.-Inv. & Lender Input'!$D$26=0,0,ROUND('(9)Annual Cash Flow Projection'!L48/'(2)Dev.-Inv. & Lender Input'!$D$26,-3)) -> 61502000 | L44: =IF('(2)Dev.-Inv. & Lender Input'!$D$26=0,0,ROUND('(9)Annual Cash Flow Projection'!M48/'(2)Dev.-Inv. & Lender Input'!$D$26,-3)) -> 63039000 | M44: =IF('(2)Dev.-Inv. & Lender Input'!$D$26=0,0,ROUND('(9)Annual Cash Flow Projection'!N48/'(2)Dev.-Inv. & Lender Input'!$D$26,-3)) -> 64615000 | O44: 1
C45: Less: Cost of Sale | D45: =D44*'(2)Dev.-Inv. & Lender Input'!$D$25 -> 1034780 | E45: =E44*'(2)Dev.-Inv. & Lender Input'!$D$25 -> 1060660 | F45: =F44*'(2)Dev.-Inv. & Lender Input'!$D$25 -> 1087180 | G45: =G44*'(2)Dev.-Inv. & Lender Input'!$D$25 -> 1114360 | H45: =H44*'(2)Dev.-Inv. & Lender Input'!$D$25 -> 1142220 | I45: =I44*'(2)Dev.-Inv. & Lender Input'!$D$25 -> 1170760 | J45: =J44*'(2)Dev.-Inv. & Lender Input'!$D$25 -> 1200040 | K45: =K44*'(2)Dev.-Inv. & Lender Input'!$D$25 -> 1230040 | L45: =L44*'(2)Dev.-Inv. & Lender Input'!$D$25 -> 1260780 | M45: =M44*'(2)Dev.-Inv. & Lender Input'!$D$25 -> 1292300 | O45: 2
C46: Less: Mortgage | D46: =IF('(2)Dev.-Inv. & Lender Input'!$D$20=0,0,FV('(2)Dev.-Inv. & Lender Input'!$D$18/'(2)Dev.-Inv. & Lender Input'!$D$20,D23*'(2)Dev.-Inv. & Lender Input'!$D$20,'(9)Annual Cash Flow Projection'!D49/'(2)Dev.-Inv. & Lender Input'!$D$20,-'(5)Project Summary'!$D$31,0)) -> 29839170.85 | E46: =IF('(2)Dev.-Inv. & Lender Input'!$D$20=0,0,FV('(2)Dev.-Inv. & Lender Input'!$D$18/'(2)Dev.-Inv. & Lender Input'!$D$20,E23*'(2)Dev.-Inv. & Lender Input'!$D$20,'(9)Annual Cash Flow Projection'!E49/'(2)Dev.-Inv. & Lender Input'!$D$20,-'(5)Project Summary'!$D$31,0)) -> 29369481.08 | F46: =IF('(2)Dev.-Inv. & Lender Input'!$D$20=0,0,FV('(2)Dev.-Inv. & Lender Input'!$D$18/'(2)Dev.-Inv. & Lender Input'!$D$20,F23*'(2)Dev.-Inv. & Lender Input'!$D$20,'(9)Annual Cash Flow Projection'!F49/'(2)Dev.-Inv. & Lender Input'!$D$20,-'(5)Project Summary'!$D$31,0)) -> 28875761.08 | G46: =IF('(2)Dev.-Inv. & Lender Input'!$D$20=0,0,FV('(2)Dev.-Inv. & Lender Input'!$D$18/'(2)Dev.-Inv. & Lender Input'!$D$20,G23*'(2)Dev.-Inv. & Lender Input'!$D$20,'(9)Annual Cash Flow Projection'!G49/'(2)Dev.-Inv. & Lender Input'!$D$20,-'(5)Project Summary'!$D$31,0)) -> 28356781.43 | H46: =IF('(2)Dev.-Inv. & Lender Input'!$D$20=0,0,FV('(2)Dev.-Inv. & Lender Input'!$D$18/'(2)Dev.-Inv. & Lender Input'!$D$20,H23*'(2)Dev.-Inv. & Lender Input'!$D$20,'(9)Annual Cash Flow Projection'!H49/'(2)Dev.-Inv. & Lender Input'!$D$20,-'(5)Project Summary'!$D$31,0)) -> 27811249.8 | I46: =IF('(2)Dev.-Inv. & Lender Input'!$D$20=0,0,FV('(2)Dev.-Inv. & Lender Input'!$D$18/'(2)Dev.-Inv. & Lender Input'!$D$20,I23*'(2)Dev.-Inv. & Lender Input'!$D$20,'(9)Annual Cash Flow Projection'!I49/'(2)Dev.-Inv. & Lender Input'!$D$20,-'(5)Project Summary'!$D$31,0)) -> 27237807.73 | J46: =IF('(2)Dev.-Inv. & Lender Input'!$D$20=0,0,FV('(2)Dev.-Inv. & Lender Input'!$D$18/'(2)Dev.-Inv. & Lender Input'!$D$20,J23*'(2)Dev.-Inv. & Lender Input'!$D$20,'(9)Annual Cash Flow Projection'!J49/'(2)Dev.-Inv. & Lender Input'!$D$20,-'(5)Project Summary'!$D$31,0)) -> 26635027.28 | K46: =IF('(2)Dev.-Inv. & Lender Input'!$D$20=0,0,FV('(2)Dev.-Inv. & Lender Input'!$D$18/'(2)Dev.-Inv. & Lender Input'!$D$20,K23*'(2)Dev.-Inv. & Lender Input'!$D$20,'(9)Annual Cash Flow Projection'!K49/'(2)Dev.-Inv. & Lender Input'!$D$20,-'(5)Project Summary'!$D$31,0)) -> 26001407.44 | L46: =IF('(2)Dev.-Inv. & Lender Input'!$D$20=0,0,FV('(2)Dev.-Inv. & Lender Input'!$D$18/'(2)Dev.-Inv. & Lender Input'!$D$20,L23*'(2)Dev.-Inv. & Lender Input'!$D$20,'(9)Annual Cash Flow Projection'!L49/'(2)Dev.-Inv. & Lender Input'!$D$20,-'(5)Project Summary'!$D$31,0)) -> 25335370.41 | M46: =IF('(2)Dev.-Inv. & Lender Input'!$D$20=0,0,FV('(2)Dev.-Inv. & Lender Input'!$D$18/'(2)Dev.-Inv. & Lender Input'!$D$20,M23*'(2)Dev.-Inv. & Lender Input'!$D$20,'(9)Annual Cash Flow Projection'!M49/'(2)Dev.-Inv. & Lender Input'!$D$20,-'(5)Project Summary'!$D$31,0)) -> 24635257.65 | O46: 3
C47: Sale Proceeds Before Tax | D47: =D44-D45-D46 -> 20865049.15 | E47: =E44-E45-E46 -> 22602858.92 | F47: 24396058.92 | G47: 26246858.57 | H47: 28157530.2 | I47: 30129432.27 | J47: 32166932.72 | K47: 34270552.56 | L47: 36442849.59 | M47: 38687442.35 | O47: 4
O48: 5
D49: =D7-D13 -> 15679960 | O49: 6
D50: 1 | E50: 2 | F50: 3 | G50: 4 | H50: 5 | I50: 6 | J50: 7 | K50: 8 | L50: 9 | M50: 10 | O50: 7
C51: 0 | D51: =-(D7-D13) -> -15679960 | E51: =D51 -> -15679960 | F51: =E51 -> -15679960 | G51: -15679960 | H51: -15679960 | I51: -15679960 | J51: -15679960 | K51: -15679960 | L51: -15679960 | M51: -15679960 | O51: 8
C52: 1 | D52: ='(9)Annual Cash Flow Projection'!D50+D47 -> 21942717.59 | E52: ='(9)Annual Cash Flow Projection'!$D$50 -> 1077668.439 | F52: ='(9)Annual Cash Flow Projection'!$D$50 -> 1077668.439 | G52: ='(9)Annual Cash Flow Projection'!$D$50 -> 1077668.439 | H52: ='(9)Annual Cash Flow Projection'!$D$50 -> 1077668.439 | I52: ='(9)Annual Cash Flow Projection'!$D$50 -> 1077668.439 | J52: ='(9)Annual Cash Flow Projection'!$D$50 -> 1077668.439 | K52: ='(9)Annual Cash Flow Projection'!$D$50 -> 1077668.439 | L52: ='(9)Annual Cash Flow Projection'!$D$50 -> 1077668.439 | M52: ='(9)Annual Cash Flow Projection'!$D$50 -> 1077668.439 | O52: 9
C53: 2 | D53: 0 | E53: ='(9)Annual Cash Flow Projection'!E50+E47 -> 23756243.61 | F53: ='(9)Annual Cash Flow Projection'!$E$50 -> 1153384.689 | G53: ='(9)Annual Cash Flow Projection'!$E$50 -> 1153384.689 | H53: ='(9)Annual Cash Flow Projection'!$E$50 -> 1153384.689 | I53: ='(9)Annual Cash Flow Projection'!$E$50 -> 1153384.689 | J53: ='(9)Annual Cash Flow Projection'!$E$50 -> 1153384.689 | K53: ='(9)Annual Cash Flow Projection'!$E$50 -> 1153384.689 | L53: ='(9)Annual Cash Flow Projection'!$E$50 -> 1153384.689 | M53: ='(9)Annual Cash Flow Projection'!$E$50 -> 1153384.689 | O53: 10
C54: 3 | D54: 0 | E54: 0 | F54: ='(9)Annual Cash Flow Projection'!F50+F47 -> 25627052.77 | G54: ='(9)Annual Cash Flow Projection'!$F$50 -> 1230993.845 | H54: ='(9)Annual Cash Flow Projection'!$F$50 -> 1230993.845 | I54: ='(9)Annual Cash Flow Projection'!$F$50 -> 1230993.845 | J54: ='(9)Annual Cash Flow Projection'!$F$50 -> 1230993.845 | K54: ='(9)Annual Cash Flow Projection'!$F$50 -> 1230993.845 | L54: ='(9)Annual Cash Flow Projection'!$F$50 -> 1230993.845 | M54: ='(9)Annual Cash Flow Projection'!$F$50 -> 1230993.845
C55: 4 | D55: 0 | E55: 0 | F55: 0 | G55: ='(9)Annual Cash Flow Projection'!G50+G47 -> 27557401.8 | H55: ='(9)Annual Cash Flow Projection'!$G$50 -> 1310543.23 | I55: ='(9)Annual Cash Flow Projection'!$G$50 -> 1310543.23 | J55: ='(9)Annual Cash Flow Projection'!$G$50 -> 1310543.23 | K55: ='(9)Annual Cash Flow Projection'!$G$50 -> 1310543.23 | L55: ='(9)Annual Cash Flow Projection'!$G$50 -> 1310543.23 | M55: ='(9)Annual Cash Flow Projection'!$G$50 -> 1310543.23
C56: 5 | D56: 0 | E56: 0 | F56: 0 | G56: 0 | H56: ='(9)Annual Cash Flow Projection'!H50+H47 -> 29549611.55 | I56: ='(9)Annual Cash Flow Projection'!$H$50 -> 1392081.35 | J56: ='(9)Annual Cash Flow Projection'!$H$50 -> 1392081.35 | K56: ='(9)Annual Cash Flow Projection'!$H$50 -> 1392081.35 | L56: ='(9)Annual Cash Flow Projection'!$H$50 -> 1392081.35 | M56: ='(9)Annual Cash Flow Projection'!$H$50 -> 1392081.35
C57: 6 | D57: 0 | E57: 0 | F57: 0 | G57: 0 | H57: 0 | I57: ='(9)Annual Cash Flow Projection'!I50+I47 -> 31605090.19 | J57: ='(9)Annual Cash Flow Projection'!$I$50 -> 1475657.923 | K57: ='(9)Annual Cash Flow Projection'!$I$50 -> 1475657.923 | L57: ='(9)Annual Cash Flow Projection'!$I$50 -> 1475657.923 | M57: ='(9)Annual Cash Flow Projection'!$I$50 -> 1475657.923
C58: 7 | D58: 0 | E58: 0 | F58: 0 | G58: 0 | H58: 0 | I58: 0 | J58: ='(9)Annual Cash Flow Projection'!J50+J47 -> 33728256.63 | K58: ='(9)Annual Cash Flow Projection'!$J$50 -> 1561323.91 | L58: ='(9)Annual Cash Flow Projection'!$J$50 -> 1561323.91 | M58: ='(9)Annual Cash Flow Projection'!$J$50 -> 1561323.91
C59: 8 | D59: 0 | E59: 0 | F59: 0 | G59: 0 | H59: 0 | I59: 0 | J59: 0 | K59: ='(9)Annual Cash Flow Projection'!K50+K47 -> 35919684.11 | L59: ='(9)Annual Cash Flow Projection'!$K$50 -> 1649131.547 | M59: ='(9)Annual Cash Flow Projection'!$K$50 -> 1649131.547
C60: 9 | D60: 0 | E60: 0 | F60: 0 | G60: 0 | H60: 0 | I60: 0 | J60: 0 | K60: 0 | L60: ='(9)Annual Cash Flow Projection'!L50+L47 -> 38181983.97 | M60: ='(9)Annual Cash Flow Projection'!L50 -> 1739134.375
C61: 10 | D61: 0 | E61: 0 | F61: 0 | G61: 0 | H61: 0 | I61: 0 | J61: 0 | K61: 0 | L61: 0 | M61: ='(9)Annual Cash Flow Projection'!M50+M47 -> 40518829.62
D63: =IF(D44=0,0,IRR(D51:D61)) -> 0.3994115793 | E63: =IF(E44=0,0,IRR(E51:E61)) -> 0.2657260954 | F63: 0.2224974357 | G63: 0.200438097 | H63: 0.1867081878 | I63: 0.1771444949 | J63: 0.1699995784 | K63: 0.1643873626 | L63: 0.1598222943 | M63: 0.1560132117

Sheet Data (hidden)
C4: 1 | D4: 2 | E4: 3 | F4: 4 | G4: 5 | H4: 6 | I4: 7 | J4: 8 | K4: 9 | L4: 10
B5: 0 | C5: =NPV(B5,'(10)Sale Proceeds-Ratios'!$D$52:$D$61)+'(10)Sale Proceeds-Ratios'!$D$13 -> 32513857.59 | D5: =NPV(B5,'(10)Sale Proceeds-Ratios'!$E$52:$E$61)+'(10)Sale Proceeds-Ratios'!$D$13 -> 35405052.05 | E5: =NPV(B5,'(10)Sale Proceeds-Ratios'!$F$52:$F$61)+'(10)Sale Proceeds-Ratios'!$D$13 -> 38429245.89 | F5: =NPV(B5,'(10)Sale Proceeds-Ratios'!$G$52:$G$61)+'(10)Sale Proceeds-Ratios'!$D$13 -> 41590588.77 | G5: =NPV(B5,'(10)Sale Proceeds-Ratios'!$H$52:$H$61)+'(10)Sale Proceeds-Ratios'!$D$13 -> 44893341.75 | H5: =NPV(B5,'(10)Sale Proceeds-Ratios'!$I$52:$I$61)+'(10)Sale Proceeds-Ratios'!$D$13 -> 48340901.74 | I5: =NPV(B5,'(10)Sale Proceeds-Ratios'!$J$52:$J$61)+'(10)Sale Proceeds-Ratios'!$D$13 -> 51939726.1 | J5: =NPV(B5,'(10)Sale Proceeds-Ratios'!$K$52:$K$61)+'(10)Sale Proceeds-Ratios'!$D$13 -> 55692477.49 | K5: =NPV(B5,'(10)Sale Proceeds-Ratios'!$L$52:$L$61)+'(10)Sale Proceeds-Ratios'!$D$13 -> 59603908.9 | L5: =NPV(B5,'(10)Sale Proceeds-Ratios'!$M$52:$M$61)+'(10)Sale Proceeds-Ratios'!$D$13 -> 63679888.93
B6: 0.02 | C6: =NPV(B6,'(10)Sale Proceeds-Ratios'!$D$52:$D$61)+'(10)Sale Proceeds-Ratios'!$D$13 -> 32083608.22 | D6: =NPV(B6,'(10)Sale Proceeds-Ratios'!$E$52:$E$61)+'(10)Sale Proceeds-Ratios'!$D$13 -> 34461437.41 | E6: =NPV(B6,'(10)Sale Proceeds-Ratios'!$F$52:$F$61)+'(10)Sale Proceeds-Ratios'!$D$13 -> 36885219.23 | F6: =NPV(B6,'(10)Sale Proceeds-Ratios'!$G$52:$G$61)+'(10)Sale Proceeds-Ratios'!$D$13 -> 39355047.64 | G6: =NPV(B6,'(10)Sale Proceeds-Ratios'!$H$52:$H$61)+'(10)Sale Proceeds-Ratios'!$D$13 -> 41871001 | H6: =NPV(B6,'(10)Sale Proceeds-Ratios'!$I$52:$I$61)+'(10)Sale Proceeds-Ratios'!$D$13 -> 44432273.99 | I6: =NPV(B6,'(10)Sale Proceeds-Ratios'!$J$52:$J$61)+'(10)Sale Proceeds-Ratios'!$D$13 -> 47040677.49 | J6: =NPV(B6,'(10)Sale Proceeds-Ratios'!$K$52:$K$61)+'(10)Sale Proceeds-Ratios'!$D$13 -> 49694531.32 | K6: =NPV(B6,'(10)Sale Proceeds-Ratios'!$L$52:$L$61)+'(10)Sale Proceeds-Ratios'!$D$13 -> 52393920.84 | L6: =NPV(B6,'(10)Sale Proceeds-Ratios'!$M$52:$M$61)+'(10)Sale Proceeds-Ratios'!$D$13 -> 55139727.54
B7: 0.04 | C7: =NPV(B7,'(10)Sale Proceeds-Ratios'!$D$52:$D$61)+'(10)Sale Proceeds-Ratios'!$D$13 -> 31669906.91 | D7: =NPV(B7,'(10)Sale Proceeds-Ratios'!$E$52:$E$61)+'(10)Sale Proceeds-Ratios'!$D$13 -> 33571342.28 | E7: =NPV(B7,'(10)Sale Proceeds-Ratios'!$F$52:$F$61)+'(10)Sale Proceeds-Ratios'!$D$13 -> 35456085.23 | F7: =NPV(B7,'(10)Sale Proceeds-Ratios'!$G$52:$G$61)+'(10)Sale Proceeds-Ratios'!$D$13 -> 37324260.23 | G7: =NPV(B7,'(10)Sale Proceeds-Ratios'!$H$52:$H$61)+'(10)Sale Proceeds-Ratios'!$D$13 -> 39175962.25 | H7: =NPV(B7,'(10)Sale Proceeds-Ratios'!$I$52:$I$61)+'(10)Sale Proceeds-Ratios'!$D$13 -> 41010486.79 | I7: =NPV(B7,'(10)Sale Proceeds-Ratios'!$J$52:$J$61)+'(10)Sale Proceeds-Ratios'!$D$13 -> 42829461.83 | J7: =NPV(B7,'(10)Sale Proceeds-Ratios'!$K$52:$K$61)+'(10)Sale Proceeds-Ratios'!$D$13 -> 44631398.01 | K7: =NPV(B7,'(10)Sale Proceeds-Ratios'!$L$52:$L$61)+'(10)Sale Proceeds-Ratios'!$D$13 -> 46416396.41 | L7: =NPV(B7,'(10)Sale Proceeds-Ratios'!$M$52:$M$61)+'(10)Sale Proceeds-Ratios'!$D$13 -> 48185203.13
B8: 0.06 | C8: =NPV(B8,'(10)Sale Proceeds-Ratios'!$D$52:$D$61)+'(10)Sale Proceeds-Ratios'!$D$13 -> 31271816.97 | D8: =NPV(B8,'(10)Sale Proceeds-Ratios'!$E$52:$E$61)+'(10)Sale Proceeds-Ratios'!$D$13 -> 32730780.58 | E8: =NPV(B8,'(10)Sale Proceeds-Ratios'!$F$52:$F$61)+'(10)Sale Proceeds-Ratios'!$D$13 -> 34131284.28 | F8: =NPV(B8,'(10)Sale Proceeds-Ratios'!$G$52:$G$61)+'(10)Sale Proceeds-Ratios'!$D$13 -> 35475926.12 | G8: =NPV(B8,'(10)Sale Proceeds-Ratios'!$H$52:$H$61)+'(10)Sale Proceeds-Ratios'!$D$13 -> 36767144.5 | H8: =NPV(B8,'(10)Sale Proceeds-Ratios'!$I$52:$I$61)+'(10)Sale Proceeds-Ratios'!$D$13 -> 38006541.39 | I8: =NPV(B8,'(10)Sale Proceeds-Ratios'!$J$52:$J$61)+'(10)Sale Proceeds-Ratios'!$D$13 -> 39197697.54 | J8: =NPV(B8,'(10)Sale Proceeds-Ratios'!$K$52:$K$61)+'(10)Sale Proceeds-Ratios'!$D$13 -> 40341304.29 | K8: =NPV(B8,'(10)Sale Proceeds-Ratios'!$L$52:$L$61)+'(10)Sale Proceeds-Ratios'!$D$13 -> 41439393.29 | L8: =NPV(B8,'(10)Sale Proceeds-Ratios'!$M$52:$M$61)+'(10)Sale Proceeds-Ratios'!$D$13 -> 42494429.44
B9: 0.08 | C9: =NPV(B9,'(10)Sale Proceeds-Ratios'!$D$52:$D$61)+'(10)Sale Proceeds-Ratios'!$D$13 -> 30888471.1 | D9: =NPV(B9,'(10)Sale Proceeds-Ratios'!$E$52:$E$61)+'(10)Sale Proceeds-Ratios'!$D$13 -> 31936131.02 | E9: =NPV(B9,'(10)Sale Proceeds-Ratios'!$F$52:$F$61)+'(10)Sale Proceeds-Ratios'!$D$13 -> 32901403.34 | F9: =NPV(B9,'(10)Sale Proceeds-Ratios'!$G$52:$G$61)+'(10)Sale Proceeds-Ratios'!$D$13 -> 33790538.21 | G9: =NPV(B9,'(10)Sale Proceeds-Ratios'!$H$52:$H$61)+'(10)Sale Proceeds-Ratios'!$D$13 -> 34609282.72 | H9: =NPV(B9,'(10)Sale Proceeds-Ratios'!$I$52:$I$61)+'(10)Sale Proceeds-Ratios'!$D$13 -> 35362308.68 | I9: =NPV(B9,'(10)Sale Proceeds-Ratios'!$J$52:$J$61)+'(10)Sale Proceeds-Ratios'!$D$13 -> 36055769.39 | J9: =NPV(B9,'(10)Sale Proceeds-Ratios'!$K$52:$K$61)+'(10)Sale Proceeds-Ratios'!$D$13 -> 36692960.76 | K9: =NPV(B9,'(10)Sale Proceeds-Ratios'!$L$52:$L$61)+'(10)Sale Proceeds-Ratios'!$D$13 -> 37278145.61 | L9: =NPV(B9,'(10)Sale Proceeds-Ratios'!$M$52:$M$61)+'(10)Sale Proceeds-Ratios'!$D$13 -> 37815705.76
B10: 0.1 | C10: =NPV(B10,'(10)Sale Proceeds-Ratios'!$D$52:$D$61)+'(10)Sale Proceeds-Ratios'!$D$13 -> 30519065.08 | D10: =NPV(B10,'(10)Sale Proceeds-Ratios'!$E$52:$E$61)+'(10)Sale Proceeds-Ratios'!$D$13 -> 31184097.77 | E10: =NPV(B10,'(10)Sale Proceeds-Ratios'!$F$52:$F$61)+'(10)Sale Proceeds-Ratios'!$D$13 -> 31758033.11 | F10: =NPV(B10,'(10)Sale Proceeds-Ratios'!$G$52:$G$61)+'(10)Sale Proceeds-Ratios'!$D$13 -> 32250989.19 | G10: =NPV(B10,'(10)Sale Proceeds-Ratios'!$H$52:$H$61)+'(10)Sale Proceeds-Ratios'!$D$13 -> 32672015.52 | H10: =NPV(B10,'(10)Sale Proceeds-Ratios'!$I$52:$I$61)+'(10)Sale Proceeds-Ratios'!$D$13 -> 33028654.09 | I10: =NPV(B10,'(10)Sale Proceeds-Ratios'!$J$52:$J$61)+'(10)Sale Proceeds-Ratios'!$D$13 -> 33329303.75 | J10: =NPV(B10,'(10)Sale Proceeds-Ratios'!$K$52:$K$61)+'(10)Sale Proceeds-Ratios'!$D$13 -> 33579378.81 | K10: =NPV(B10,'(10)Sale Proceeds-Ratios'!$L$52:$L$61)+'(10)Sale Proceeds-Ratios'!$D$13 -> 33784801.59 | L10: =NPV(B10,'(10)Sale Proceeds-Ratios'!$M$52:$M$61)+'(10)Sale Proceeds-Ratios'!$D$13 -> 33951238.72
B11: 0.12 | C11: =NPV(B11,'(10)Sale Proceeds-Ratios'!$D$52:$D$61)+'(10)Sale Proceeds-Ratios'!$D$13 -> 30162852.13 | D11: =NPV(B11,'(10)Sale Proceeds-Ratios'!$E$52:$E$61)+'(10)Sale Proceeds-Ratios'!$D$13 -> 30471675.93 | E11: =NPV(B11,'(10)Sale Proceeds-Ratios'!$F$52:$F$61)+'(10)Sale Proceeds-Ratios'!$D$13 -> 30693645.14 | F11: =NPV(B11,'(10)Sale Proceeds-Ratios'!$G$52:$G$61)+'(10)Sale Proceeds-Ratios'!$D$13 -> 30842239.32 | G11: =NPV(B11,'(10)Sale Proceeds-Ratios'!$H$52:$H$61)+'(10)Sale Proceeds-Ratios'!$D$13 -> 30929129.37 | H11: =NPV(B11,'(10)Sale Proceeds-Ratios'!$I$52:$I$61)+'(10)Sale Proceeds-Ratios'!$D$13 -> 30963912.82 | I11: =NPV(B11,'(10)Sale Proceeds-Ratios'!$J$52:$J$61)+'(10)Sale Proceeds-Ratios'!$D$13 -> 30956355.19 | J11: =NPV(B11,'(10)Sale Proceeds-Ratios'!$K$52:$K$61)+'(10)Sale Proceeds-Ratios'!$D$13 -> 30913026.38 | K11: =NPV(B11,'(10)Sale Proceeds-Ratios'!$L$52:$L$61)+'(10)Sale Proceeds-Ratios'!$D$13 -> 30840531.18 | L11: =NPV(B11,'(10)Sale Proceeds-Ratios'!$M$52:$M$61)+'(10)Sale Proceeds-Ratios'!$D$13 -> 30744852.99
B12: 0.14 | C12: =NPV(B12,'(10)Sale Proceeds-Ratios'!$D$52:$D$61)+'(10)Sale Proceeds-Ratios'!$D$13 -> 29819137.88 | D12: =NPV(B12,'(10)Sale Proceeds-Ratios'!$E$52:$E$61)+'(10)Sale Proceeds-Ratios'!$D$13 -> 29796121.25 | E12: =NPV(B12,'(10)Sale Proceeds-Ratios'!$F$52:$F$61)+'(10)Sale Proceeds-Ratios'!$D$13 -> 29701485.92 | F12: =NPV(B12,'(10)Sale Proceeds-Ratios'!$G$52:$G$61)+'(10)Sale Proceeds-Ratios'!$D$13 -> 29551035.14 | G12: =NPV(B12,'(10)Sale Proceeds-Ratios'!$H$52:$H$61)+'(10)Sale Proceeds-Ratios'!$D$13 -> 29357930.12 | H12: =NPV(B12,'(10)Sale Proceeds-Ratios'!$I$52:$I$61)+'(10)Sale Proceeds-Ratios'!$D$13 -> 29132645.2 | I12: =NPV(B12,'(10)Sale Proceeds-Ratios'!$J$52:$J$61)+'(10)Sale Proceeds-Ratios'!$D$13 -> 28885151.34 | J12: =NPV(B12,'(10)Sale Proceeds-Ratios'!$K$52:$K$61)+'(10)Sale Proceeds-Ratios'!$D$13 -> 28622014.99 | K12: =NPV(B12,'(10)Sale Proceeds-Ratios'!$L$52:$L$61)+'(10)Sale Proceeds-Ratios'!$D$13 -> 28349425.82 | L12: =NPV(B12,'(10)Sale Proceeds-Ratios'!$M$52:$M$61)+'(10)Sale Proceeds-Ratios'!$D$13 -> 28072663.57
B13: 0.16 | C13: =NPV(B13,'(10)Sale Proceeds-Ratios'!$D$52:$D$61)+'(10)Sale Proceeds-Ratios'!$D$13 -> 29487275.85 | D13: =NPV(B13,'(10)Sale Proceeds-Ratios'!$E$52:$E$61)+'(10)Sale Proceeds-Ratios'!$D$13 -> 29154923.44 | E13: =NPV(B13,'(10)Sale Proceeds-Ratios'!$F$52:$F$61)+'(10)Sale Proceeds-Ratios'!$D$13 -> 28775485.23 | F13: =NPV(B13,'(10)Sale Proceeds-Ratios'!$G$52:$G$61)+'(10)Sale Proceeds-Ratios'!$D$13 -> 28365670.58 | G13: =NPV(B13,'(10)Sale Proceeds-Ratios'!$H$52:$H$61)+'(10)Sale Proceeds-Ratios'!$D$13 -> 27938718.9 | H13: =NPV(B13,'(10)Sale Proceeds-Ratios'!$I$52:$I$61)+'(10)Sale Proceeds-Ratios'!$D$13 -> 27504616.77 | I13: =NPV(B13,'(10)Sale Proceeds-Ratios'!$J$52:$J$61)+'(10)Sale Proceeds-Ratios'!$D$13 -> 27072277.84 | J13: =NPV(B13,'(10)Sale Proceeds-Ratios'!$K$52:$K$61)+'(10)Sale Proceeds-Ratios'!$D$13 -> 26647085.21 | K13: =NPV(B13,'(10)Sale Proceeds-Ratios'!$L$52:$L$61)+'(10)Sale Proceeds-Ratios'!$D$13 -> 26233760.73 | L13: =NPV(B13,'(10)Sale Proceeds-Ratios'!$M$52:$M$61)+'(10)Sale Proceeds-Ratios'!$D$13 -> 25835959.14
B14: 0.18 | C14: =NPV(B14,'(10)Sale Proceeds-Ratios'!$D$52:$D$61)+'(10)Sale Proceeds-Ratios'!$D$13 -> 29166663.38 | D14: =NPV(B14,'(10)Sale Proceeds-Ratios'!$E$52:$E$61)+'(10)Sale Proceeds-Ratios'!$D$13 -> 28545782.61 | E14: =NPV(B14,'(10)Sale Proceeds-Ratios'!$F$52:$F$61)+'(10)Sale Proceeds-Ratios'!$D$13 -> 27910176.75 | F14: =NPV(B14,'(10)Sale Proceeds-Ratios'!$G$52:$G$61)+'(10)Sale Proceeds-Ratios'!$D$13 -> 27275783.4 | G14: =NPV(B14,'(10)Sale Proceeds-Ratios'!$H$52:$H$61)+'(10)Sale Proceeds-Ratios'!$D$13 -> 26654353.29 | H14: =NPV(B14,'(10)Sale Proceeds-Ratios'!$I$52:$I$61)+'(10)Sale Proceeds-Ratios'!$D$13 -> 26053959.53 | I14: =NPV(B14,'(10)Sale Proceeds-Ratios'!$J$52:$J$61)+'(10)Sale Proceeds-Ratios'!$D$13 -> 25481211.65 | J14: =NPV(B14,'(10)Sale Proceeds-Ratios'!$K$52:$K$61)+'(10)Sale Proceeds-Ratios'!$D$13 -> 24939213.03 | K14: =NPV(B14,'(10)Sale Proceeds-Ratios'!$L$52:$L$61)+'(10)Sale Proceeds-Ratios'!$D$13 -> 24430298.24 | L14: =NPV(B14,'(10)Sale Proceeds-Ratios'!$M$52:$M$61)+'(10)Sale Proceeds-Ratios'!$D$13 -> 23955745.14
B15: 0.2 | C15: =NPV(B15,'(10)Sale Proceeds-Ratios'!$D$52:$D$61)+'(10)Sale Proceeds-Ratios'!$D$13 -> 28856737.99 | D15: =NPV(B15,'(10)Sale Proceeds-Ratios'!$E$52:$E$61)+'(10)Sale Proceeds-Ratios'!$D$13 -> 27966588.43 | E15: =NPV(B15,'(10)Sale Proceeds-Ratios'!$F$52:$F$61)+'(10)Sale Proceeds-Ratios'!$D$13 -> 27100628.97 | F15: =NPV(B15,'(10)Sale Proceeds-Ratios'!$G$52:$G$61)+'(10)Sale Proceeds-Ratios'!$D$13 -> 26272181.39 | G15: =NPV(B15,'(10)Sale Proceeds-Ratios'!$H$52:$H$61)+'(10)Sale Proceeds-Ratios'!$D$13 -> 25489878.98 | H15: =NPV(B15,'(10)Sale Proceeds-Ratios'!$I$52:$I$61)+'(10)Sale Proceeds-Ratios'!$D$13 -> 24758479.87 | I15: =NPV(B15,'(10)Sale Proceeds-Ratios'!$J$52:$J$61)+'(10)Sale Proceeds-Ratios'!$D$13 -> 24081131.38 | J15: =NPV(B15,'(10)Sale Proceeds-Ratios'!$K$52:$K$61)+'(10)Sale Proceeds-Ratios'!$D$13 -> 23457701.32 | K15: =NPV(B15,'(10)Sale Proceeds-Ratios'!$L$52:$L$61)+'(10)Sale Proceeds-Ratios'!$D$13 -> 22887390.39 | L15: =NPV(B15,'(10)Sale Proceeds-Ratios'!$M$52:$M$61)+'(10)Sale Proceeds-Ratios'!$D$13 -> 22368539.19
B16: 0.22 | C16: =NPV(B16,'(10)Sale Proceeds-Ratios'!$D$52:$D$61)+'(10)Sale Proceeds-Ratios'!$D$13 -> 28556974.09 | D16: =NPV(B16,'(10)Sale Proceeds-Ratios'!$E$52:$E$61)+'(10)Sale Proceeds-Ratios'!$D$13 -> 27415401.7 | E16: =NPV(B16,'(10)Sale Proceeds-Ratios'!$F$52:$F$61)+'(10)Sale Proceeds-Ratios'!$D$13 -> 26342385.06 | F16: =NPV(B16,'(10)Sale Proceeds-Ratios'!$G$52:$G$61)+'(10)Sale Proceeds-Ratios'!$D$13 -> 25346693.42 | G16: =NPV(B16,'(10)Sale Proceeds-Ratios'!$H$52:$H$61)+'(10)Sale Proceeds-Ratios'!$D$13 -> 24432219.59 | H16: =NPV(B16,'(10)Sale Proceeds-Ratios'!$I$52:$I$61)+'(10)Sale Proceeds-Ratios'!$D$13 -> 23599085.4 | I16: =NPV(B16,'(10)Sale Proceeds-Ratios'!$J$52:$J$61)+'(10)Sale Proceeds-Ratios'!$D$13 -> 22845948.8 | J16: =NPV(B16,'(10)Sale Proceeds-Ratios'!$K$52:$K$61)+'(10)Sale Proceeds-Ratios'!$D$13 -> 22168652.12 | K16: =NPV(B16,'(10)Sale Proceeds-Ratios'!$L$52:$L$61)+'(10)Sale Proceeds-Ratios'!$D$13 -> 21562698.21 | L16: =NPV(B16,'(10)Sale Proceeds-Ratios'!$M$52:$M$61)+'(10)Sale Proceeds-Ratios'!$D$13 -> 21023116.31
B17: 0.24 | C17: =NPV(B17,'(10)Sale Proceeds-Ratios'!$D$52:$D$61)+'(10)Sale Proceeds-Ratios'!$D$13 -> 28266879.99 | D17: =NPV(B17,'(10)Sale Proceeds-Ratios'!$E$52:$E$61)+'(10)Sale Proceeds-Ratios'!$D$13 -> 26890437.92 | E17: =NPV(B17,'(10)Sale Proceeds-Ratios'!$F$52:$F$61)+'(10)Sale Proceeds-Ratios'!$D$13 -> 25631410.29 | F17: =NPV(B17,'(10)Sale Proceeds-Ratios'!$G$52:$G$61)+'(10)Sale Proceeds-Ratios'!$D$13 -> 24492041.54 | G17: =NPV(B17,'(10)Sale Proceeds-Ratios'!$H$52:$H$61)+'(10)Sale Proceeds-Ratios'!$D$13 -> 23469914.56 | H17: =NPV(B17,'(10)Sale Proceeds-Ratios'!$I$52:$I$61)+'(10)Sale Proceeds-Ratios'!$D$13 -> 22559308.95 | I17: =NPV(B17,'(10)Sale Proceeds-Ratios'!$J$52:$J$61)+'(10)Sale Proceeds-Ratios'!$D$13 -> 21753517.47 | J17: =NPV(B17,'(10)Sale Proceeds-Ratios'!$K$52:$K$61)+'(10)Sale Proceeds-Ratios'!$D$13 -> 21043738.83 | K17: =NPV(B17,'(10)Sale Proceeds-Ratios'!$L$52:$L$61)+'(10)Sale Proceeds-Ratios'!$D$13 -> 20421388.74 | L17: =NPV(B17,'(10)Sale Proceeds-Ratios'!$M$52:$M$61)+'(10)Sale Proceeds-Ratios'!$D$13 -> 19877977.92
B18: 0.26 | C18: =NPV(B18,'(10)Sale Proceeds-Ratios'!$D$52:$D$61)+'(10)Sale Proceeds-Ratios'!$D$13 -> 27985995.23 | D18: =NPV(B18,'(10)Sale Proceeds-Ratios'!$E$52:$E$61)+'(10)Sale Proceeds-Ratios'!$D$13 -> 26390052.73 | E18: =NPV(B18,'(10)Sale Proceeds-Ratios'!$F$52:$F$61)+'(10)Sale Proceeds-Ratios'!$D$13 -> 24964046.08 | F18: =NPV(B18,'(10)Sale Proceeds-Ratios'!$G$52:$G$61)+'(10)Sale Proceeds-Ratios'!$D$13 -> 23701730.84 | G18: =NPV(B18,'(10)Sale Proceeds-Ratios'!$H$52:$H$61)+'(10)Sale Proceeds-Ratios'!$D$13 -> 22592897.27 | H18: =NPV(B18,'(10)Sale Proceeds-Ratios'!$I$52:$I$61)+'(10)Sale Proceeds-Ratios'!$D$13 -> 21624911.8 | I18: =NPV(B18,'(10)Sale Proceeds-Ratios'!$J$52:$J$61)+'(10)Sale Proceeds-Ratios'!$D$13 -> 20784983.99 | J18: =NPV(B18,'(10)Sale Proceeds-Ratios'!$K$52:$K$61)+'(10)Sale Proceeds-Ratios'!$D$13 -> 20059215.85 | K18: =NPV(B18,'(10)Sale Proceeds-Ratios'!$L$52:$L$61)+'(10)Sale Proceeds-Ratios'!$D$13 -> 19434704.11 | L18: =NPV(B18,'(10)Sale Proceeds-Ratios'!$M$52:$M$61)+'(10)Sale Proceeds-Ratios'!$D$13 -> 18899375.05
B19: 0.28 | C19: =NPV(B19,'(10)Sale Proceeds-Ratios'!$D$52:$D$61)+'(10)Sale Proceeds-Ratios'!$D$13 -> 27713888.12 | D19: =NPV(B19,'(10)Sale Proceeds-Ratios'!$E$52:$E$61)+'(10)Sale Proceeds-Ratios'!$D$13 -> 25912728.88 | E19: =NPV(B19,'(10)Sale Proceeds-Ratios'!$F$52:$F$61)+'(10)Sale Proceeds-Ratios'!$D$13 -> 24336969.63 | F19: =NPV(B19,'(10)Sale Proceeds-Ratios'!$G$52:$G$61)+'(10)Sale Proceeds-Ratios'!$D$13 -> 22969954.38 | G19: =NPV(B19,'(10)Sale Proceeds-Ratios'!$H$52:$H$61)+'(10)Sale Proceeds-Ratios'!$D$13 -> 21792306.47 | H19: =NPV(B19,'(10)Sale Proceeds-Ratios'!$I$52:$I$61)+'(10)Sale Proceeds-Ratios'!$D$13 -> 20783552.14 | I19: =NPV(B19,'(10)Sale Proceeds-Ratios'!$J$52:$J$61)+'(10)Sale Proceeds-Ratios'!$D$13 -> 19924254.32 | J19: =NPV(B19,'(10)Sale Proceeds-Ratios'!$K$52:$K$61)+'(10)Sale Proceeds-Ratios'!$D$13 -> 19195116.76 | K19: =NPV(B19,'(10)Sale Proceeds-Ratios'!$L$52:$L$61)+'(10)Sale Proceeds-Ratios'!$D$13 -> 18578821.2 | L19: =NPV(B19,'(10)Sale Proceeds-Ratios'!$M$52:$M$61)+'(10)Sale Proceeds-Ratios'!$D$13 -> 18059757.89
B20: 0.3 | C20: =NPV(B20,'(10)Sale Proceeds-Ratios'!$D$52:$D$61)+'(10)Sale Proceeds-Ratios'!$D$13 -> 27450153.53 | D20: =NPV(B20,'(10)Sale Proceeds-Ratios'!$E$52:$E$61)+'(10)Sale Proceeds-Ratios'!$D$13 -> 25457064.61 | E20: =NPV(B20,'(10)Sale Proceeds-Ratios'!$F$52:$F$61)+'(10)Sale Proceeds-Ratios'!$D$13 -> 23747158.44 | F20: =NPV(B20,'(10)Sale Proceeds-Ratios'!$G$52:$G$61)+'(10)Sale Proceeds-Ratios'!$D$13 -> 22291510.95 | G20: =NPV(B20,'(10)Sale Proceeds-Ratios'!$H$52:$H$61)+'(10)Sale Proceeds-Ratios'!$D$13 -> 21060325.72 | H20: =NPV(B20,'(10)Sale Proceeds-Ratios'!$I$52:$I$61)+'(10)Sale Proceeds-Ratios'!$D$13 -> 20024507.01 | I20: =NPV(B20,'(10)Sale Proceeds-Ratios'!$J$52:$J$61)+'(10)Sale Proceeds-Ratios'!$D$13 -> 19157553.4 | J20: =NPV(B20,'(10)Sale Proceeds-Ratios'!$K$52:$K$61)+'(10)Sale Proceeds-Ratios'!$D$13 -> 18434603.01 | K20: =NPV(B20,'(10)Sale Proceeds-Ratios'!$L$52:$L$61)+'(10)Sale Proceeds-Ratios'!$D$13 -> 17833939.64 | L20: =NPV(B20,'(10)Sale Proceeds-Ratios'!$M$52:$M$61)+'(10)Sale Proceeds-Ratios'!$D$13 -> 17336554.62
G22: ='(10)Sale Proceeds-Ratios'!D7 -> 26251100
G23: =G22 -> 26251100
G24: =G23 -> 26251100
G25: 26251100
G26: 26251100
G27: 26251100
G28: 26251100
G29: 26251100
G30: 26251100
G31: 26251100
G32: 26251100
G33: 26251100
G34: 26251100
G35: 26251100
G36: 26251100
G37: 26251100
